Workbook

Sheet Settings & Support
C2: Top | E2: ="" ->  | I2: Template Design Revision History | N2: Wkb Development Revision History
C4: =IF(PropWkb,"OnGrid Custom Proposals","OnGrid Custom Documents") -> OnGrid Custom Proposals
C8: Settings
C11: =IF(PageMaker,"Page Maker is ON","Page Maker is OFF") -> Page Maker is OFF | E11: control + t (t for Toggle)
A14: HeaderStart | C14: =IF(HeaderInPreview,"Generic Print Preview Header is ON","Generic Print Preview Header is OFF") -> Generic Print Preview Header is OFF
C16: 4 | D16: Number of Lines in Header
A17: HeaderEnd | C17: 2 | D17: Number of Lines in Footer
C26: Support
C29: =IF(PropWkb,"Proposal Wkb Version: "&TEXT(PropWkbVersion,"0.0#"),"Document Wkb Version: "&TEXT(DocWkbVersion,"0.0#")) -> Proposal Wkb Version: 3.3
C30: =IF(MacExcelxl,"WARNING MAC USERS: When using the 'Find & Replace' dialog box (Control + f/h), search within Sheet -- not within Workbook. -Otherwise you'll get an error message repeatedly until the workbook is closed. OnGrid is working on a solution to this problem.","") -> 
A33: TemplateRevHistoryLabel | C33: Template Design Revision History
C35: Date | D35: PropDoc Ver. | E35: Tool Ver. | F35: Editor | G35: Change
A37: TemplateRevHistStart | C37: 2009-10-21 | D37: 1 | E37: 4 | F37: MB
C38: 2012-07-19 | E38: 5 | F38: MB
A237: TemplateRevHistEnd
A241: GenRevHistoryLabel | C241: Wkb Development Revision History
C243: Date | D243: PropDoc Ver. | E243: Tool Ver. | F243: Editor | G243: Change
A245: GenRevHistStart | C245: 2009-09-03 | E245: 4 | F245: MB | G245: Separated Rev History into two sections
C246: 2009-09-03 | E246: 4 | F246: MB | G246: Tested '>256 character sheet import' issue -- entirety transfers fine now
C247: 2009-09-03 | E247: 4 | F247: MB | G247: The 'Find and Replace' dialog box no longer opens with inapplicable search text
C248: 2009-09-04 | E248: 4 | F248: MB | G248: Tried to find fix for 'Out of Stack Space' error msg after searching the workbook for a term -- couldn't
C249: 2009-10-12 | E249: 4 | F249: MB | G249: Imported revised charts from Tool (PropWkb only)
C250: 2009-10-21 | E250: 4 | F250: MB | G250: Revised defaults for Timelines (PropWkb only)
C251: 2009-11-09 | D251: 1.2 | E251: 4 | F251: MB | G251: Added error handling for sheet import ('Cells.Replace "=", "="'' caused RT error on Mac)
C252: 2009-12-02 | D252: 1.3 | E252: 4 | F252: MB | G252: Added code to adjust margin defaults for new added worksheets
C253: 2010-01-29 | D253: 1.4 | E253: 4 | F253: MB | G253: Changed 'Print Area Maker' to 'Page Maker'
C254: 2010-01-31 | D254: 1.4 | E254: 4 | F254: MB | G254: Added notification about Excel 2007 erratic chart formatting issue
C255: 2010-02-05 | D255: 1.5 | E255: 4 | F255: MB | G255: Added ability for Excel 2007 users to save in new .xlsm format (hopefully a fix of the erratic chart issue) -- removed eratic chart notification
C256: 2010-02-05 | D256: 1.5 | E256: 4 | F256: MB | G256: Added ability to copy and paste from other workbooks to this workbook (with the exception of copying & pasting from the Tool, which is disabled)
C257: 2010-02-17 | D257: 1.6 | E257: 4 | F257: MB | G257: Changed "Loan" to "Financing" on applicable charts and timeline
C258: 2010-02-24 | D258: 1.7 | E258: 4 | F258: MB | G258: Fixed bug w/ double-clicking to see print preview immediately upon activating sheet
C259: 2010-02-24 | D259: 1.7 | E259: 4 | F259: MB | G259: Added splash form for toggling page maker
C260: 2010-12-03 | D260: 2.01 | E260: 4 | F260: MB | G260: PropDoc now compatible w/ Excel 2010 64 bit
C261: 2010-12-08 | D261: 2.01 | E261: 4 | F261: MB | G261: PropDoc now compatible w/ Excel 2011 (Mac)
C262: 2013-03-12 | D262: 3.1 | E262: 5.3 | F262: MB | G262: Added new financing timelines to 'OnGrid Timelines' sheet / Added better usage-production chart to 'OnGrid Charts' sheet / Updated section links at top of 'OnGrid Names' sheet
C263: 2013-04-02 | D263: 3.1 | E263: 5.3 | F263: MB | G263: Added latest charts to 'OnGrid Charts' sheet
IO272: ='Settings & Support'!IO273 -> 0
A302: GenRevHistEnd
A309: StartPrivate
A316: EndPrivate
IO333: ='Settings & Support'!IO334 -> 0
IO383: ='Settings & Support'!IO384 -> 0

Sheet SettingsPvt
C3: This Sheet Modified by VBA or Tool Developer ONLY
B6: WKB SETTINGS & INFO | D6: 0 | E6: PropDoc Master (boolean)
B8: Proposal | C8: Prop Wkb or Doc Wkb
B9: =IF(PropOrDoc="Proposal",1,0) -> 1 | C9: Currently Proposal Wkb (boolean)
B10: =IF(PropOrDoc="Document",1,0) -> 0 | C10: Currently Document Wkb (boolean)
B13: Development | C13: Prop Wkb Mode (Development or Production)
B14: =IF(PropDocMode="Development",1,0) -> 1 | C14: DevMode (boolean)
B17: 2015-02-01 | C17: Last Updated--Proposal Structure
B18: 3.3 | C18: Prop Wkb Version
B19: 1 | C19: Prop Wkb Required Tool Version for Printing
B22: 2010-12-13 | C22: Last Updated--Document Structure
B23: 2.01 | C23: Doc Wkb Version
B24: 1 | C24: Doc Wkb Required Tool Version for Printing
B28: 2012-11-19 | C28: Last Updated--Proposal Ref Names
C29: Last Updated--Document Ref Names | E29: =LastUpdateDocNames -> 0 | F29: w/o reference, 'LastUpdateDocNames' ref name dissapears during update if .xlsm -- don't know why
C31: PreviousPrintSheetAddress
B33: 0 | C33: PageMaker (boolean)
B34: 0 | C34: Header in Preview (boolean)
B36: 0 | C36: Unnamed Ref in Imported Chart
B38: 0 | C38: Is the PropDoc wkb currently running on a Mac?
B39: 0 | C39: Is it currently running in Excel 2007 | E39: =Excel2007xl -> 0 | F39: w/o reference, 'Excel2007xl' ref name dissapears during update if .xlsm -- don't know why
B44: NON-PRINT SHEETS
C45: Hide | D45: Password-Protect | E45: Delete from Prop Wkb | F45: Delete from Doc Wkb
A46: StartSupportingSheets | B46: Settings & Support | C46: 0 | D46: 1 | E46: 0 | F46: 0
B47: SettingsPvt | C47: 1 | D47: 1 | E47: 0 | F47: 0
B48: NotesPvt | C48: 1 | D48: 0 | E48: 0 | F48: 0
B49: ToolsPvt | C49: 1 | D49: 0 | E49: 0 | F49: 0
B50: ChartDataPvt | C50: 1 | D50: 0 | E50: 0 | F50: 1
B51: OnGrid Charts | C51: 0 | D51: 1 | E51: 0 | F51: 1
B52: OnGrid Timelines | C52: 0 | D52: 1 | E52: 0 | F52: 1
B53: OnGrid Names | C53: 0 | D53: 1 | E53: 0 | F53: 0
A56: EndSupportingSheets

Sheet NotesPvt
B4: 2009-07-01 | C4: Notes for Andy from MB
B6: When naming pages, avoid 'code' names so instead of 'LetterPrelimProp1', maybe 'Preliminary Letter -- Proposal 1' (spaces are okay -- replaced with underscores in VBA)
B8: Try to have consistent Page Setup properties from one print sheet to the next
B10: (6:26)
B12: Andy Notes: To Do: | J12: Margins:
B13: Check that PBI monitoring expense last as long as PBIs last, but not longer | J13: Top 1.6
B14: Check that TimelineDataPvt Row 45 has correct OR (oregon) state tax credit included | J14: Header 0.25
B15: Check that TimelineDataPvt tax credits are applied in the correct year (starting at year 1?)
B16: What is Row 47 for? | J16: Bottom 0.5
B17: Does TaxFedOnRebate include the tax on any taxable Grant? | J17: Footer 0.25
B18: Make sure TimelineDataPvt Rows 188-190 add up the right incentives (including year changes)
B21: Open Questions to the right of proposals on Short, and to the right on CellRefNames
B22: Put in latest changes in proposals from v3_8+ of the tool
B23: Go over proposals w/ fine tooth comb to refine language & check accuracy
B25: Seems like an error on G52 & O52 of Timeline Data - "3 Start" is copied into that cell - ???
B26: << Is it "TaxCreditState" or is it: "=-SUM(TimelineData!D85:AC85)" - see CellRefNames

Sheet ToolsPvt
C4: Fill Page List | D4: Clear List | G4: Replace Old Names with New
G5: (skipped if blank)
C7: Sheet Name | D7: Page Name | E7: Page Address | G7: New Page Name
A9: StartPageList

Sheet ChartDataPvt
A9: Payback | B9: Payback Year (Occurs at 10.8 Years) | D9: 0 | E9: 0 | F9: 0 | G9: 0 | H9: 0 | I9: 0 | J9: 0 | K9: 0 | L9: 0 | M9: 0 | N9: 6376.57 | O9: 0 | P9: 0 | Q9: 0 | R9: 0 | S9: 0 | T9: 0 | U9: 0 | V9: 0 | W9: 0 | X9: 0 | Y9: 0 | Z9: 0 | AA9: 0 | AB9: 0
B10: Annual Payback Before Payback Year | D10: 4088.46 | E10: 4274.36 | F10: 4468.69 | G10: 4671.84 | H10: 4884.2 | I10: 5106.19 | J10: 5338.25 | K10: 5580.83 | L10: 5834.4 | M10: 6099.48 | N10: 0 | O10: 0 | P10: 0 | Q10: 0 | R10: 0 | S10: 0 | T10: 0 | U10: 0 | V10: 0 | W10: 0 | X10: 0 | Y10: 0 | Z10: 0 | AA10: 0 | AB10: 0
B11: Annual Payback After Payback Year | D11: 0 | E11: 0 | F11: 0 | G11: 0 | H11: 0 | I11: 0 | J11: 0 | K11: 0 | L11: 0 | M11: 0 | N11: 6376.57 | O11: 6666.22 | P11: 6969 | Q11: 7285.51 | R11: 1476.25 | S11: 7962.2 | T11: 8323.71 | U11: 8701.61 | V11: 9096.62 | W11: 9509.54 | X11: 9941.15 | Y11: 10392.32 | Z11: 10863.93 | AA11: 11356.9 | AB11: 11872.19
A13: All Financing | B13: Annual Costs: Solar plus Line of Credit vs. No Solar | C13: Net Annual Savings when Financed with Line of Credit | D13: Accumulated Net Savings when Financed with Line of Credit | F13: Accumulated Savings | G13: Annual Savings | I13: =IF(FeedIn,"Accumulated Income","Annual Costs") -> Annual Costs
B14: Electric Bill w/o Solar incl. 4.0% inflation | D14: 1 | E14: 2 | F14: 3 | G14: 4 | H14: 5 | I14: 6 | J14: 7 | K14: 8 | L14: 9 | M14: 10 | N14: 11 | O14: 12 | P14: 13 | Q14: 14 | R14: 15 | S14: 16 | T14: 17 | U14: 18 | V14: 19 | W14: 20 | X14: 21 | Y14: 22 | Z14: 23 | AA14: 24 | AB14: 25
B15: Electricity Cost w/o Solar | D15: 4911.7 | E15: 5108.17 | F15: 5312.49 | G15: 5524.99 | H15: 5745.99 | I15: 5975.83 | J15: 6214.87 | K15: 6463.46 | L15: 6722 | M15: 6990.88 | N15: 7270.52 | O15: 7561.34 | P15: 7863.79 | Q15: 8178.34 | R15: 8505.48 | S15: 8845.69 | T15: 9199.52 | U15: 9567.5 | V15: 9950.2 | W15: 10348.21 | X15: 10762.14 | Y15: 11192.63 | Z15: 11640.33 | AA15: 12105.94 | AB15: 12590.18
B16: New Net Cost | D16: 3029.55 | E16: 3464.19 | F16: 3546.16 | G16: 3634.1 | H16: 3728.46 | I16: 3829.76 | J16: 3938.44 | K16: 4055.03 | L16: 4180.08 | M16: 4314.25 | N16: 4458.14 | O16: 4612.47 | P16: 4778.08 | Q16: 2487.2 | R16: 7310.34 | S16: 1147.8 | T16: 1232.2 | U16: 1321.33 | V16: 1415.41 | W16: 1514.7 | X16: 1619.46 | Y16: 1729.95 | Z16: 1846.46 | AA16: 1969.29 | AB16: 2098.74
B17: Cash Flow (Bill w/o Solar less New Net Costs) | D17: 1882.15 | E17: 1643.98 | F17: 1766.34 | G17: 1890.89 | H17: 2017.53 | I17: 2146.08 | J17: 2276.43 | K17: 2408.44 | L17: 2541.92 | M17: 2676.63 | N17: 2812.38 | O17: 2948.86 | P17: 3085.71 | Q17: 5691.14 | R17: 1195.13 | S17: 7697.89 | T17: 7967.32 | U17: 8246.18 | V17: 8534.79 | W17: 8833.51 | X17: 9142.68 | Y17: 9462.68 | Z17: 9793.87 | AA17: 10136.66 | AB17: 10491.44
B18: Cumulative Cash Flow | D18: 1882.15 | E18: 3526.13 | F18: 5292.46 | G18: 7183.36 | H18: 9200.89 | I18: 11346.97 | J18: 13623.4 | K18: 16031.83 | L18: 18573.75 | M18: 21250.38 | N18: 24062.75 | O18: 27011.61 | P18: 30097.32 | Q18: 35788.46 | R18: 36983.6 | S18: 44681.49 | T18: 52648.81 | U18: 60894.99 | V18: 69429.78 | W18: 78263.29 | X18: 87405.97 | Y18: 96868.65 | Z18: 106662.52 | AA18: 116799.17 | AB18: 127290.61
B19: =IF(FeedIn,"",Chart_Financing_Label2) -> Electricity Cost w/o Solar | D19: =IF(FeedIn,0,D15) -> 4911.7 | E19: 5108.17 | F19: 5312.49 | G19: 5524.99 | H19: 5745.99 | I19: 5975.83 | J19: 6214.87 | K19: 6463.46 | L19: 6722 | M19: 6990.88 | N19: 7270.52 | O19: 7561.34 | P19: 7863.79 | Q19: 8178.34 | R19: 8505.48 | S19: 8845.69 | T19: 9199.52 | U19: 9567.5 | V19: 9950.2 | W19: 10348.21 | X19: 10762.14 | Y19: 11192.63 | Z19: 11640.33 | AA19: 12105.94 | AB19: 12590.18
B20: =IF(FeedIn,Chart_Financing_Label5,Chart_Financing_Label3) -> New Net Cost | D20: =IF(FeedIn,D18,D16) -> 3029.55 | E20: 3464.19 | F20: 3546.16 | G20: 3634.1 | H20: 3728.46 | I20: 3829.76 | J20: 3938.44 | K20: 4055.03 | L20: 4180.08 | M20: 4314.25 | N20: 4458.14 | O20: 4612.47 | P20: 4778.08 | Q20: 2487.2 | R20: 7310.34 | S20: 1147.8 | T20: 1232.2 | U20: 1321.33 | V20: 1415.41 | W20: 1514.7 | X20: 1619.46 | Y20: 1729.95 | Z20: 1846.46 | AA20: 1969.29 | AB20: 2098.74
A22: Smart Financing | B22: Electric Bill w/o Solar incl. 5.0% inflation | D22: 1 | E22: 2 | F22: 3 | G22: 4 | H22: 5 | I22: 6 | J22: 7 | K22: 8 | L22: 9 | M22: 10 | N22: 11 | O22: 12 | P22: 13 | Q22: 14 | R22: 15 | S22: 16 | T22: 17 | U22: 18 | V22: 19 | W22: 20 | X22: 21 | Y22: 22 | Z22: 23 | AA22: 24 | AB22: 25
B23: Annual Electric Bill without Solar (including Lifestyle changes, but not Energy Efficiency) | D23: 4444.88 | E23: 4667.13 | F23: 4900.48 | G23: 5145.51 | H23: 5402.78 | I23: 5672.92 | J23: 5956.57 | K23: 6254.4 | L23: 6567.12 | M23: 6895.47 | N23: 7240.25 | O23: 7602.26 | P23: 7982.37 | Q23: 8381.49 | R23: 8800.57 | S23: 9240.6 | T23: 9702.62 | U23: 10187.76 | V23: 10697.14 | W23: 11232 | X23: 11793.6 | Y23: 12383.28 | Z23: 13002.45 | AA23: 13652.57 | AB23: 14335.2
B24: Solar Cost w/ Financing | D24: 5185.43 | E24: 5447.64 | F24: 5552.75 | G24: 5666.01 | H24: 5788.01 | I24: 5919.41 | J24: 6060.91 | K24: 6213.26 | L24: 6377.28 | M24: 6553.82 | N24: 6743.82 | O24: 6948.29 | P24: 7168.3 | Q24: 7405.01 | R24: 13799.76 | S24: 7885.86 | T24: 7986.38 | U24: 8093.61 | V24: 8207.99 | W24: 8329.93 | X24: 8459.91 | Y24: 8598.42 | Z24: 8745.98 | AA24: 8903.14 | AB24: 9070.47
B25: Net Annual Savings (Bill w/o Solar minus New Net Costs) | D25: -740.55 | E25: -780.51 | F25: -652.27 | G25: -520.5 | H25: -385.22 | I25: -246.48 | J25: -104.34 | K25: 41.14 | L25: 189.84 | M25: 341.66 | N25: 496.42 | O25: 653.97 | P25: 814.07 | Q25: 976.48 | R25: -4999.2 | S25: 1354.74 | T25: 1716.25 | U25: 2094.14 | V25: 2489.16 | W25: 2902.07 | X25: 3333.69 | Y25: 3784.86 | Z25: 4256.47 | AA25: 4749.43 | AB25: 5264.73
B26: Accumulated Net Annual Savings (with Financing) | D26: -740.55 | E26: -1521.06 | F26: -2173.33 | G26: -2693.83 | H26: -3079.05 | I26: -3325.54 | J26: -3429.88 | K26: -3388.74 | L26: -3198.89 | M26: -2857.24 | N26: -2360.82 | O26: -1706.85 | P26: -892.78 | Q26: 83.7 | R26: -4915.5 | S26: -3560.76 | T26: -1844.51 | U26: 249.63 | V26: 2738.79 | W26: 5640.86 | X26: 8974.55 | Y26: 12759.41 | Z26: 17015.87 | AA26: 21765.31 | AB26: 27030.03
A28: Month-1 With Financing | B28: No Solar vs. Solar & Line of Credit First Month | C28: Electric Bill Before Solar | D28: New Bill w/ Solar & Line of Credit
B29: Electric Bill | C29: 409.31 | D29: 26.41
B30: Line of Credit Payment | C30: 0 | D30: 329.54
B31: Total | C31: 409.31 | D31: 355.95
A33: Resale | B33: 20 times Annual Savings | D33: 81769.19 | E33: 85487.18 | F33: 89373.82 | G33: 93436.75 | H33: 97683.96 | I33: 102123.77 | J33: 106764.92 | K33: 111616.51 | L33: 116688.08 | M33: 121989.58 | N33: 127531.41 | O33: 133324.46 | P33: 139380.09 | Q33: 145710.18 | R33: 152327.15 | S33: 159243.99 | T33: 166474.27 | U33: 174032.15 | V33: 181932.47 | W33: 190190.71 | X33: 198823.07 | Y33: 207846.47 | Z33: 217278.59 | AA33: 227137.93 | AB33: 237443.8
B34: Remaining savings within 25 years | D34: 177140.42 | E34: 173051.96 | F34: 168777.6 | G34: 164308.91 | H34: 159637.07 | I34: 154752.87 | J34: 149646.69 | K34: 144308.44 | L34: 138727.61 | M34: 132893.21 | N34: 126793.73 | O34: 120417.16 | P34: 113750.94 | Q34: 106781.93 | R34: 99496.42 | S34: 98020.17 | T34: 90057.97 | U34: 81734.26 | V34: 73032.65 | W34: 63936.03 | X34: 54426.49 | Y34: 44485.34 | Z34: 34093.02 | AA34: 23229.09 | AB34: 11872.19
B35: Effective Resale Value (lesser of 20x annual or remaining 25yr savings) | D35: 81769.19 | E35: 85487.18 | F35: 89373.82 | G35: 93436.75 | H35: 97683.96 | I35: 102123.77 | J35: 106764.92 | K35: 111616.51 | L35: 116688.08 | M35: 121989.58 | N35: 126793.73 | O35: 120417.16 | P35: 113750.94 | Q35: 106781.93 | R35: 99496.42 | S35: 98020.17 | T35: 90057.97 | U35: 81734.26 | V35: 73032.65 | W35: 63936.03 | X35: 54426.49 | Y35: 44485.34 | Z35: 34093.02 | AA35: 23229.09 | AB35: 11872.19
A37: Tiers | B37: Horizontal Axis Title: | L37: 373, Tier 1 | O37: 484, Tier 2 | V37: 745, Tier 3 | AF37: 1118, Tier 4 | AL37: Tier 5
B38: After-Solar Top Rate | D38: 11.559 | E38: 11.559 | F38: 11.559 | G38: 11.559 | H38: 11.559 | I38: 11.559 | J38: 11.559 | K38: 11.559 | L38: 0 | M38: 0 | N38: 0 | O38: 0 | P38: 0 | Q38: 0 | R38: 0 | S38: 0 | T38: 0 | U38: 0 | V38: 0 | W38: 0 | X38: 0 | Y38: 0 | Z38: 0 | AA38: 0 | AB38: 0 | AC38: 0 | AD38: 0 | AE38: 0 | AF38: 0 | AG38: 0 | AH38: 0 | AI38: 0 | AJ38: 0 | AK38: 0 | AL38: 0 | AM38: 0 | AN38: 0 | AO38: 0 | AP38: 0 | AQ38: 0 | AR38: 0 | AS38: 0 | AT38: 0 | AU38: 0 | AV38: 0 | AW38: 0 | AX38: 0 | AY38: 0 | AZ38: 0 | BA38: 0
B39: After-Solar Avoided Rate | D39: 0 | E39: 0 | F39: 0 | G39: 0 | H39: 0 | I39: 0 | J39: 0 | K39: 0 | L39: 11.559 | M39: 13.142 | N39: 13.142 | O39: 13.142 | P39: 22.58 | Q39: 22.58 | R39: 22.58 | S39: 22.58 | T39: 22.58 | U39: 22.58 | V39: 22.58 | W39: 31.304 | X39: 31.304 | Y39: 31.304 | Z39: 31.304 | AA39: 31.304 | AB39: 31.304 | AC39: 31.304 | AD39: 31.304 | AE39: 31.304 | AF39: 31.304 | AG39: 35.876 | AH39: 35.876 | AI39: 35.876 | AJ39: 35.876 | AK39: 35.876 | AL39: 35.876 | AM39: 35.876 | AN39: 35.876 | AO39: 35.876 | AP39: 35.876 | AQ39: 35.876 | AR39: 35.876 | AS39: 35.876 | AT39: 35.876 | AU39: 35.876 | AV39: 35.876 | AW39: 35.876 | AX39: 35.876 | AY39: 35.876 | AZ39: 35.876 | BA39: 35.876
B40: Pre-Solar Top Rate | D40: 11.559 | E40: 11.559 | F40: 11.559 | G40: 11.559 | H40: 11.559 | I40: 11.559 | J40: 11.559 | K40: 11.559 | L40: 11.559 | M40: 13.142 | N40: 13.142 | O40: 13.142 | P40: 22.58 | Q40: 22.58 | R40: 22.58 | S40: 22.58 | T40: 22.58 | U40: 22.58 | V40: 22.58 | W40: 31.304 | X40: 31.304 | Y40: 31.304 | Z40: 31.304 | AA40: 31.304 | AB40: 31.304 | AC40: 31.304 | AD40: 31.304 | AE40: 31.304 | AF40: 31.304 | AG40: 35.876 | AH40: 35.876 | AI40: 35.876 | AJ40: 35.876 | AK40: 35.876 | AL40: 35.876 | AM40: 35.876 | AN40: 35.876 | AO40: 35.876 | AP40: 35.876 | AQ40: 35.876 | AR40: 35.876 | AS40: 35.876 | AT40: 35.876 | AU40: 35.876 | AV40: 35.876 | AW40: 35.876 | AX40: 35.876 | AY40: 35.876 | AZ40: 35.876 | BA40: 35.876
A42: Bill Offset | B42: % of Bill Offset | C42: 0.85 | E42: % de Neteo de Factura
B43: New Bill | C43: 0.15 | E43: Nueva Factura
A45: Bill Comparison | B45: Current Bill per month | C45: 450
B46: New Bill per month | C46: 63
A48: Annual Billing & Savings | C48: Without Solar | D48: With Solar | E48: With Solar
B49: Year | C49: Old Bills | D49: New Bills | E49: Electric Bill Savings
B50: 1 | C50: 4987 | D50: 755 | E50: 4232
B51: 2 | C51: 5087 | D51: 802 | E51: 4285
B52: 3 | C52: 5239 | D52: 858 | E52: 4381
B53: 4 | C53: 5449 | D53: 925 | E53: 4524
B54: 5 | C54: 5503 | D54: 968 | E54: 4535
B55: 6 | C55: 5558 | D55: 1012 | E55: 4546
B56: 7 | C56: 5614 | D56: 1056 | E56: 4558
B57: 8 | C57: 5670 | D57: 1101 | E57: 4569
B58: 9 | C58: 5727 | D58: 1146 | E58: 4581
B59: 10 | C59: 5784 | D59: 1192 | E59: 4592
B60: 11 | C60: 5842 | D60: 1238 | E60: 4604
B61: 12 | C61: 5900 | D61: 1285 | E61: 4615
B62: 13 | C62: 5959 | D62: 1333 | E62: 4627
B63: 14 | C63: 6019 | D63: 1381 | E63: 4638
B64: 15 | C64: 6079 | D64: 1429 | E64: 4650
B65: 16 | C65: 6140 | D65: 1479 | E65: 4661
B66: 17 | C66: 6201 | D66: 1528 | E66: 4673
B67: 18 | C67: 6263 | D67: 1579 | E67: 4685
B68: 19 | C68: 6326 | D68: 1630 | E68: 4696
B69: 20 | C69: 6389 | D69: 1681 | E69: 4708
B70: 21 | C70: 6453 | D70: 1733 | E70: 4720
B71: 22 | C71: 6518 | D71: 1786 | E71: 4732
B72: 23 | C72: 6583 | D72: 1839 | E72: 4744
B73: 24 | C73: 6649 | D73: 1893 | E73: 4755
B74: 25 | C74: 6715 | D74: 1948 | E74: 4767
A89: Usage | C89: Jan | D89: 0 | E89: 169 | F89: 1331 | G89: 1500
C90: Feb | D90: 0 | E90: 169 | F90: 1331 | G90: 1500
C91: Mar | D91: 0 | E91: 169 | F91: 1331 | G91: 1500
C92: Apr | D92: 0 | E92: 169 | F92: 1331 | G92: 1500
C93: May | D93: 341 | E93: 239 | F93: 920 | G93: 1500
C94: Jun | D94: 341 | E94: 239 | F94: 920 | G94: 1500
C95: Jul | D95: 341 | E95: 239 | F95: 920 | G95: 1500
C96: Aug | D96: 341 | E96: 239 | F96: 920 | G96: 1500
C97: Sep | D97: 341 | E97: 239 | F97: 920 | G97: 1500
C98: Oct | D98: 341 | E98: 239 | F98: 920 | G98: 1500
C99: Nov | D99: 0 | E99: 169 | F99: 1331 | G99: 1500
C100: Dec | D100: 0 | E100: 169 | F100: 1331 | G100: 1500
A102: Production | C102: Jan | D102: 0 | E102: 0 | F102: 695 | G102: 695
C103: Feb | D103: 0 | E103: 0 | F103: 874 | G103: 874
C104: Mar | D104: 0 | E104: 3 | F104: 1117 | G104: 1120
C105: Apr | D105: 0 | E105: 61 | F105: 1326 | G105: 1388
C106: May | D106: 575 | E106: 407 | F106: 542 | G106: 1523
C107: Jun | D107: 617 | E107: 411 | F107: 540 | G107: 1568
C108: Jul | D108: 649 | E108: 437 | F108: 553 | G108: 1639
C109: Aug | D109: 622 | E109: 414 | F109: 510 | G109: 1546
C110: Sep | D110: 532 | E110: 386 | F110: 471 | G110: 1389
C111: Oct | D111: 406 | E111: 324 | F111: 390 | G111: 1120
C112: Nov | D112: 0 | E112: 0 | F112: 784 | G112: 784
C113: Dec | D113: 0 | E113: 0 | F113: 649 | G113: 649
A115: Usage vs Production | B115: Monthly Usage and Solar Production | C115: Jan | D115: 695 | E115: 805 | F115: 0
B116: Production | C116: Feb | D116: 874 | E116: 626 | F116: 0
B117: Usage | C117: Mar | D117: 1120 | E117: 380 | F117: 0
C118: Apr | D118: 1388 | E118: 112 | F118: 0
C119: May | D119: 0 | E119: 1500 | F119: 23
C120: Jun | D120: 0 | E120: 1500 | F120: 68
C121: Jul | D121: 0 | E121: 1500 | F121: 139
C122: Aug | D122: 0 | E122: 1500 | F122: 46
C123: Sep | D123: 1389 | E123: 111 | F123: 0
C124: Oct | D124: 1120 | E124: 380 | F124: 0
C125: Nov | D125: 784 | E125: 716 | F125: 0
C126: Dec | D126: 649 | E126: 851 | F126: 0
A128: TOU Times | B128: Summer Weekday | D128: 0.4166666667 | E128: 0.125 | F128: 0 | G128: 0.25 | H128: 0 | I128: 0.08333333333 | J128: 0.25 | K128: 0 | L128: 0
B129: Winter Weekday | D129: 0.7083333333 | E129: 0.125 | F129: 0 | G129: 0 | H129: 0 | I129: 0 | J129: 0 | K129: 0 | L129: 0
A131: CA Inflation | D131: 1970 | E131: 1971 | F131: 1972 | G131: 1973 | H131: 1974 | I131: 1975 | J131: 1976 | K131: 1977 | L131: 1978 | M131: 1979 | N131: 1980 | O131: 1981 | P131: 1982 | Q131: 1983 | R131: 1984 | S131: 1985 | T131: 1986 | U131: 1987 | V131: 1988 | W131: 1989 | X131: 1990 | Y131: 1991 | Z131: 1992 | AA131: 1993 | AB131: 1994 | AC131: 1995 | AD131: 1996 | AE131: 1997 | AF131: 1998 | AG131: 1999 | AH131: 2000
B132: Residential | D132: 2.23 | E132: 2.31 | F132: 2.46 | G132: 2.63 | H132: 3.37 | I132: 3.65 | J132: 3.82 | K132: 4.23 | L132: 4.48 | M132: 4.47 | N132: 5.86 | O132: 6.51 | P132: 7.67 | Q132: 7.12 | R132: 7.07 | S132: 7.78 | T132: 7.94 | U132: 8.04 | V132: 8.54 | W132: 9.45 | X132: 9.98 | Y132: 10.79 | Z132: 11.08 | AA132: 11.3 | AB132: 11.43 | AC132: 11.61 | AD132: 11.32 | AE132: 11.32 | AF132: 11.32 | AG132: 11.32 | AH132: 14.4
B133: Small Bus | D133: 1.71 | E133: 1.81 | F133: 1.92 | G133: 2.09 | H133: 2.74 | I133: 2.98 | J133: 3.28 | K133: 4.11 | L133: 4.47 | M133: 4.46 | N133: 6.14 | O133: 6.589 | P133: 7.43 | Q133: 7.31 | R133: 7.52 | S133: 8.06 | T133: 8.25 | U133: 8.01 | V133: 8.24 | W133: 8.64 | X133: 8.98 | Y133: 8.59 | Z133: 9.92 | AA133: 9.99 | AB133: 10.36 | AC133: 10.26 | AD133: 9.78 | AE133: 9.78 | AF133: 9.78 | AG133: 9.78 | AH133: 14.37
A135: House Vs Trees | B135: Scale | D135: 1 | E135: 2 | F135: 3 | G135: 4 | H135: 5 | I135: 6 | J135: 7 | K135: 8 | L135: 9 | M135: 10
B136: House Area | D136: 1 | E136: 0 | F136: 0 | G136: 0 | H136: 0 | I136: 0 | J136: 0 | K136: 0 | L136: 0 | M136: 0
B137: Trees Equivalent Area | D137: 5.90572877 | E137: 5.90572877 | F137: 5.90572877 | G137: 5.90572877 | H137: 5.90572877 | I137: 0 | J137: 0 | K137: 0 | L137: 0 | M137: 0

Sheet OnGrid Charts
C3: OnGrid Charts | H3: Copy and paste the chart to another sheet before modifying its format. | S3: Note: Default chart data is not coherent or realistic -- taken from multiple scenarios

Sheet OnGrid Timelines
B2: Top | C2: After-Tax IRR | E2: Resale | G2: Debt Financing | I2: PPA and Lease
D3: 0 | E3: 1 | F3: 2 | G3: 3 | H3: 4 | I3: 5 | J3: 6 | K3: 7 | L3: 8 | M3: 9 | N3: 10 | O3: 11 | P3: 12 | Q3: 13 | R3: 14 | S3: 15 | T3: 16 | U3: 17 | V3: 18 | W3: 19 | X3: 20 | Y3: 21 | Z3: 22 | AA3: 23 | AB3: 24 | AC3: 25 | AD3: 26 | AE3: 27 | AF3: 28 | AG3: 29 | AH3: 30
B5: OnGrid Timelines | C5: Note: Default timeline numbers are not coherent or realistic -- taken from multiple scenarios
A7: StartRow
A8: RawDataStart
B9: RAW DATA (all numbers are positive) | D9: 0 | E9: 1 | F9: 2 | G9: 3 | H9: 4 | I9: 5 | J9: 6 | K9: 7 | L9: 8 | M9: 9 | N9: 10 | O9: 11 | P9: 12 | Q9: 13 | R9: 14 | S9: 15 | T9: 16 | U9: 17 | V9: 18 | W9: 19 | X9: 20 | Y9: 21 | Z9: 22 | AA9: 23 | AB9: 24 | AC9: 25
B11: SAVINGS / INCOME
A12: RD_OldBill | B12: Old Annual Bill | E12: 3625 | F12: 3770 | G12: 3921 | H12: 4078 | I12: 4241 | J12: 4411 | K12: 4587 | L12: 4770 | M12: 4961 | N12: 5160 | O12: 5366 | P12: 5581 | Q12: 5804 | R12: 6036 | S12: 6278 | T12: 6529 | U12: 6790 | V12: 7061 | W12: 7344 | X12: 7638 | Y12: 7943 | Z12: 8261 | AA12: 8591 | AB12: 8935 | AC12: 9292
A13: RD_NewBill | B13: New Annual Bill | E13: 3194 | F13: 3324 | G13: 3459 | H13: 3600 | I13: 3746 | J13: 3899 | K13: 4057 | L13: 4222 | M13: 4394 | N13: 4572 | O13: 4758 | P13: 4951 | Q13: 5153 | R13: 5362 | S13: 5580 | T13: 5806 | U13: 6042 | V13: 6288 | W13: 6543 | X13: 6809 | Y13: 7085 | Z13: 7373 | AA13: 7672 | AB13: 7984 | AC13: 8308
A14: RD_AvoidedElectricBill | B14: Annual Savings | E14: 431 | F14: 446 | G14: 462 | H14: 478 | I14: 495 | J14: 512 | K14: 530 | L14: 548 | M14: 568 | N14: 587 | O14: 608 | P14: 629 | Q14: 651 | R14: 674 | S14: 698 | T14: 722 | U14: 747 | V14: 774 | W14: 801 | X14: 829 | Y14: 858 | Z14: 888 | AA14: 919 | AB14: 951 | AC14: 984
A15: RD_LostFedDeduction | B15: Lost Federal Tax Deduction | E15: 101 | F15: 105 | G15: 108 | H15: 112 | I15: 116 | J15: 120 | K15: 124 | L15: 129 | M15: 133 | N15: 138 | O15: 143 | P15: 148 | Q15: 153 | R15: 158 | S15: -1548 | T15: 169 | U15: 175 | V15: 181 | W15: 188 | X15: 194 | Y15: 201 | Z15: 208 | AA15: 215 | AB15: 223 | AC15: 231
A16: RD_LostStateDeduction | B16: Lost State Tax Deduction | E16: 26 | F16: 26 | G16: 27 | H16: 28 | I16: 29 | J16: 30 | K16: 31 | L16: 32 | M16: 34 | N16: 35 | O16: 36 | P16: 37 | Q16: 39 | R16: 40 | S16: -391 | T16: 43 | U16: 44 | V16: 46 | W16: 47 | X16: 49 | Y16: 51 | Z16: 53 | AA16: 54 | AB16: 56 | AC16: 58
A17: RD_AvoidedFedTaxOnStateDed | B17: Fed Tax Benefit on State Tax Deduction Loss | E17: 9 | F17: 9 | G17: 10 | H17: 10 | I17: 10 | J17: 11 | K17: 11 | L17: 11 | M17: 12 | N17: 12 | O17: 13 | P17: 13 | Q17: 14 | R17: 14 | S17: -137 | T17: 15 | U17: 15 | V17: 16 | W17: 17 | X17: 17 | Y17: 18 | Z17: 18 | AA17: 19 | AB17: 20 | AC17: 20
A18: RD_FeedInIncome | B18: Feed-In Tariff Income | E18: 0 | F18: 0 | G18: 0 | H18: 0 | I18: 0 | J18: 0 | K18: 0 | L18: 0 | M18: 0 | N18: 0 | O18: 0 | P18: 0 | Q18: 0 | R18: 0 | S18: 0 | T18: 0 | U18: 0 | V18: 0 | W18: 0 | X18: 0 | Y18: 0 | Z18: 0 | AA18: 0 | AB18: 0 | AC18: 0
A19: RD_FedStateTaxOnFeedIn | B19: Fed & State Tax on Feed-In Income | E19: 0 | F19: 0 | G19: 0 | H19: 0 | I19: 0 | J19: 0 | K19: 0 | L19: 0 | M19: 0 | N19: 0 | O19: 0 | P19: 0 | Q19: 0 | R19: 0 | S19: 0 | T19: 0 | U19: 0 | V19: 0 | W19: 0 | X19: 0 | Y19: 0 | Z19: 0 | AA19: 0 | AB19: 0 | AC19: 0
A20: RD_RecPayments | B20: REC Income | E20: 566 | F20: 563 | G20: 560 | H20: 557 | I20: 554 | J20: 552 | K20: 549 | L20: 546 | M20: 543 | N20: 541 | O20: 538 | P20: 535 | Q20: 533 | R20: 530 | S20: 527 | T20: 900 | U20: 895 | V20: 891 | W20: 886 | X20: 882 | Y20: 1170 | Z20: 1164 | AA20: 1159 | AB20: 1153 | AC20: 1147
A21: RD_FedStateTaxonRec | B21: Fed and State Tax on REC Income | E21: 230 | F21: 229 | G21: 228 | H21: 227 | I21: 226 | J21: 225 | K21: 224 | L21: 223 | M21: 221 | N21: 220 | O21: 219 | P21: 218 | Q21: 217 | R21: 216 | S21: 215 | T21: 367 | U21: 365 | V21: 363 | W21: 361 | X21: 359 | Y21: 477 | Z21: 474 | AA21: 472 | AB21: 470 | AC21: 467
A22: RD_NetSavings | B22: NET SAVINGS | E22: 649 | F22: 658 | G22: 669 | H22: 678 | I22: 688 | J22: 700 | K22: 711 | L22: 721 | M22: 735 | N22: 747 | O22: 761 | P22: 774 | Q22: 789 | R22: 804 | S22: 2812 | T22: 1058 | U22: 1073 | V22: 1091 | W22: 1108 | X22: 1126 | Y22: 1317 | Z22: 1335 | AA22: 1356 | AB22: 1375 | AC22: 1395
A23: RD_NetFeedIn | B23: NET FEED-IN
B25: SAVINGS OR INCOME - SYSTEM HOST
A26: RD_SysHost_LostTaxDeduction | B26: Total Net Tax Deduction Loss | E26: 0 | F26: 0 | G26: 0 | H26: 0 | I26: 0 | J26: 0 | K26: 0 | L26: 0 | M26: 0 | N26: 0 | O26: 0 | P26: 0 | Q26: 0 | R26: 0 | S26: 0 | T26: 0 | U26: 0 | V26: 0 | W26: 0 | X26: 0 | Y26: 0 | Z26: 0 | AA26: 0 | AB26: 0 | AC26: 0
A27: RD_SysHost_FedStateTaxOnFeedIn | B27: Fed & State Tax on Feed-In Income | E27: 13474.45582 | F27: 13407.08354 | G27: 13340.04812 | H27: 13273.34788 | I27: 13206.98114 | J27: 13140.94624 | K27: 13075.24151 | L27: 13009.8653 | M27: 12944.81597 | N27: 12880.09189 | O27: 12815.69143 | P27: 12751.61297 | Q27: 12687.85491 | R27: 12624.41564 | S27: 12561.29356 | T27: 12498.48709 | U27: 12435.99465 | V27: 12373.81468 | W27: 12311.94561 | X27: 12250.38588 | Y27: 12189.13395 | Z27: 12128.18828 | AA27: 12067.54734 | AB27: 12007.2096 | AC27: 11947.17355
A28: RD_SysHost_NetSavings | B28: NET SAVINGS | E28: 0 | F28: 0 | G28: 0 | H28: 0 | I28: 0 | J28: 0 | K28: 0 | L28: 0 | M28: 0 | N28: 0 | O28: 0 | P28: 0 | Q28: 0 | R28: 0 | S28: 0 | T28: 0 | U28: 0 | V28: 0 | W28: 0 | X28: 0 | Y28: 0 | Z28: 0 | AA28: 0 | AB28: 0 | AC28: 0
A29: RD_SysHost_NetFeedIn | B29: NET FEED-IN | E29: 19594.93951 | F29: 19496.96481 | G29: 19399.47998 | H29: 19302.48258 | I29: 19205.97017 | J29: 19109.94032 | K29: 19014.39062 | L29: 18919.31867 | M29: 18824.72207 | N29: 18730.59846 | O29: 18636.94547 | P29: 18543.76074 | Q29: 18451.04194 | R29: 18358.78673 | S29: 18266.9928 | T29: 18175.65783 | U29: 18084.77954 | V29: 17994.35564 | W29: 17904.38387 | X29: 17814.86195 | Y29: 17725.78764 | Z29: 17637.1587 | AA29: 17548.97291 | AB29: 17461.22804 | AC29: 17373.9219
B31: COSTS & OPERATING EXPENSES
A32: RD_SystemCost | B32: System Capital Cost | D32: 49598
A33: RD_EnergyEffCost | B33: Energy Efficiency Net Expense | D33: 250
A34: RD_SystemMaint | B34: System Maintenance | E34: 122 | F34: 127 | G34: 131 | H34: 136 | I34: 140 | J34: 145 | K34: 150 | L34: 156 | M34: 161 | N34: 167 | O34: 172 | P34: 178 | Q34: 185 | R34: 191 | S34: 198 | T34: 205 | U34: 212 | V34: 219 | W34: 227 | X34: 235 | Y34: 243 | Z34: 252 | AA34: 261 | AB34: 270 | AC34: 279
A35: RD_InverterRepl | B35: Inverter Replacement | E35: 0 | F35: 0 | G35: 0 | H35: 0 | I35: 0 | J35: 0 | K35: 0 | L35: 0 | M35: 0 | N35: 0 | O35: 0 | P35: 0 | Q35: 0 | R35: 0 | S35: 4890 | T35: 0 | U35: 0 | V35: 0 | W35: 0 | X35: 0 | Y35: 0 | Z35: 0 | AA35: 0 | AB35: 0 | AC35: 0
A36: RD_MonitoringCost | B36: Monitoring Cost | E36: 20 | F36: 21 | G36: 21 | H36: 22 | I36: 23 | J36: 24 | K36: 25 | L36: 25 | M36: 26 | N36: 27 | O36: 28 | P36: 29 | Q36: 30 | R36: 31 | S36: 32 | T36: 34 | U36: 35 | V36: 36 | W36: 37 | X36: 38 | Y36: 40 | Z36: 41 | AA36: 43 | AB36: 44 | AC36: 46
A37: RD_NetCostTaxDeduction | B37: Total Net Tax Deduction | E37: 54.25346891 | F37: 56.15234032 | G37: 58.11767223 | H37: 60.15179076 | I37: 62.25710344 | J37: 64.43610206 | K37: 66.69136563 | L37: 69.02556343 | M37: 71.44145815 | N37: 73.94190918 | O37: 76.529876 | P37: 79.20842167 | Q37: 81.98071642 | R37: 84.8500415 | S37: 2820.25568 | T37: 90.8934857 | U37: 94.0747577 | V37: 97.36737422 | W37: 100.7752323 | X37: 104.3023655 | Y37: 107.9529482 | Z37: 111.7313014 | AA37: 115.641897 | AB37: 119.6893634 | AC37: 123.8784911
A38: RD_NetCosts | B38: NET COSTS | D38: 49848 | E38: 142 | F38: 148 | G38: 152 | H38: 158 | I38: 163 | J38: 169 | K38: 175 | L38: 181 | M38: 187 | N38: 194 | O38: 200 | P38: 207 | Q38: 215 | R38: 222 | S38: 5120 | T38: 239 | U38: 247 | V38: 255 | W38: 264 | X38: 273 | Y38: 283 | Z38: 293 | AA38: 304 | AB38: 314 | AC38: 325
B40: INCENTIVES / TAX BENEFITS
A41: RD_Rebate | B41: Rebate | D41: 2934
A42: RD_FedTaxOnRebate | B42: Fed Tax on Rebate | E42: 1027
A43: RD_Grant | B43: State/Local Grant | D43: 1000
A44: RD_FedStateTaxOnGrant | B44: Fed & State Tax on Grant | E44: 350
A45: RD_PbiPayments | B45: PBI Income | E45: 808 | F45: 804 | G45: 800 | H45: 796 | I45: 792 | J45: 788 | K45: 784 | L45: 780 | M45: 776 | N45: 773 | O45: 769 | P45: 765 | Q45: 761 | R45: 757 | S45: 754 | T45: 750 | U45: 746 | V45: 742 | W45: 739 | X45: 735 | Y45: 0 | Z45: 0 | AA45: 0 | AB45: 0 | AC45: 0
A46: RD_FedTaxOnPbi | B46: Fed Tax on PBI Income | E46: 283 | F46: 281 | G46: 280 | H46: 279 | I46: 277 | J46: 276 | K46: 274 | L46: 273 | M46: 272 | N46: 270 | O46: 269 | P46: 268 | Q46: 266 | R46: 265 | S46: 264 | T46: 262 | U46: 261 | V46: 260 | W46: 259 | X46: 257 | Y46: 0 | Z46: 0 | AA46: 0 | AB46: 0 | AC46: 0
A47: RD_FedTaxCredit | B47: Fed Tax Credit | D47: 0 | E47: 14879 | F47: 0 | G47: 0 | H47: 0 | I47: 0 | J47: 0 | K47: 0 | L47: 0 | M47: 0 | N47: 0 | O47: 0 | P47: 0 | Q47: 0 | R47: 0 | S47: 0 | T47: 0 | U47: 0 | V47: 0 | W47: 0 | X47: 0 | Y47: 0 | Z47: 0 | AA47: 0 | AB47: 0 | AC47: 0
A48: RD_StateTaxCredit | B48: State Tax Credit | D48: 0 | E48: 6850 | F48: 0 | G48: 0 | H48: 0 | I48: 0 | J48: 0 | K48: 0 | L48: 0 | M48: 0 | N48: 0 | O48: 0 | P48: 0 | Q48: 0 | R48: 0 | S48: 0 | T48: 0 | U48: 0 | V48: 0 | W48: 0 | X48: 0 | Y48: 0 | Z48: 0 | AA48: 0 | AB48: 0 | AC48: 0
A49: RD_FedTaxOnStateCredit | B49: Fed Tax on State Tax Credit | E49: 2397 | F49: 0 | G49: 0 | H49: 0 | I49: 0 | J49: 0 | K49: 0 | L49: 0 | M49: 0 | N49: 0 | O49: 0 | P49: 0 | Q49: 0 | R49: 0 | S49: 0 | T49: 0 | U49: 0 | V49: 0 | W49: 0 | X49: 0 | Y49: 0 | Z49: 0 | AA49: 0 | AB49: 0 | AC49: 0
A50: RD_FedDepr | B50: Fed Depr | E50: 8853 | F50: 2361 | G50: 1417 | H50: 848 | I50: 848 | J50: 428 | K50: 0 | L50: 0 | M50: 0 | N50: 0 | O50: 0 | P50: 0 | Q50: 0 | R50: 0 | S50: 0 | T50: 0 | U50: 0 | V50: 0 | W50: 0 | X50: 0 | Y50: 0 | Z50: 0 | AA50: 0 | AB50: 0 | AC50: 0
A51: RD_StateDepr | B51: State Depr | E51: 336 | F51: 336 | G51: 336 | H51: 336 | I51: 336 | J51: 336 | K51: 336 | L51: 336 | M51: 336 | N51: 336 | O51: 336 | P51: 336 | Q51: 0 | R51: 0 | S51: 0 | T51: 0 | U51: 0 | V51: 0 | W51: 0 | X51: 0 | Y51: 0 | Z51: 0 | AA51: 0 | AB51: 0 | AC51: 0
A52: RD_FedTaxOnStateDepr | B52: Fed Tax on State Depr | E52: 118 | F52: 118 | G52: 118 | H52: 118 | I52: 118 | J52: 118 | K52: 118 | L52: 118 | M52: 118 | N52: 118 | O52: 118 | P52: 118 | Q52: 0 | R52: 0 | S52: 0 | T52: 0 | U52: 0 | V52: 0 | W52: 0 | X52: 0 | Y52: 0 | Z52: 0 | AA52: 0 | AB52: 0 | AC52: 0
A53: RD_NetIncentives | B53: TOTAL INCENTIVES | D53: 3934 | E53: 27551 | F53: 3102 | G53: 2155 | H53: 1583 | I53: 1581 | J53: 1158 | K53: 728 | L53: 725 | M53: 722 | N53: 721 | O53: 718 | P53: 715 | Q53: 495 | R53: 492 | S53: 490 | T53: 488 | U53: 485 | V53: 482 | W53: 480 | X53: 478 | Y53: 0 | Z53: 0 | AA53: 0 | AB53: 0 | AC53: 0
B55: SYSTEM HOST AS SYSTEM OWNER (for cash-purchase comparison with lease or PPA)
A56: RD_SysHostAsOwner_NetSavings | B56: NET SAVINGS | E56: 2808 | F56: 2869 | G56: 2932 | H56: 2998 | I56: 3066 | J56: 3136 | K56: 3210 | L56: 3286 | M56: 3365 | N56: 3446 | O56: 2640 | P56: 2733 | Q56: 2828 | R56: 2927 | S56: 3030 | T56: 3136 | U56: 3246 | V56: 3359 | W56: 3477 | X56: 3599 | Y56: 3725 | Z56: 3855 | AA56: 3990 | AB56: 4129 | AC56: 4274
A57: RD_SysHostAsOwner_NetFeedIn | B57: NET FEED-IN | E57: 0 | F57: 0 | G57: 0 | H57: 0 | I57: 0 | J57: 0 | K57: 0 | L57: 0 | M57: 0 | N57: 0 | O57: 0 | P57: 0 | Q57: 0 | R57: 0 | S57: 0 | T57: 0 | U57: 0 | V57: 0 | W57: 0 | X57: 0 | Y57: 0 | Z57: 0 | AA57: 0 | AB57: 0 | AC57: 0
A58: RD_SysHostAsOwner_NetCosts | B58: NET COSTS | D58: 84672 | E58: 338 | F58: 350 | G58: 362 | H58: 374 | I58: 388 | J58: 401 | K58: 415 | L58: 430 | M58: 445 | N58: 460 | O58: 175 | P58: 182 | Q58: 188 | R58: 195 | S58: 4165 | T58: 208 | U58: 216 | V58: 223 | W58: 231 | X58: 239 | Y58: 248 | Z58: 256 | AA58: 265 | AB58: 274 | AC58: 284
A59: RD_SysHostAsOwner_NetIncentives | B59: NET INCENTIVES | D59: 32019 | E59: 15405 | F59: 4737 | G59: 3123 | H59: 2152 | I59: 2150 | J59: 1431 | K59: 699 | L59: 400 | M59: 400 | N59: 400 | O59: 400 | P59: 400 | Q59: 0 | R59: 0 | S59: 0 | T59: 0 | U59: 0 | V59: 0 | W59: 0 | X59: 0 | Y59: 0 | Z59: 0 | AA59: 0 | AB59: 0 | AC59: 0
A61: RawDataEnd
A66: IRRPreTaxStart | B66: Residential Pre-Tax Analysis | C66: After-Tax amounts are adjusted to pre-tax equivalents. Pre-Tax amounts are not adjusted
A67: YearLabel | Q67: Year:
A68: SavingsLabel | B68: Operating Savings: | D68: 0 | E68: 1 | F68: 2 | G68: 3 | H68: 4 | I68: 5 | J68: 6 | K68: 7 | L68: 8 | M68: 9 | N68: 10 | O68: 11 | P68: 12 | Q68: 13 | R68: 14 | S68: 15 | T68: 16 | U68: 17 | V68: 18 | W68: 19 | X68: 20 | Y68: 21 | Z68: 22 | AA68: 23 | AB68: 24 | AC68: 25
A69: AvoidedElectricBill | B69: Avoided Electricity Purchases / Annual Savings | E69: 8078 | F69: 8361 | G69: 8654 | H69: 8956 | I69: 9270 | J69: 9594 | K69: 9930 | L69: 10278 | M69: 10638 | N69: 11010 | O69: 11395 | P69: 11794 | Q69: 12207 | R69: 12634 | S69: 13076 | T69: 13534 | U69: 14008 | V69: 14498 | W69: 15005 | X69: 15530 | Y69: 16074 | Z69: 16637 | AA69: 17219 | AB69: 17822 | AC69: 18445
A70: RecPayments | B70: REC (Green Tag) Income | E70: 2300 | F70: 2289 | G70: 2277 | H70: 2266 | I70: 2255 | J70: 2243 | K70: 2232 | L70: 2221 | M70: 2210 | N70: 2199 | O70: 2188 | P70: 2177 | Q70: 2816 | R70: 2802 | S70: 2788 | T70: 2774 | U70: 2761 | V70: 0 | W70: 0 | X70: 0 | Y70: 0 | Z70: 0 | AA70: 0 | AB70: 0 | AC70: 0
A72: SystemCostLabel | B72: System Cost & Incentives:
A73: SystemCost | B73: System Capital Cost with Fees, before Rebates | D73: -71301
A74: Rebate&Grant | B74: Rebates & Grants | D74: 9735
A75: PbiPayments | B75: Performance Based Incentive | E75: 5060 | F75: 5035 | G75: 5010 | H75: 4985 | I75: 4960 | J75: 0 | K75: 0 | L75: 0 | M75: 0 | N75: 0 | O75: 0 | P75: 0 | Q75: 0 | R75: 0 | S75: 0 | T75: 0 | U75: 0 | V75: 0 | W75: 0 | X75: 0 | Y75: 0 | Z75: 0 | AA75: 0 | AB75: 0 | AC75: 0
A76: EnergyEffCost | B76: Energy Efficiency Net Expense | D76: 0
A78: ExpensesLabel | B78: Operating Expenses:
A79: SystemMaint | B79: System Maintenance at 0.25% of gross system cost per year | E79: -282 | F79: -292 | G79: -302 | H79: -313 | I79: -324 | J79: -335 | K79: -347 | L79: -359 | M79: -372 | N79: -385 | O79: -398 | P79: -412 | Q79: -427 | R79: -442 | S79: -457 | T79: -473 | U79: -490 | V79: -507 | W79: -524 | X79: -543 | Y79: -562 | Z79: -581 | AA79: -602 | AB79: -623 | AC79: -645
A80: InverterRepl | B80: Inverter Replacement at $700 per kW in Year 15 | E80: 0 | F80: 0 | G80: 0 | H80: 0 | I80: 0 | J80: 0 | K80: 0 | L80: 0 | M80: 0 | N80: 0 | O80: 0 | P80: 0 | Q80: 0 | R80: 0 | S80: -6195 | T80: 0 | U80: 0 | V80: 0 | W80: 0 | X80: 0 | Y80: 0 | Z80: 0 | AA80: 0 | AB80: 0 | AC80: 0
A81: MonitoringCost | B81: Monitoring Cost | E81: -478 | F81: -495 | G81: -513 | H81: -530 | I81: -549 | J81: 0 | K81: 0 | L81: 0 | M81: 0 | N81: 0 | O81: 0 | P81: 0 | Q81: 0 | R81: 0 | S81: 0 | T81: 0 | U81: 0 | V81: 0 | W81: 0 | X81: 0 | Y81: 0 | Z81: 0 | AA81: 0 | AB81: 0 | AC81: 0
A83: OperatingProfitLoss | B83: Operating Profit (loss): | D83: -61566 | E83: 14678 | F83: 14897 | G83: 15126 | H83: 15364 | I83: 15612 | J83: 11502 | K83: 11815 | L83: 12140 | M83: 12476 | N83: 12824 | O83: 13185 | P83: 13559 | Q83: 14596 | R83: 14995 | S83: 9213 | T83: 15835 | U83: 16279 | V83: 13991 | W83: 14481 | X83: 14988 | Y83: 15512 | Z83: 16055 | AA83: 16617 | AB83: 17199 | AC83: 17801
A85: TaxEffectsLabel | B85: Federal & State Tax Effects:
A86: FedTaxOnIncentives | B86: Federal and State Tax on RECs. | E86: -798 | F86: -794 | G86: -790 | H86: -786 | I86: -782 | J86: -778 | K86: -774 | L86: -771 | M86: -767 | N86: -763 | O86: -759 | P86: -755 | Q86: -977 | R86: -972 | S86: -967 | T86: -963 | U86: -958 | V86: 0 | W86: 0 | X86: 0 | Y86: 0 | Z86: 0 | AA86: 0 | AB86: 0 | AC86: 0
A88: FedTaxCreditBasis | B88: Federal Tax Credit Basis | D88: 61566
A89: FedTaxCredit | B89: 30% Federal Tax Credit | D89: 0 | E89: 29457 | F89: 0 | G89: 0 | H89: 0 | I89: 0 | J89: 0 | K89: 0 | L89: 0 | M89: 0 | N89: 0 | O89: 0 | P89: 0 | Q89: 0 | R89: 0 | S89: 0 | T89: 0 | U89: 0 | V89: 0 | W89: 0 | X89: 0 | Y89: 0 | Z89: 0 | AA89: 0 | AB89: 0 | AC89: 0
A91: StateTaxCreditBasis | B91: State Tax Credit Basis | D91: 61566 | F91: 0 | G91: 0 | H91: 0
A92: StateTaxCredit | B92: 10.0% State Tax Credit | D92: 0 | E92: 9819 | F92: 0 | G92: 0 | H92: 0 | I92: 0 | J92: 0 | K92: 0 | L92: 0 | M92: 0 | N92: 0 | O92: 0 | P92: 0 | Q92: 0 | R92: 0 | S92: 0 | T92: 0 | U92: 0 | V92: 0 | W92: 0 | X92: 0 | Y92: 0 | Z92: 0 | AA92: 0 | AB92: 0 | AC92: 0
A93: FedTaxOnStateCredit | B93: Fed Tax on State Tax Credit | E93: 0 | F93: -2749 | G93: 0 | H93: 0 | I93: 0 | J93: 0 | K93: 0 | L93: 0 | M93: 0 | N93: 0 | O93: 0 | P93: 0 | Q93: 0 | R93: 0 | S93: 0 | T93: 0 | U93: 0 | V93: 0 | W93: 0 | X93: 0 | Y93: 0 | Z93: 0 | AA93: 0 | AB93: 0 | AC93: 0
B94: 10% Local Tax Credit (not currently active)
B95: Federal Tax on Local Tax Credit (not currently active)
A97: FedDeprBasis | B97: Federal Depr Basis: Fed Tax Credit Basis minus 1/2 the Fed Credit | E97: 277711
A98: StateDeprBasis | B98: State Depr Basis: System Cost after fees | E98: 326719
A99: FedDeprPercent | B99: MACRS 5 year Accelerated Federal Depreciation (%) | E99: 0.2 | F99: 0.32 | G99: 0.192 | H99: 0.115 | I99: 0.115 | J99: 0.058
A100: StateDeprPercent | B100: MACRS 5 year Accelerated State Depreciation (%) | E100: 0.2 | F100: 0.32 | G100: 0.192 | H100: 0.115 | I100: 0.115 | J100: 0.058
A101: DeprLabel | C101: 25 year sum total:
A102: FedDepr | B102: MACRS 5 year Accelerated Federal Depreciation | C102: 97199 | E102: 19440 | F102: 31104 | G102: 18662 | H102: 11178 | I102: 11178 | J102: 5638 | K102: 0 | L102: 0 | M102: 0 | N102: 0 | O102: 0 | P102: 0 | Q102: 0 | R102: 0 | S102: 0 | T102: 0 | U102: 0 | V102: 0 | W102: 0 | X102: 0 | Y102: 0 | Z102: 0 | AA102: 0 | AB102: 0 | AC102: 0
A103: StateDepr | B103: MACRS 5 year Accelerated State Depreciation | C103: 22766 | E103: 4553 | F103: 7285 | G103: 4371 | H103: 2618 | I103: 2618 | J103: 1320 | K103: 0 | L103: 0 | M103: 0 | N103: 0 | O103: 0 | P103: 0 | Q103: 0 | R103: 0 | S103: 0 | T103: 0 | U103: 0 | V103: 0 | W103: 0 | X103: 0 | Y103: 0 | Z103: 0 | AA103: 0 | AB103: 0 | AC103: 0
A104: FedTaxOnStateDepr | B104: Fed Tax on State Depreciation | C104: -7968 | E104: -1594 | F104: -2550 | G104: -1530 | H104: -916 | I104: -916 | J104: -462 | K104: 0 | L104: 0 | M104: 0 | N104: 0 | O104: 0 | P104: 0 | Q104: 0 | R104: 0 | S104: 0 | T104: 0 | U104: 0 | V104: 0 | W104: 0 | X104: 0 | Y104: 0 | Z104: 0 | AA104: 0 | AB104: 0 | AC104: 0
A105: TotalDepr | B105: Total Depr Value: | C105: 111997 | E105: 22399 | F105: 35839 | G105: 21503 | H105: 12880 | I105: 12880 | J105: 6496 | K105: 0 | L105: 0 | M105: 0 | N105: 0 | O105: 0 | P105: 0 | Q105: 0 | R105: 0 | S105: 0 | T105: 0 | U105: 0 | V105: 0 | W105: 0 | X105: 0 | Y105: 0 | Z105: 0 | AA105: 0 | AB105: 0 | AC105: 0
A107: LostFedDeduction | B107: Value of lost Federal tax deduction of electricity expense | E107: -1607 | F107: -1681 | G107: -1759 | H107: -1841 | I107: -1926 | J107: -2015 | K107: -2109 | L107: -2206 | M107: -2308 | N107: -2415 | O107: -2527 | P107: -2644 | Q107: -2766 | R107: -2894 | S107: 3508 | T107: -3168 | U107: -3314 | V107: -3467 | W107: -3627 | X107: -3794 | Y107: -3969 | Z107: -4153 | AA107: -4344 | AB107: -4544 | AC107: -4754
A108: LostStateDeduction | B108: Value of lost State tax deduction of electricity expense | E108: -320 | F108: -335 | G108: -350 | H108: -366 | I108: -383 | J108: -401 | K108: -420 | L108: -439 | M108: -460 | N108: -481 | O108: -503 | P108: -526 | Q108: -551 | R108: -576 | S108: 698 | T108: -631 | U108: -660 | V108: -690 | W108: -722 | X108: -755 | Y108: -790 | Z108: -827 | AA108: -865 | AB108: -905 | AC108: -946
A109: AvoidedFedTaxOnStateDed | B109: Fed Tax Benefit on State deduction loss of electricity expense | E109: 112 | F109: 117 | G109: 123 | H109: 128 | I109: 134 | J109: 140 | K109: 147 | L109: 154 | M109: 161 | N109: 168 | O109: 176 | P109: 184 | Q109: 193 | R109: 202 | S109: -244 | T109: 221 | U109: 231 | V109: 242 | W109: 253 | X109: 264 | Y109: 277 | Z109: 289 | AA109: 303 | AB109: 317 | AC109: 331
A111: NetAnnualProfitLoss | B111: Pre-Tax Net Annual Profit/Loss for IRR | D111: -61566 | E111: 53156 | F111: 11354 | G111: 14335 | H111: 14577 | I111: 14829 | J111: 10724 | K111: 11041 | L111: 11369 | M111: 11709 | N111: 12061 | O111: 12061 | P111: 12804 | Q111: 13619 | R111: 14023 | S111: 8245 | T111: 14873 | U111: 15321 | V111: 13991 | W111: 14481 | X111: 14988 | Y111: 15512 | Z111: 16055 | AA111: 16617 | AB111: 17199 | AC111: 17801
A112: IrrCashFlow | B112: Pre-Tax Cash Flow, Cumulative | D112: -61566 | E112: -8410 | F112: 2944 | G112: 17279 | H112: 31857 | I112: 46686 | J112: 57410 | K112: 68451 | L112: 79820 | M112: 91529 | N112: 103590 | O112: 116016 | P112: 128820 | Q112: 142439 | R112: 156462 | S112: 164707 | T112: 179580 | U112: 194901 | V112: 208892 | W112: 223373 | X112: 238360 | Y112: 253873 | Z112: 269928 | AA112: 286545 | AB112: 303744 | AC112: 321544
A115: IRRPreTaxEnd
A118: IRRAfterTaxStart | B118: After-Tax Only Payback Analysis | C118: Includes all factors
A119: YearLabel | Q119: Year:
A120: SavingsLabel | B120: Operating Savings: | D120: 0 | E120: 1 | F120: 2 | G120: 3 | H120: 4 | I120: 5 | J120: 6 | K120: 7 | L120: 8 | M120: 9 | N120: 10 | O120: 11 | P120: 12 | Q120: 13 | R120: 14 | S120: 15 | T120: 16 | U120: 17 | V120: 18 | W120: 19 | X120: 20 | Y120: 21 | Z120: 22 | AA120: 23 | AB120: 24 | AC120: 25
A121: AvoidedElectricBill | B121: Avoided Electricity Purchases / Annual Savings | E121: 5065 | F121: 5242 | G121: 5426 | H121: 5616 | I121: 5812 | J121: 6016 | K121: 6226 | L121: 6444 | M121: 6670 | N121: 6903 | O121: 7145 | P121: 7395 | Q121: 7654 | R121: 7922 | S121: 8199 | T121: 8486 | U121: 8783 | V121: 9090 | W121: 9408 | X121: 9738 | Y121: 10078 | Z121: 10431 | AA121: 10796 | AB121: 11174 | AC121: 11565
A122: RecPayments | B122: REC (Green Tag) Income | E122: 1442 | F122: 1435 | G122: 1428 | H122: 1421 | I122: 1414 | J122: 1407 | K122: 1400 | L122: 1393 | M122: 1386 | N122: 1379 | O122: 1372 | P122: 1365 | Q122: 1766 | R122: 1757 | S122: 1748 | T122: 1740 | U122: 1731 | V122: 0 | W122: 0 | X122: 0 | Y122: 0 | Z122: 0 | AA122: 0 | AB122: 0 | AC122: 0
A124: SystemCostLabel | B124: System Cost & Incentives:
A125: SystemCost | B125: System Capital Cost with Fees, before Rebates | D125: -71301
A126: Rebate&Grant | B126: Rebates & Grants | D126: 9735
A127: PbiPayments | B127: Performance Based Incentive | E127: 3173 | F127: 3157 | G127: 3141 | H127: 3125 | I127: 3110 | J127: 0 | K127: 0 | L127: 0 | M127: 0 | N127: 0 | O127: 0 | P127: 0 | Q127: 0 | R127: 0 | S127: 0 | T127: 0 | U127: 0 | V127: 0 | W127: 0 | X127: 0 | Y127: 0 | Z127: 0 | AA127: 0 | AB127: 0 | AC127: 0
A128: EnergyEffCost | B128: Energy Efficiency Net Expense | D128: 0
A130: ExpensesLabel | B130: Operating Expenses:
A131: SystemMaint | B131: System Maintenance at 0.25% of gross system cost per year | E131: -177 | F131: -183 | G131: -190 | H131: -196 | I131: -203 | J131: -210 | K131: -218 | L131: -225 | M131: -233 | N131: -241 | O131: -250 | P131: -258 | Q131: -267 | R131: -277 | S131: -287 | T131: -297 | U131: -307 | V131: -318 | W131: -329 | X131: -340 | Y131: -352 | Z131: -365 | AA131: -377 | AB131: -390 | AC131: -404
A132: InverterRepl | B132: Inverter Replacement at $700 per kW in Year 15 | E132: 0 | F132: 0 | G132: 0 | H132: 0 | I132: 0 | J132: 0 | K132: 0 | L132: 0 | M132: 0 | N132: 0 | O132: 0 | P132: 0 | Q132: 0 | R132: 0 | S132: -6195 | T132: 0 | U132: 0 | V132: 0 | W132: 0 | X132: 0 | Y132: 0 | Z132: 0 | AA132: 0 | AB132: 0 | AC132: 0
A133: MonitoringCost | B133: Monitoring Cost | E133: -300 | F133: -311 | G133: -321 | H133: -333 | I133: -344 | J133: 0 | K133: 0 | L133: 0 | M133: 0 | N133: 0 | O133: 0 | P133: 0 | Q133: 0 | R133: 0 | S133: 0 | T133: 0 | U133: 0 | V133: 0 | W133: 0 | X133: 0 | Y133: 0 | Z133: 0 | AA133: 0 | AB133: 0 | AC133: 0
A135: OperatingProfitLoss | B135: Operating Profit (loss): | D135: -61566 | E135: 9203 | F135: 9340 | G135: 9484 | H135: 9633 | I135: 9788 | J135: 7212 | K135: 7408 | L135: 7612 | M135: 7822 | N135: 8041 | O135: 8267 | P135: 8502 | Q135: 9152 | R135: 9402 | S135: 3465 | T135: 9929 | U135: 10207 | V135: 8772 | W135: 9080 | X135: 9397 | Y135: 9726 | Z135: 10067 | AA135: 10419 | AB135: 10784 | AC135: 11161
A137: TaxEffectsLabel | B137: Federal & State Tax Effects:
A138: FedTaxOnIncentives | B138: Federal and State Tax on RECs. | E138: -500 | F138: -498 | G138: -495 | H138: -493 | I138: -490 | J138: -488 | K138: -486 | L138: -483 | M138: -481 | N138: -478 | O138: -476 | P138: -474 | Q138: -613 | R138: -610 | S138: -607 | T138: -604 | U138: -601 | V138: 0 | W138: 0 | X138: 0 | Y138: 0 | Z138: 0 | AA138: 0 | AB138: 0 | AC138: 0
A140: FedTaxCreditBasis | B140: Federal Tax Credit Basis | D140: 61566
A141: FedTaxCredit | B141: 30% Federal Tax Credit | D141: 0 | E141: 18470 | F141: 0 | G141: 0 | H141: 0 | I141: 0 | J141: 0 | K141: 0 | L141: 0 | M141: 0 | N141: 0 | O141: 0 | P141: 0 | Q141: 0 | R141: 0 | S141: 0 | T141: 0 | U141: 0 | V141: 0 | W141: 0 | X141: 0 | Y141: 0 | Z141: 0 | AA141: 0 | AB141: 0 | AC141: 0
A143: StateTaxCreditBasis | B143: State Tax Credit Basis | D143: 61566 | F143: 0 | G143: 0 | H143: 0
A144: StateTaxCredit | B144: 10.0% State Tax Credit | D144: 0 | E144: 6157 | F144: 0 | G144: 0 | H144: 0 | I144: 0 | J144: 0 | K144: 0 | L144: 0 | M144: 0 | N144: 0 | O144: 0 | P144: 0 | Q144: 0 | R144: 0 | S144: 0 | T144: 0 | U144: 0 | V144: 0 | W144: 0 | X144: 0 | Y144: 0 | Z144: 0 | AA144: 0 | AB144: 0 | AC144: 0
A145: FedTaxOnStateCredit | B145: Fed Tax on State Tax Credit | E145: 0 | F145: -1724 | G145: 0 | H145: 0 | I145: 0 | J145: 0 | K145: 0 | L145: 0 | M145: 0 | N145: 0 | O145: 0 | P145: 0 | Q145: 0 | R145: 0 | S145: 0 | T145: 0 | U145: 0 | V145: 0 | W145: 0 | X145: 0 | Y145: 0 | Z145: 0 | AA145: 0 | AB145: 0 | AC145: 0
B146: 10% Local Tax Credit (not currently active)
B147: Federal Tax on Local Tax Credit (not currently active)
A149: FedDeprBasis | B149: Federal Depr Basis: Fed Tax Credit Basis minus 1/2 the Fed Credit | E149: 277711
A150: StateDeprBasis | B150: State Depr Basis: System Cost after fees | E150: 326719
A151: FedDeprPercent | B151: MACRS 5 year Accelerated Federal Depreciation (%) | E151: 0.2 | F151: 0.32 | G151: 0.192 | H151: 0.115 | I151: 0.115 | J151: 0.058
A152: StateDeprPercent | B152: MACRS 5 year Accelerated State Depreciation (%) | E152: 0.2 | F152: 0.32 | G152: 0.192 | H152: 0.115 | I152: 0.115 | J152: 0.058
A153: DeprLabel | C153: 25 year sum total:
A154: FedDepr | B154: MACRS 5 year Accelerated Federal Depreciation | C154: 97199 | E154: 19440 | F154: 31104 | G154: 18662 | H154: 11178 | I154: 11178 | J154: 5638 | K154: 0 | L154: 0 | M154: 0 | N154: 0 | O154: 0 | P154: 0 | Q154: 0 | R154: 0 | S154: 0 | T154: 0 | U154: 0 | V154: 0 | W154: 0 | X154: 0 | Y154: 0 | Z154: 0 | AA154: 0 | AB154: 0 | AC154: 0
A155: StateDepr | B155: MACRS 5 year Accelerated State Depreciation | C155: 22766 | E155: 4553 | F155: 7285 | G155: 4371 | H155: 2618 | I155: 2618 | J155: 1320 | K155: 0 | L155: 0 | M155: 0 | N155: 0 | O155: 0 | P155: 0 | Q155: 0 | R155: 0 | S155: 0 | T155: 0 | U155: 0 | V155: 0 | W155: 0 | X155: 0 | Y155: 0 | Z155: 0 | AA155: 0 | AB155: 0 | AC155: 0
A156: FedTaxOnStateDepr | B156: Fed Tax on State Depreciation | C156: -7968 | E156: -1594 | F156: -2550 | G156: -1530 | H156: -916 | I156: -916 | J156: -462 | K156: 0 | L156: 0 | M156: 0 | N156: 0 | O156: 0 | P156: 0 | Q156: 0 | R156: 0 | S156: 0 | T156: 0 | U156: 0 | V156: 0 | W156: 0 | X156: 0 | Y156: 0 | Z156: 0 | AA156: 0 | AB156: 0 | AC156: 0
A157: TotalDepr | B157: Total Depr Value: | C157: 111997 | E157: 22399 | F157: 35839 | G157: 21503 | H157: 12880 | I157: 12880 | J157: 6496 | K157: 0 | L157: 0 | M157: 0 | N157: 0 | O157: 0 | P157: 0 | Q157: 0 | R157: 0 | S157: 0 | T157: 0 | U157: 0 | V157: 0 | W157: 0 | X157: 0 | Y157: 0 | Z157: 0 | AA157: 0 | AB157: 0 | AC157: 0
A159: LostFedDeduction | B159: Value of lost Federal tax deduction of electricity expense | E159: -1607 | F159: -1681 | G159: -1759 | H159: -1841 | I159: -1926 | J159: -2015 | K159: -2109 | L159: -2206 | M159: -2308 | N159: -2415 | O159: -2527 | P159: -2644 | Q159: -2766 | R159: -2894 | S159: 3508 | T159: -3168 | U159: -3314 | V159: -3467 | W159: -3627 | X159: -3794 | Y159: -3969 | Z159: -4153 | AA159: -4344 | AB159: -4544 | AC159: -4754
A160: LostStateDeduction | B160: Value of lost State tax deduction of electricity expense | E160: -320 | F160: -335 | G160: -350 | H160: -366 | I160: -383 | J160: -401 | K160: -420 | L160: -439 | M160: -460 | N160: -481 | O160: -503 | P160: -526 | Q160: -551 | R160: -576 | S160: 698 | T160: -631 | U160: -660 | V160: -690 | W160: -722 | X160: -755 | Y160: -790 | Z160: -827 | AA160: -865 | AB160: -905 | AC160: -946
A161: AvoidedFedTaxOnStateDed | B161: Fed Tax Benefit on State deduction loss of electricity expense | E161: 112 | F161: 117 | G161: 123 | H161: 128 | I161: 134 | J161: 140 | K161: 147 | L161: 154 | M161: 161 | N161: 168 | O161: 176 | P161: 184 | Q161: 193 | R161: 202 | S161: -244 | T161: 221 | U161: 231 | V161: 242 | W161: 253 | X161: 264 | Y161: 277 | Z161: 289 | AA161: 303 | AB161: 317 | AC161: 331
A163: NetAnnualProfitLoss | B163: No-Tax Net Annual Profit/Loss for IRR | D163: -61566 | E163: 33329 | F163: 7119 | G163: 8988 | H163: 9140 | I163: 9298 | J163: 6724 | K163: 6923 | L163: 7128 | M163: 7342 | N163: 7562 | O163: 7562 | P163: 8028 | Q163: 8539 | R163: 8792 | S163: 2859 | T163: 9325 | U163: 9606 | V163: 8772 | W163: 9080 | X163: 9397 | Y163: 9726 | Z163: 10067 | AA163: 10419 | AB163: 10784 | AC163: 11161
A164: IrrCashFlow | B164: No-Tax Cash Flow, Cumulative | D164: -61566 | E164: -28237 | F164: -21118 | G164: -12130 | H164: -2990 | I164: 6308 | J164: 13032 | K164: 19955 | L164: 27083 | M164: 34425 | N164: 41987 | O164: 49778 | P164: 57806 | Q164: 66345 | R164: 75138 | S164: 77996 | T164: 87322 | U164: 96928 | V164: 105700 | W164: 114780 | X164: 124177 | Y164: 133903 | Z164: 143970 | AA164: 154389 | AB164: 165173 | AC164: 176334
A167: IRRAfterTaxEnd
B170: DEPRECATED TIMELINE - Please refer to financing timelines below in your custom proposal pages (starting in row 227) - This timeline (rows 171 to 192) may be removed at some point
A171: SmartLoanStart | B171: Smart Financing versus Energy Cost Analysis
A172: LoanYearLabel1 | D172: Year: | Q172: Year:
A173: LoanYearLabel2 | D173: 0 | E173: 1 | F173: 2 | G173: 3 | H173: 4 | I173: 5 | J173: 6 | K173: 7 | L173: 8 | M173: 9 | N173: 10 | O173: 11 | P173: 12 | Q173: 13 | R173: 14 | S173: 15 | T173: 16 | U173: 17 | V173: 18 | W173: 19 | X173: 20 | Y173: 21 | Z173: 22 | AA173: 23 | AB173: 24 | AC173: 25
A174: LoanBalance | B174: Line of Credit Balance | E174: 251719 | F174: 96697 | G174: 73089 | H174: 53073 | I174: 39994 | J174: 25818 | K174: 16837 | L174: 13128 | M174: 9104 | N174: 4737 | O174: 0 | P174: 0 | Q174: 0 | R174: 0 | S174: 0 | T174: 0 | U174: 0 | V174: 0 | W174: 0 | X174: 0 | Y174: 0 | Z174: 0 | AA174: 0 | AB174: 0 | AC174: 0
A175: LoanPayment | B175: Payment (monthly) | E175: -428 | F175: -428 | G175: -428 | H175: -428 | I175: -428 | J175: -428 | K175: -428 | L175: -428 | M175: -428 | N175: -428 | O175: 0 | P175: 0 | Q175: 0 | R175: 0 | S175: 0 | T175: 0 | U175: 0 | V175: 0 | W175: 0 | X175: 0 | Y175: 0 | Z175: 0 | AA175: 0 | AB175: 0 | AC175: 0
A176: LoanInterest | B176: Interest (portion of payment) | E176: -1783 | F176: -685 | G176: -518 | H176: -376 | I176: -283 | J176: -183 | K176: -119 | L176: -93 | M176: -64 | N176: -34 | O176: 0 | P176: 0 | Q176: 0 | R176: 0 | S176: 0 | T176: 0 | U176: 0 | V176: 0 | W176: 0 | X176: 0 | Y176: 0 | Z176: 0 | AA176: 0 | AB176: 0 | AC176: 0
A177: LoanInterestDeduction | B177: Tax Deduction Benefit (monthly) | E177: 748 | F177: 287 | G177: 217 | H177: 158 | I177: 119 | J177: 77 | K177: 50 | L177: 39 | M177: 27 | N177: 14 | O177: 0 | P177: 0 | Q177: 0 | R177: 0 | S177: 0 | T177: 0 | U177: 0 | V177: 0 | W177: 0 | X177: 0 | Y177: 0 | Z177: 0 | AA177: 0 | AB177: 0 | AC177: 0
A178: LoanNetMonthlyCost | B178: Net Monthly Financing Cost | E178: 320 | F178: -141 | G178: -211 | H178: -271 | I178: -309 | J178: -352 | K178: -378 | L178: -389 | M178: -401 | N178: -414 | O178: -414 | P178: 0 | Q178: 0 | R178: 0 | S178: 0 | T178: 0 | U178: 0 | V178: 0 | W178: 0 | X178: 0 | Y178: 0 | Z178: 0 | AA178: 0 | AB178: 0 | AC178: 0
A180: LoanNetBenefitsReceived | B180: Net Tax Benefit Received (put towards paying down the next year's principal) | D180: 98016 | E180: 73262 | F180: 26688 | G180: 21088 | H180: 12450 | I180: 12435 | J180: 6036 | K180: 0 | L180: 0 | M180: 0 | N180: 0 | O180: 0 | P180: 0 | Q180: 0 | R180: 0 | S180: 0 | T180: 0 | U180: 0 | V180: 0 | W180: 0 | X180: 0 | Y180: 0 | Z180: 0 | AA180: 0 | AB180: 0 | AC180: 0
A181: LoanBillNoSolar | B181: Annual Electric Bill without Solar (including Lifestyle changes, but not Energy Efficiency) | E181: 4293 | F181: 4507 | G181: 4733 | H181: 4969 | I181: 5218 | J181: 5478 | K181: 5752 | L181: 6040 | M181: 6342 | N181: 6659 | O181: 6992 | P181: 7342 | Q181: 7709 | R181: 8094 | S181: 8499 | T181: 8924 | U181: 9370 | V181: 9839 | W181: 10331 | X181: 10847 | Y181: 11389 | Z181: 11959 | AA181: 12557 | AB181: 13185 | AC181: 13844
A182: LoanNetBillWithSolar | B182: New Net Annual Energy Cost (with tax effects, including new electric bill, maintenance, inverter replacement) | E182: 1129 | F182: 1202 | G182: 1278 | H182: 1359 | I182: 1445 | J182: 1536 | K182: 2109 | L182: 2228 | M182: 2354 | N182: 2486 | O182: 2626 | P182: 2774 | Q182: 2930 | R182: 3094 | S182: 14559 | T182: 3451 | U182: 3644 | V182: 3849 | W182: 4064 | X182: 4291 | Y182: 4531 | Z182: 4784 | AA182: 5051 | AB182: 5333 | AC182: 5631
A185: LoanNetLoanCost | B185: Net New Annual Cost (Line of Credit plus New Net Energy Cost) | E185: -2710 | F185: 2892 | G185: 3811 | H185: 4606 | I185: 5159 | J185: 5756 | K185: 6649 | L185: 6900 | M185: 7169 | N185: 7457 | O185: 2626 | P185: 2774 | Q185: 2930 | R185: 3094 | S185: 14559 | T185: 3451 | U185: 3644 | V185: 3849 | W185: 4064 | X185: 4291 | Y185: 4531 | Z185: 4784 | AA185: 5051 | AB185: 5333 | AC185: 5631
A187: LoanAnnualCashFlow | B187: Cash Flow (annual) (Old less New Net Costs) | E187: 7003 | F187: 1615 | G187: 922 | H187: 363 | I187: 59 | J187: -277 | K187: -896 | L187: -860 | M187: -827 | N187: -798 | O187: 4366 | P187: 4568 | Q187: 4779 | R187: 5000 | S187: -6060 | T187: 5473 | U187: 5726 | V187: 5990 | W187: 6267 | X187: 6556 | Y187: 6858 | Z187: 7174 | AA187: 7505 | AB187: 7851 | AC187: 8213
A188: LoanMonthlyCashFlow | B188: Cash Flow (monthly) | E188: 584 | F188: 135 | G188: 77 | H188: 30 | I188: 5 | J188: -23 | K188: -75 | L188: -72 | M188: -69 | N188: -67 | O188: 364 | P188: 381 | Q188: 398 | R188: 417 | S188: -505 | T188: 456 | U188: 477 | V188: 499 | W188: 522 | X188: 546 | Y188: 572 | Z188: 598 | AA188: 625 | AB188: 654 | AC188: 684
A190: LoanCashFlow | B190: ACCUMULATED FINANCING CASH FLOW: | E190: 7003 | F190: 8618 | G190: 9539 | H190: 9902 | I190: 9961 | J190: 9684 | K190: 8788 | L190: 7928 | M190: 7101 | N190: 6303 | O190: 10669 | P190: 15237 | Q190: 20017 | R190: 25017 | S190: 18956 | T190: 24429 | U190: 30155 | V190: 36145 | W190: 42411 | X190: 48967 | Y190: 55825 | Z190: 63000 | AA190: 70505 | AB190: 78356 | AC190: 86570
A193: SmartLoanEnd
A196: ResaleTimelineStart | B196: Resale Value Timeline
A198: ResaleLabel | B198: INCREASED RESALE VALUE: | D198: Year: | Q198: Year:
A199: ResaleValueFactor | B199: Increased resale value factor: 20 | D199: 0 | E199: 1 | F199: 2 | G199: 3 | H199: 4 | I199: 5 | J199: 6 | K199: 7 | L199: 8 | M199: 9 | N199: 10 | O199: 11 | P199: 12 | Q199: 13 | R199: 14 | S199: 15 | T199: 16 | U199: 17 | V199: 18 | W199: 19 | X199: 20 | Y199: 21 | Z199: 22 | AA199: 23 | AB199: 24 | AC199: 25
A200: ResaleValueProjection | B200: 20 times Annual Savings | E200: 81769 | F200: 85487 | G200: 89374 | H200: 93437 | I200: 97684 | J200: 102124 | K200: 106765 | L200: 111617 | M200: 116688 | N200: 121990 | O200: 127531 | P200: 133324 | Q200: 139380 | R200: 145710 | S200: 152327 | T200: 159244 | U200: 166474 | V200: 174032 | W200: 181932 | X200: 190191 | Y200: 198823 | Z200: 207846 | AA200: 217279 | AB200: 227138 | AC200: 237444
A201: ResaleRemainingSavings | B201: Remaining savings within 25 years | E201: 177140 | F201: 173052 | G201: 168778 | H201: 164309 | I201: 159637 | J201: 154753 | K201: 149647 | L201: 144308 | M201: 138728 | N201: 132893 | O201: 126794 | P201: 120417 | Q201: 113751 | R201: 106782 | S201: 99496 | T201: 98020 | U201: 90058 | V201: 81734 | W201: 73033 | X201: 63936 | Y201: 54426 | Z201: 44485 | AA201: 34093 | AB201: 23229 | AC201: 11872
A202: ResaleValueEffective | B202: Effective Resale Value (lesser of 20x annual or remaining 25yr savings) | E202: 81769 | F202: 85487 | G202: 89374 | H202: 93437 | I202: 97684 | J202: 102124 | K202: 106765 | L202: 111617 | M202: 116688 | N202: 121990 | O202: 126794 | P202: 120417 | Q202: 113751 | R202: 106782 | S202: 99496 | T202: 98020 | U202: 90058 | V202: 81734 | W202: 73033 | X202: 63936 | Y202: 54426 | Z202: 44485 | AA202: 34093 | AB202: 23229 | AC202: 11872
A203: ResaleValueMax | B203: Maximum Resale Value: $126,794 occurs at Year 11
A204: ResaleValueMaxYear | C204: Year of maximum resale value | E204: 11
A207: ResaleTimelineEnd
A208: ExtraDataStart
A209: FedStateTaxOnFeedIn | B209: Federal & State Tax on Feed-In Income
A210: FedStateTaxOnRecs | B210: Federal & State Tax on RECs | E210: -700 | F210: -700 | G210: -700 | H210: -700 | I210: -700 | J210: -700 | K210: -700 | L210: -700 | M210: -700 | N210: -700 | O210: -700 | P210: -700 | Q210: -700 | R210: -700 | S210: -700 | T210: -700 | U210: -700
A211: FedTaxOnPbi | B211: Federal Tax on PBI | E211: -700 | F211: -700 | G211: -700 | H211: -700 | I211: -700 | J211: -700 | K211: -700 | L211: -700 | M211: -700 | N211: -700 | O211: -700 | P211: -700 | Q211: -700 | R211: -700 | S211: -700 | T211: -700 | U211: -700 | V211: -700 | W211: -700 | X211: -700 | Y211: -700 | Z211: -700 | AA211: -700 | AB211: -700 | AC211: -700
A212: ExtraDataEnd
B213: 1 pager payback
B214: Tax & Rebate Incentives | D214: =D126+D138+D141+D144+D145+D146+D147+D157 -> 9735 | E214: 46526 | F214: 33617 | G214: 21008 | H214: 12387 | I214: 12390 | J214: 6008 | K214: -486 | L214: -483 | M214: -481 | N214: -478 | O214: -476 | P214: -474 | Q214: -613 | R214: -610 | S214: -607 | T214: -604 | U214: -601 | V214: 0 | W214: 0 | X214: 0 | Y214: 0 | Z214: 0 | AA214: 0 | AB214: 0 | AC214: 0
B215: Net Utility Savings, sRECs after tax & maintenance | E215: =E121+E122+E127+E131+E132+E133+E159+E160+E161 -> 7388 | F215: 7441 | G215: 7498 | H215: 7554 | I215: 7614 | J215: 4937 | K215: 5026 | L215: 5121 | M215: 5216 | N215: 5313 | O215: 5413 | P215: 5516 | Q215: 6029 | R215: 6134 | S215: 7427 | T215: 6351 | U215: 6464 | V215: 4857 | W215: 4983 | X215: 5113 | Y215: 5244 | Z215: 5375 | AA215: 5513 | AB215: 5652 | AC215: 5792
B216: No-Tax Cash Flow, Cumulative | C216: =D125 -> -71301 | D216: =C216+D214+D215 -> -61566 | E216: -7652 | F216: 33406 | G216: 61912 | H216: 81853 | I216: 101857 | J216: 112802 | K216: 117342 | L216: 121980 | M216: 126715 | N216: 131550 | O216: 136487 | P216: 141529 | Q216: 146945 | R216: 152469 | S216: 159289 | T216: 165036 | U216: 170899 | V216: 175756 | W216: 180739 | X216: 185852 | Y216: 191096 | Z216: 196471 | AA216: 201984 | AB216: 207636 | AC216: 213428
B219: 2012 payback tables
A220: CUMULATIVE NET SAVINGS | B220: Annual Savings or Feed-In Income after tax, REC after tax, Operating Expenses, Lost Fed & State Tax Deductions | D220: 0 | E220: =(E121+E209)+(E122+E210)+(E131+E132+E133)+(E159+E160+E161) -> 3515 | F220: 3584 | G220: 3657 | H220: 3729 | I220: 3804 | J220: 4237 | K220: 4326 | L220: 4421 | M220: 4516 | N220: 4613 | O220: 4713 | P220: 4816 | Q220: 5329 | R220: 5434 | S220: 6727 | T220: 5651 | U220: 5764 | V220: 4857 | W220: 4983 | X220: 5113 | Y220: 5244 | Z220: 5375 | AA220: 5513 | AB220: 5652 | AC220: 5792
A221: TAX & REBATE INCENTIVES | B221: Rebate after tax, PBI after tax, Fed & State Tax Credits, Fed & State Depr. | D221: =D126+D127+(D138-(D209+D210))+D141+(D144+D145+D146+D147)+D157 -> 9735 | E221: 50399 | F221: 37474 | G221: 24849 | H221: 16212 | I221: 16200 | J221: 6708 | K221: 214 | L221: 217 | M221: 219 | N221: 222 | O221: 224 | P221: 226 | Q221: 87 | R221: 90 | S221: 93 | T221: 96 | U221: 99 | V221: 0 | W221: 0 | X221: 0 | Y221: 0 | Z221: 0 | AA221: 0 | AB221: 0 | AC221: 0
B222: No-Tax Cash Flow, Cumulative | C222: =D125 -> -71301 | D222: =C222+D220+D221 -> -61566 | E222: -7652 | F222: 33406 | G222: 61912 | H222: 81853 | I222: 101857 | J222: 112802 | K222: 117342 | L222: 121980 | M222: 126715 | N222: 131550 | O222: 136487 | P222: 141529 | Q222: 146945 | R222: 152469 | S222: 159289 | T222: 165036 | U222: 170899 | V222: 175756 | W222: 180739 | X222: 185852 | Y222: 191096 | Z222: 196471 | AA222: 201984 | AB222: 207636 | AC222: 213428
B227: DEBT FINANCING
A230: Loan1TimelineStart | B230: LOAN 1 - Annual Payments
D231: Year: | T231: Year:
D232: 0 | E232: 1 | F232: 2 | G232: 3 | H232: 4 | I232: 5 | J232: 6 | K232: 7 | L232: 8 | M232: 9 | N232: 10 | O232: 11 | P232: 12 | Q232: 13 | R232: 14 | S232: 15 | T232: 16 | U232: 17 | V232: 18 | W232: 19 | X232: 20 | Y232: 21 | Z232: 22 | AA232: 23 | AB232: 24 | AC232: 25 | AD232: 26 | AE232: 27 | AF232: 28 | AG232: 29 | AH232: 30
A233: Loan1BalanceYearStart | B233: Balance At Year's Start | E233: 32000 | F233: 20353 | G233: 19394 | H233: 18360 | I233: 17243 | J233: 16038 | K233: 15459 | L233: 14833 | M233: 14156 | N233: 13423 | O233: 12628 | P233: 11769 | Q233: 10839 | R233: 9830 | S233: 8737 | T233: 7553 | U233: 6271 | V233: 4884 | W233: 3381 | X233: 1753 | Y233: 0 | Z233: 0 | AA233: 0 | AB233: 0 | AC233: 0 | AD233: 0 | AE233: 0 | AF233: 0 | AG233: 0 | AH233: 0
A235: Loan1Payment | B235: Monthly Payment (including all fees) | E235: 152.78 | F235: 152.78 | G235: 152.78 | H235: 152.78 | I235: 152.78 | J235: 152.78 | K235: 152.78 | L235: 152.78 | M235: 152.78 | N235: 152.78 | O235: 152.78 | P235: 152.78 | Q235: 152.78 | R235: 152.78 | S235: 152.78 | T235: 152.78 | U235: 152.78 | V235: 152.78 | W235: 152.78 | X235: 152.13 | Y235: 0 | Z235: 0 | AA235: 0 | AB235: 0 | AC235: 0 | AD235: 0 | AE235: 0 | AF235: 0 | AG235: 0 | AH235: 0
A236: Loan1Interest | B236: Interest Charge (portion of payment) | E236: 215.58 | F236: 135.02 | G236: 128.4 | H236: 121.24 | I236: 113.52 | J236: 105.17 | K236: 101.17 | L236: 96.85 | M236: 92.17 | N236: 87.09 | O236: 81.6 | P236: 75.66 | Q236: 69.22 | R236: 62.24 | S236: 54.68 | T236: 46.49 | U236: 37.63 | V236: 28.03 | W236: 17.64 | X236: 6.3 | Y236: 0 | Z236: 0 | AA236: 0 | AB236: 0 | AC236: 0 | AD236: 0 | AE236: 0 | AF236: 0 | AG236: 0 | AH236: 0
A237: Loan1Principal | B237: Principal Paid (portion of payment) | E237: 0 | F237: 17.76 | G237: 24.38 | H237: 31.54 | I237: 39.26 | J237: 47.61 | K237: 51.61 | L237: 55.93 | M237: 60.61 | N237: 65.69 | O237: 71.18 | P237: 77.12 | Q237: 83.56 | R237: 90.54 | S237: 98.1 | T237: 106.29 | U237: 115.15 | V237: 124.75 | W237: 135.14 | X237: 145.83 | Y237: 0 | Z237: 0 | AA237: 0 | AB237: 0 | AC237: 0 | AD237: 0 | AE237: 0 | AF237: 0 | AG237: 0 | AH237: 0
A239: Loan1BalanceYearEnd | B239: Year-End Balance After Principal Payments | E239: 32747 | F239: 20133 | G239: 19096 | H239: 17975 | I239: 16766 | J239: 15459 | K239: 14833 | L239: 14156 | M239: 13423 | N239: 12628 | O239: 11769 | P239: 10839 | Q239: 9830 | R239: 8737 | S239: 7553 | T239: 6271 | U239: 4884 | V239: 3381 | W239: 1753 | X239: 0 | Y239: 0 | Z239: 0 | AA239: 0 | AB239: 0 | AC239: 0 | AD239: 0 | AE239: 0 | AF239: 0 | AG239: 0 | AH239: 0
A242: Loan1AppliedBenefitsLabel | B242: BENEFITS APPLIED:
A243: Loan1AppliedRebate | B243: Rebate (if financed) | E243: 0 | F243: 0 | G243: 0 | H243: 0 | I243: 0 | J243: 0 | K243: 0 | L243: 0 | M243: 0 | N243: 0 | O243: 0 | P243: 0 | Q243: 0 | R243: 0 | S243: 0 | T243: 0 | U243: 0 | V243: 0 | W243: 0 | X243: 0 | Y243: 0 | Z243: 0 | AA243: 0 | AB243: 0 | AC243: 0
A244: Loan1AppliedGrants | B244: State/Local Grants (if financed) | E244: 0 | F244: 0 | G244: 0 | H244: 0 | I244: 0 | J244: 0 | K244: 0 | L244: 0 | M244: 0 | N244: 0 | O244: 0 | P244: 0 | Q244: 0 | R244: 0 | S244: 0 | T244: 0 | U244: 0 | V244: 0 | W244: 0 | X244: 0 | Y244: 0 | Z244: 0 | AA244: 0 | AB244: 0 | AC244: 0
A245: Loan1AppliedPBI | B245: PBI | E245: 743 | F245: 739 | G245: 736 | H245: 732 | I245: 728 | J245: 0 | K245: 0 | L245: 0 | M245: 0 | N245: 0 | O245: 0 | P245: 0 | Q245: 0 | R245: 0 | S245: 0 | T245: 0 | U245: 0 | V245: 0 | W245: 0 | X245: 0 | Y245: 0 | Z245: 0 | AA245: 0 | AB245: 0 | AC245: 0
A246: Loan1AppliedSREC | B246: RECs | E246: 0 | F246: 0 | G246: 0 | H246: 0 | I246: 0 | J246: 0 | K246: 0 | L246: 0 | M246: 0 | N246: 0 | O246: 0 | P246: 0 | Q246: 0 | R246: 0 | S246: 0 | T246: 0 | U246: 0 | V246: 0 | W246: 0 | X246: 0 | Y246: 0 | Z246: 0 | AA246: 0 | AB246: 0 | AC246: 0
A247: Loan1AppliedFedTaxCredit | B247: Fed Tax Credit | E247: 11651 | F247: 0 | G247: 0 | H247: 0 | I247: 0 | J247: 0 | K247: 0 | L247: 0 | M247: 0 | N247: 0 | O247: 0 | P247: 0 | Q247: 0 | R247: 0 | S247: 0 | T247: 0 | U247: 0 | V247: 0 | W247: 0 | X247: 0 | Y247: 0 | Z247: 0 | AA247: 0 | AB247: 0 | AC247: 0
A248: Loan1AppliedStateTaxCredit | B248: State Tax Credit | E248: 0 | F248: 0 | G248: 0 | H248: 0 | I248: 0 | J248: 0 | K248: 0 | L248: 0 | M248: 0 | N248: 0 | O248: 0 | P248: 0 | Q248: 0 | R248: 0 | S248: 0 | T248: 0 | U248: 0 | V248: 0 | W248: 0 | X248: 0 | Y248: 0 | Z248: 0 | AA248: 0 | AB248: 0 | AC248: 0
A249: Loan1AppliedFedDepr | B249: Fed Depreciation | E249: 0 | F249: 0 | G249: 0 | H249: 0 | I249: 0 | J249: 0 | K249: 0 | L249: 0 | M249: 0 | N249: 0 | O249: 0 | P249: 0 | Q249: 0 | R249: 0 | S249: 0 | T249: 0 | U249: 0 | V249: 0 | W249: 0 | X249: 0 | Y249: 0 | Z249: 0 | AA249: 0 | AB249: 0 | AC249: 0
A250: Loan1AppliedStateDepr | B250: State Depreciation | E250: 0 | F250: 0 | G250: 0 | H250: 0 | I250: 0 | J250: 0 | K250: 0 | L250: 0 | M250: 0 | N250: 0 | O250: 0 | P250: 0 | Q250: 0 | R250: 0 | S250: 0 | T250: 0 | U250: 0 | V250: 0 | W250: 0 | X250: 0 | Y250: 0 | Z250: 0 | AA250: 0 | AB250: 0 | AC250: 0
A251: Loan1AppliedNetBillSavings | B251: 0% of Net Savings (after loan payments) | E251: 0 | F251: 0 | G251: 0 | H251: 0 | I251: 0 | J251: 0 | K251: 0 | L251: 0 | M251: 0 | N251: 0 | O251: 0 | P251: 0 | Q251: 0 | R251: 0 | S251: 0 | T251: 0 | U251: 0 | V251: 0 | W251: 0 | X251: 0 | Y251: 0 | Z251: 0 | AA251: 0 | AB251: 0 | AC251: 0
A252: Loan1AppliedNetFeedIn | B252: 0% of Net Feed-In Tariff Income (after loan payments) | E252: 0 | F252: 0 | G252: 0 | H252: 0 | I252: 0 | J252: 0 | K252: 0 | L252: 0 | M252: 0 | N252: 0 | O252: 0 | P252: 0 | Q252: 0 | R252: 0 | S252: 0 | T252: 0 | U252: 0 | V252: 0 | W252: 0 | X252: 0 | Y252: 0 | Z252: 0 | AA252: 0 | AB252: 0 | AC252: 0
A253: Loan1AppliedBenefitsTotal | B253: ANNUAL TOTAL (applied to following year's principal) | E253: 12394 | F253: 739 | G253: 736 | H253: 732 | I253: 728 | J253: 0 | K253: 0 | L253: 0 | M253: 0 | N253: 0 | O253: 0 | P253: 0 | Q253: 0 | R253: 0 | S253: 0 | T253: 0 | U253: 0 | V253: 0 | W253: 0 | X253: 0 | Y253: 0 | Z253: 0 | AA253: 0 | AB253: 0 | AC253: 0
A256: Loan1Balloon | B256: Balloon Amount | E256: 0 | F256: 0 | G256: 0 | H256: 0 | I256: 0 | J256: 0 | K256: 0 | L256: 0 | M256: 0 | N256: 0 | O256: 0 | P256: 0 | Q256: 0 | R256: 0 | S256: 0 | T256: 0 | U256: 0 | V256: 0 | W256: 0 | X256: 0 | Y256: 0 | Z256: 0 | AA256: 0 | AB256: 0 | AC256: 0 | AD256: 0 | AE256: 0 | AF256: 0 | AG256: 0 | AH256: 0
A259: Loan1TimelineEnd
A262: Loan2TimelineStart | B262: LOAN 2 - Annual Payments
D263: Year: | T263: Year:
D264: 0 | E264: 1 | F264: 2 | G264: 3 | H264: 4 | I264: 5 | J264: 6 | K264: 7 | L264: 8 | M264: 9 | N264: 10 | O264: 11 | P264: 12 | Q264: 13 | R264: 14 | S264: 15 | T264: 16 | U264: 17 | V264: 18 | W264: 19 | X264: 20 | Y264: 21 | Z264: 22 | AA264: 23 | AB264: 24 | AC264: 25 | AD264: 26 | AE264: 27 | AF264: 28 | AG264: 29 | AH264: 30
A265: Loan2BalanceYearStart | B265: Balance At Year's Start | E265: 4837 | F265: 2772 | G265: 350 | H265: 0 | I265: 0 | J265: 0 | K265: 0 | L265: 0 | M265: 0 | N265: 0 | O265: 0 | P265: 0 | Q265: 0 | R265: 0 | S265: 0 | T265: 0 | U265: 0 | V265: 0 | W265: 0 | X265: 0 | Y265: 0 | Z265: 0 | AA265: 0 | AB265: 0 | AC265: 0 | AD265: 0 | AE265: 0 | AF265: 0 | AG265: 0 | AH265: 0
A267: Loan2Payment | B267: Monthly Payment (including all fees) | E267: 110.06 | F267: 110.06 | G267: 29.68 | H267: 0 | I267: 0 | J267: 0 | K267: 0 | L267: 0 | M267: 0 | N267: 0 | O267: 0 | P267: 0 | Q267: 0 | R267: 0 | S267: 0 | T267: 0 | U267: 0 | V267: 0 | W267: 0 | X267: 0 | Y267: 0 | Z267: 0 | AA267: 0 | AB267: 0 | AC267: 0 | AD267: 0 | AE267: 0 | AF267: 0 | AG267: 0 | AH267: 0
A268: Loan2Interest | B268: Interest Charge (portion of payment) | E268: 48.81 | F268: 25.05 | G268: 0.66 | H268: 0 | I268: 0 | J268: 0 | K268: 0 | L268: 0 | M268: 0 | N268: 0 | O268: 0 | P268: 0 | Q268: 0 | R268: 0 | S268: 0 | T268: 0 | U268: 0 | V268: 0 | W268: 0 | X268: 0 | Y268: 0 | Z268: 0 | AA268: 0 | AB268: 0 | AC268: 0 | AD268: 0 | AE268: 0 | AF268: 0 | AG268: 0 | AH268: 0
A269: Loan2Principal | B269: Principal Paid (portion of payment) | E269: 61.25 | F269: 85 | G269: 29.02 | H269: 0 | I269: 0 | J269: 0 | K269: 0 | L269: 0 | M269: 0 | N269: 0 | O269: 0 | P269: 0 | Q269: 0 | R269: 0 | S269: 0 | T269: 0 | U269: 0 | V269: 0 | W269: 0 | X269: 0 | Y269: 0 | Z269: 0 | AA269: 0 | AB269: 0 | AC269: 0 | AD269: 0 | AE269: 0 | AF269: 0 | AG269: 0 | AH269: 0
A271: Loan2BalanceYearEnd | B271: Year-End Balance After Principal Payments | E271: 4097 | F271: 1745 | G271: 0 | H271: 0 | I271: 0 | J271: 0 | K271: 0 | L271: 0 | M271: 0 | N271: 0 | O271: 0 | P271: 0 | Q271: 0 | R271: 0 | S271: 0 | T271: 0 | U271: 0 | V271: 0 | W271: 0 | X271: 0 | Y271: 0 | Z271: 0 | AA271: 0 | AB271: 0 | AC271: 0 | AD271: 0 | AE271: 0 | AF271: 0 | AG271: 0 | AH271: 0
... 60 more rows

Sheet OnGrid Names
B1: SectionLabels | C1: DateAdded | D1: PropDocRefName | E1: CurrentValue | F1: NameDescription | G1: PopularPropDocName
B2: Top | C2: VendorInfo | D2: CustomerInfo | E2: MainRateInfo | F2: Usage | G2: Production | H2: NetUsage | I2: Note: Default field values are not coherent or realistic -- taken from multiple scenarios
C3: SystemVariables | D3: Sizing | E3: Incentives | F3: Pricing | G3: Financing | H3: SalesContract
C4: CustomInputs | D4: FinancialAnalysis | E4: Environmental | F4: RateDetail | G4: Boolean | H4: OnGridInfo
C6: Date Added | D6: Name | E6: Default Name Value | F6: Name Description | G6: =IF(PropWkb,"Popular Proposal Names","Popular Document Names") -> Popular Proposal Names
A9: RefNamesStart
B10: Vendor Info
A11: VendorInfoStart
D13: VendSalesperson | E13: Ship Full User | F13: Salesperson Name | G13: VendSalesperson
D14: VendSalesFullPh | E14: (123) 123 1234, (123) 123 3456 | F14: Salesperson Phone Numbers | G14: VendSalesFullPh
D15: VendSalesPhWork | E15: (123) 123 1234 | F15: Salesperson Work Phone
D16: VendSalesPhCell | E16: (123) 123 3456 | F16: Salesperson Cell Phone
D17: VendSalesFax | E17: (123) 123 4567 | F17: Salesperson Fax
D18: VendSalesEmail | E18: fulluser@acmesolar.com | F18: Salesperson Email Address | G18: VendSalesEmail
D19: VendSalesWeb | F19: Salesperson Website
D20: VendName | E20: Acme Solar | F20: Vendor Name | G20: VendName
D21: VendAdd1 | E21: 123 Ship Drive, Bldg 3 | F21: Vendor Address 1 | G21: VendAdd1
D22: VendAdd2 | F22: Vendor Address 2 | G22: VendAdd2
D23: VendCity | E23: Sunnyvale | F23: Vendor City | G23: VendCity
D24: VendState | E24: CA | F24: Vendor State | G24: VendState
D25: VendZip | E25: 94086 | F25: Vendor Zip Code | G25: VendZip
D26: VendAddrSingleLine | E26: 123 Ship Drive, Bldg 3, Sunnyvale, CA 94086 | F26: Vendor Address on 1 Line
D27: VendPhMain | E27: (123) 123 1234 | F27: Vendor Main Phone
D28: VendPhAlt | F28: Vendor Alt. Phone
D29: VendFax | E29: (123) 123 4567 | F29: Vendor Fax
D30: VendEmailMain | F30: Vendor Email Address
D31: VendWeb | F31: Vendor Website
D32: VendStLicNum | E32: Cont. Lic. # | F32: Vendor State License Number
D33: VendStLicTypes | E33: Cont Lic Type | F33: Vendor State License Types
D34: VendCECid | F34: Vendor CEC ID
D35: VendCertifications | F35: Vendor Certifications
D36: InstallerName | F36: Installer Name
D37: InstallerCity | F37: Installer City
D38: InstallerPhone | F38: Installer Phone
D39: InstallerFax | F39: Installer Fax
D40: InstallerAdd1 | F40: Installer Address 1
D41: InstallerAdd2 | F41: Installer Address 2
D42: InstallerState | F42: Installer State
D43: InstallerZip | F43: Installer Zip Code
D44: InstallerAddrSingleLine | F44: Installer Address on 1 Line
D45: InstallerEmailMain | F45: Installer Email Address
D46: InstallerStLicNum | F46: Installer State License Number
D47: InstallerStLicTypes | F47: Company State License Types
D48: InstallerContact | F48: Installer Contact Name
D49: InstallerContactPh | F49: Installer Contact Phone Number
A52: VendorInfoEnd
B53: Customer Info
A54: CustomerInfoStart
C56: 2011-05-25 | D56: CustOwnerName | E56: Ship Full User | F56: CustOwnerName
C57: 2011-05-25 | D57: CustOwnerCompany | E57: Acme Solar | F57: CustOwnerCompany
C58: 2011-05-25 | D58: CustOwnerCity | E58: Sunnyvale | F58: CustOwnerCity
D59: DateOfAnalysis | E59: 39930 | F59: Date of Analysis
C61: 2010-01-11 | D61: CustFullName | E61: Jackie Sun | F61: Customer Full Name | G61: CustFullName
D62: CustsFullName | E62: Jackie Sun and Jilla Sky | F62: Customer & Spouse Full Name | G62: CustsFullName
D63: CustFirstName | E63: Jackie | F63: Customer First Name | G63: CustFirstName
D64: CustLastName | E64: Sun | F64: Customer Last Name | G64: CustLastName
D65: CustSpouseFirstName | E65: Jilla | F65: Customer Spouse First Name
D66: CustSpouseLastName | E66: Sky | F66: Customer Spouse Last Name
D67: CustAndSpouseLastName | E67: Sun-Sky | F67: Customer & Spouse Last Name
D68: CustType | E68: Commercial | F68: Customer Type
D69: CustBusType | E69: Corporate | F69: Customer Business Type
D70: CustCompany | E70: Ichiban Hibachi | F70: Customer Company | G70: CustCompany
D71: CustTitle | E71: owner | F71: Customer Title
D72: ConstructionType | E72: Retrofit | F72: Construction Type
D73: ScenarioName | F73: Scenario Name
D75: CustSiteAddr1 | E75: 133 Pelhamdale Ave | F75: Customer Site Address 1 | G75: CustSiteAddr1
D76: CustSiteAddr2 | E76: #1 | F76: Customer Site Address 2 | G76: CustSiteAddr2
D77: CustSiteCity | E77: Pelham | F77: Customer Site City | G77: CustSiteCity
D78: CustSiteJurisdiction | E78: City of Pelham | F78: Customer Site Jurisdiction
D79: CustSiteState | E79: CA | F79: Customer Site State Abbreviation
D80: CustSiteStateLong | E80: California | F80: Customer Site State
D81: CustSiteZip | E81: 10803 | F81: Customer Site Zip Code
D82: CustFullSiteAddr | E82: 133 Pelhamdale Ave, #1 | F82: Customer Site Full Address | G82: CustFullSiteAddr
D83: CustFullSiteCityStZip | E83: Pelham, CA 10803 | F83: Customer Site Full City, State, Zip | G83: CustFullSiteCityStZip
D84: CustSiteAddrSingleLine | E84: 133 Pelhamdale Ave, #1, Pelham, CA 10803 | F84: Customer Site Address on 1 Line
D85: CustMailAddr1 | E85: 133 Pelhamdale Ave | F85: Customer Mailing Address 1
D86: CustMailAddr2 | E86: #1 | F86: Customer Mailing Address 2
D87: CustMailCity | E87: Pelham | F87: Customer Mailing City
D88: CustMailState | E88: CA | F88: Customer Mailing State
D89: CustMailZip | E89: 10803 | F89: Customer Mailing Zip Code
D90: CustFullMailAddr | E90: 133 Pelhamdale Ave, #1 | F90: Customer Mailing Full Address
D91: CustFullMailCityStZip | E91: Pelham, CA 10803 | F91: Customer Mailing Full City, State, Zip
D92: CustMailAddrSingleLine | E92: 133 Pelhamdale Ave, #1, Pelham, CA 10803 | F92: Customer Site Address on 1 Line | G92: CustMailAddrSingleLine
D93: CustFullPh | E93: (408) 111 1111H, (408) 222 2222C, (408) 333 3333x333W | F93: Customer Phone Numbers
D94: CustPhHome | E94: (408) 111 1111H | F94: Customer Home Phone
D95: CustPhWork | E95: (408) 333 3333x333W | F95: Customer Work Phone
D96: CustPhCell | E96: (408) 222 2222C | F96: Customer Cell Phone
D97: CustPhFax | E97: (408) 444 4444F | F97: Customer Fax
D99: CustEmail | E99: cust@buyer.com | F99: Customer Email Address
D100: CustEmailAlt | E100: Cake@eater.com | F100: Customer Alt. Email Address
D101: CustWebsite | E101: www.ibm.com | F101: Customer Website
D102: CustFullEmailWeb | E102: cust@buyer.com, Cake@eater.com, www.ibm.com | F102: Customer Email & Website
D105: CustAgntFirstName | E105: Agent Bill | F105: Agent First Name
D106: CustAgntLastName | E106: Agent Builder | F106: Agent Last Name
D107: CustAgntCompany | E107: Bill's Builders | F107: Agent Company
D108: CustAgntProf | E108: General Contractor | F108: Agent Profession
D109: CustAgntAddr1 | E109: 1 Builder St | F109: Agent Address 1
D110: CustAgntAddr2 | E110: Building B | F110: Agent Address 2
D111: CustAgntCity | E111: Industry | F111: Agent City
D112: CustAgntState | E112: CA | F112: Agent State
D113: CustAgntZip | E113: 9xxxb | F113: Agent Zip Code
D114: CustAgntPhWork | E114: 408 428 2222W | F114: Agent Work Phone
D115: CustAgntPhCell | E115: 408 428 2222C | F115: Agent Cell Phone
D116: CustAgntEmail | E116: bill@ongrid.net | F116: Agent Email Address
D117: CustAgnt2NamePh | E117: Agent 2, 408-333-4444 | F117: Agent 2 Name & Phone
D118: CustAgnt3NamePh | E118: Agent 3, 408-222-1234 | F118: Agent 3 Name & Phone
D120: SysHostOwned_Text | E120: Yes | F120: Host Customer is System Owner
D121: OwnerFirstName | F121: Owner First Name
D122: OwnerLastName | F122: Owner Last Name
D123: OwnerTitle | F123: Owner Title
D124: OwnerCompany | F124: Owner Company
D125: OwnerType | F125: Owner Type
D126: OwnerBusType | F126: Owner Business Type
D127: OwnerMailAddr1 | F127: Owner Mailing Address 1
D128: OwnerMailAddr2 | F128: Owner Mailing Address 2
D129: OwnerMailCity | F129: Owner Mailing City
D130: OwnerMailState | F130: Owner Mailing State
D131: OwnerMailZip | F131: Owner Mailing Zip Code
D132: OwnerPhHome | F132: Owner Home Phone
D133: OwnerPhCell | F133: Owner Cell Phone
D134: OwnerPhWork | F134: Owner Work Phone
D135: OwnerPhFax | F135: Owner Fax
D136: OwnerEmail | F136: Owner Email Address
D137: OwnerEmailAlt | F137: Owner Alt. Email Address
D138: OwnerWebsite | F138: Owner Website
C140: 2013-03-15 | D140: CustTaxRateFed | E140: 0.35 | F140: Customer Federal Tax Rate
C141: 2013-03-15 | D141: CustTaxRateState | E141: 0.0884 | F141: Customer State Tax Rate
C142: 2013-04-18 | D142: CustTaxRateCombinedNet | E142: 0.40746 | F142: Customer Net Combined Tax Rate
D143: TaxRateFed | E143: 0.35 | F143: Owner Federal Tax Rate
D144: TaxRateState | E144: 0.0884 | F144: Owner State Tax Rate
D145: TaxRateCombined | E145: 0.4384 | F145: Owner Combined Tax Rate
D146: TaxRateCombinedNet | E146: 0.40746 | F146: Owner Net Combined Tax Rate
D147: TaxRateInflator | E147: 1 | F147: Tax Rate Inflator
D148: SalesTaxRate | E148: 0.07 | F148: Sales Tax Rate
D150: LeadStatus | F150: LeadStatus
D151: LeadQuality | F151: LeadQuality
D152: LeadSource | E152: Harry Fair | F152: Lead Source
A155: CustomerInfoEnd
B156: Main Rate Info
A157: MainRateInfoStart
D159: Utility | E159: PG&E | F159: Utility Abbreviation | G159: Utility
D160: UtilityLong | E160: Pacific Gas & Electric | F160: Full Utility Name | G160: UtilityLong
D161: UtilityState | E161: CA | F161: Utility State
D162: UtilityTariffStarting | E162: PG&E A10 TOU Non-FTA (S) | F162: Starting Rate Schedule--w/ Utility
D163: TariffStarting | E163: A10 TOU Non-FTA (S) | F163: Starting Rate Schedule--w/o State & Utility | G163: TariffStarting
D164: UtilityTariffEnding | E164: PG&E A6 | F164: Ending Rate Schedule--w/ Utility
D165: TariffEnding | E165: A6 | F165: Ending Rate Schedule--w/o State & Utility--Accounts for Feed-In Tariff | G165: TariffEnding
D166: RateCustType | E166: Commercial | F166: Starting Rate Utility-Intended Customer Type
D167: RateEndCustType | E167: Commercial | F167: Ending Rate Utility-Intended Customer Type
D168: RateDescription | E168: Commercial TOU Demand | F168: Starting Rate--Description (OnGrid or utility desc)
D169: RateEndDescription | E169: Commercial TOU | F169: Ending Rate--Description (OnGrid or utility desc)
D170: TariffTerritory | E170: P | F170: Tariff Baseline Territory
D171: TariffCode | E171: H | F171: Gas & Electric or All Electric
D172: RateModPercent1 | E172: 0.001 | F172: User Rate Adjustment 1 (Pct)
D173: RateModPercent2 | E173: 0.0005 | F173: User Rate Adjustment 2 (Pct)
D174: RateModTax | E174: 0.03 | F174: Local Electricity Tax
D175: RateModCents | E175: 0.1 | F175: User Rate Adjustment 3 (Cents)
D176: RateExtraMonthlyCharge | E176: 1 | F176: Inputs Page Monthly Charge--Starting Rate
D177: RateExtraMonthlyChargeEnd | E177: 2 | F177: Inputs Page Monthly Charge--Ending Rate
D179: CustUtilityName | E179: Jackie Sun | F179: Customer Name for Utility Forms
D180: CustUtilAccntNo | E180: Accnt23234123 | F180: Utility Account Number
D181: CustUtilSvcID | E181: SID-234q | F181: Utility Service ID Number
D182: CustUtilMeterNo | E182: M-q234 | F182: Utility Electric Meter Number
D184: BillNoSolar | E184: 449.614709 | F184: Bill before Solar, Lifestyle Changes, and Efficiency | G184: BillNoSolar
D185: AdjLifestylePct | E185: -0.15 | F185: Lifestyle Style Changes--Percent Change in Usage
D186: BillwLifenoSolar | E186: 415.5847314 | F186: Bill after Lifestyle Changes but Before Efficiency & Solar
D187: AdjEnergyEffPct | E187: 0.05 | F187: Energy Efficiency--Percent Change in Usage
D188: BillwEffnoSolar | E188: 405.9429044 | F188: Bill after Lifestyle Changes & Efficiency but Before Solar
C189: 2012-12-14 | D189: BillnoSolarNonOffsetable | E189: 4 | F189: Bill after Lifestyle Changes & Efficiency but Before Solar -- Not Including Usage Charge
C190: 2012-12-14 | D190: BillEndnoSolarNonOffsetable | E190: 8 | F190: Bill after Rate Switch (if applicable), Lifestyle Changes, & Efficiency but Before Solar -- Not Including Usage Charge
D191: BillWithSolarNoMin | E191: 62.90964947 | F191: Bill with Solar if no Minimum Charge
D192: BillWithSolar | E192: 62.90964947 | F192: Bill with Solar | G192: BillWithSolar
D193: BillPctOffset | E193: 0.848623771 | F193: Percent of Bill Offset with Solar | G193: BillPctOffset
D194: MaxBillPctOffset | E194: 0.9685009102 | F194: Maximum Possible Bill Offset with Solar
D195: FeedIn1stYr | E195: 0 | F195: Feed-In Tariff Income in Year 1
D196: FeedIn1stContract | E196: 0 | F196: Feed-In Tariff Income in Contract 1
D197: FeedIn25Yrs | E197: 0 | F197: Feed-In Tariff Income over 25 Years | G197: FeedIn25Yrs
D199: RateStartAvg | E199: 29.40891509 | F199: Starting Rate Average ¢/kWh
D200: RateStartMax | E200: 29.40891509 | F200: Starting Rate Maximum ¢/kWh
D201: RateTierMax | E201: Tier 0 | F201: Starting Rate Maximum Tier
D202: RateEndMax | E202: 0 | F202: CalcsPvt
D203: RateTierMaxNew | E203: Tier 0 | F203: Ending Rate Maximum Tier
D205: TOUSumSeasonTxt | E205: May 1 to October 31 | F205: TOU Summer Season Text | G205: June 1 to September 29
D206: ProdUseSumMonths | E206: 6 | F206: Utility Summer Season Months
D207: ProdUseWinMonths | E207: 6 | F207: Utility Winter Season Months
D208: SumWinJan | E208: W | F208: January--Summer or Winter?--Ending Rate
D209: SumWinFeb | E209: W | F209: February--Summer or Winter?--Ending Rate
D210: SumWinMar | E210: W | F210: March--Summer or Winter?--Ending Rate
D211: SumWinApr | E211: W | F211: April--Summer or Winter?--Ending Rate
D212: SumWinMay | E212: S | F212: May--Summer or Winter?--Ending Rate
D213: SumWinJun | E213: S | F213: June--Summer or Winter?--Ending Rate
D214: SumWinJul | E214: S | F214: July--Summer or Winter?--Ending Rate
D215: SumWinAug | E215: S | F215: August--Summer or Winter?--Ending Rate
D216: SumWinSep | E216: S | F216: September--Summer or Winter?--Ending Rate
D217: SumWinOct | E217: S | F217: October--Summer or Winter?--Ending Rate
D218: SumWinNov | E218: W | F218: November--Summer or Winter?--Ending Rate
D219: SumWinDec | E219: W | F219: December--Summer or Winter?--Ending Rate
D220: SumWinJanStart | E220: W | F220: January--Summer or Winter?--Starting Rate
D221: SumWinFebStart | E221: W | F221: February--Summer or Winter?--Starting Rate
D222: SumWinMarStart | E222: W | F222: March--Summer or Winter?--Starting Rate
... 1218 more rows

Sheet Prelim
A1: Top
A3: Preliminary proposal providing ballpark ranges of pricing and benefit
B6: P1.1 Preliminary | I6: Preliminary Solar Electric Investment, Incentive and Energy Savings Analysis
D8: =CustsFullName -> Jackie Sun and Jilla Sky | I8: =DateOfAnalysis -> 2013-04-28
D9: =IF(CustCompany>0,CustCompany,"") -> Ichiban Hibachi
D11: Site Location: | I11: =IF(CustFullPh>0,CustFullPh,"") -> (408) 111 1111H, (408) 222 2222C, (408) 333 3333x333W
D12: =CustFullSiteAddr -> 133 Pelhamdale Ave, #1 | I12: =IF(CustEmail>0,CustEmail,"")&IF(CustEmail>0,IF(CustEmailAlt>0,", ",IF(CustWebsite>0,", ","")),"")&IF(CustEmailAlt>0,CustEmailAlt,"")&IF(CustEmailAlt>0,IF(CustWebsite>0,", ",""),"")&IF(CustWebsite>0,CustWebsite,"") -> cust@buyer.com, Cake@eater.com, www.ibm.com
D13: =CustFullSiteCityStZip -> Pelham, CA 10803 | R13: Adjust the "Tolerance" numbers below to widen or tighten
R14: the ranges of numbers displayed on the Preliminary Proposal
D16: System (approximate) | R16: Adjust the "Precision" numbers below to adjust the amount of Rounding
D17: ="Approximately "&(SysModCnt+SysModCnt2)&" "&IF(SysModule<>SysModule2,"Solar PV Modules",SysModule&" modules") -> Approximately 48 Solar PV Modules
D18: ="and "&(SysInvCnt+SysInvCnt2)&" "&IF(SysInverter<>SysInverter2,"Inverters",SysInverter&" inverters") -> and 3 Inverters | R18: Tolerances: | U18: Precision:
D19: Estimated System DC Size | N19: =FIXED(SysSizeSTC*(1+R19),0)&" to "&FIXED(SysSizeSTC*(1+S19),0)&" kW DC (STC)" -> 10 to 11 kW DC (STC) | R19: -0.05 | S19: 0.1
D20: Estimated CEC AC Rating | N20: =FIXED(SysSizeCEC*(1+R19),0)&" to "&FIXED(SysSizeCEC*(1+S19),0)&" kW AC (CEC)" -> 9 to 10 kW AC (CEC)
D21: Location's Average Equivalent Noontime Sun Hours | N21: =FIXED(SunHrsAnnualAvg,1)&" Sun Hours" -> 5.9 Sun Hours
D22: Estimated Annual Energy Production | N22: =FIXED(ROUND(ProdTot*(1+R22),-U22),0)&" to "&FIXED(ROUND(ProdTot*(1+S22),-U22),0)&" kWh/yr" -> 9,800 to 11,400 kWh/yr | R22: -0.1 | S22: 0.05 | U22: 2
D25: Utility & Tariff
D26: ="Utility: " -> Utility: | N26: =IF(LEFT(Utility,4)<>"user",Utility,UtilityUserDefined) -> PG&E
D27: ="Current Rate Schedule: " -> Current Rate Schedule: | N27: =IF(LEFT(TariffStarting,4)<>"user",TariffStarting&IF(TariffTerritory&TariffCode="","","-")&TariffTerritory&" "&TariffCode&" -- "&RateDescription,RateDescription) -> A10 TOU Non-FTA (S)-P H -- Commercial TOU Demand
D28: =IF(TariffEnding=TariffStarting,"","New Solar Rate Schedule: ") -> New Solar Rate Schedule: | N28: =IF(LEFT(TariffEnding,4)<>"user",TariffEnding&IF(TariffTerritory&TariffCode="","","-")&TariffTerritory&" "&TariffCode&" -- "&RateEndDescription,RateEndDescription) -> A6-P H -- Commercial TOU
D29: ="Historical Usage"&IF(AdjLifestylePct=0,": "," with Estimated Lifestyle/Cccupancy Changes: ") -> Historical Usage with Estimated Lifestyle/Cccupancy Changes: | N29: =FIXED(UseAdjAnnualTotal,0)&" kWh/yr" -> 17,850 kWh/yr
D30: Current Utility Rate are as high as | N30: =RateStartMax -> 29.40891509
D31: Current Utility Rate Average | N31: =RateStartAvg -> 29.40891509
D32: Estimated First Year Utility Savings | N32: ="$ "&FIXED(ROUND(Savings1stYr*(1+R32),-U32),0)&" to $ "&FIXED(ROUND(Savings1stYr*(1+S32),-U32),0)&" per year" -> $ 3,810 to $ 4,440 per year | R32: =R$22 -> -0.1 | S32: =S$22 -> 0.05 | U32: 1
D35: Cost & Incentives (approximate)
B36: cost gross | D36: ="Gross System Cost with Sales Tax"&IF(OR(NOT(ShowDiscount),CostDiscount = 0),"",IF(CostDiscountBasis="Percent"," and "& FIXED(-CostDiscountPct*100,1) &"% Discount"," and Discount")) &" ($"&FIXED(CostGrossPerW*(1+R36),2)&" to $"&FIXED(CostGrossPerW*(1+S36),2)&IF(SysRatingType="CEC"," per CEC AC Watt",IF(SysRatingType="PTC"," per PTC Watt"," per DC (STC) Watt"))&")" -> Gross System Cost with Sales Tax and 3.0% Discount ($11.37 to $12.31 per CEC AC Watt) | N36: ="$ "&FIXED(ROUND(CostGross*(1+R36),-U36),0)&" to $ "&FIXED(ROUND(CostGross*(1+S36),-U36),0) -> $ 103,200 to $ 111,700 | R36: -0.03 | S36: 0.05 | U36: 2 | AA36: =IF(AND(ShowDiscount="Yes (%)",CostDiscount<>0),"Gross System Cost with Sales Tax and " & ROUND(CostDiscount/-CostGross*100,0) &"% Discount",IF(AND(ShowDiscount="Yes ($)",CostDiscount<>0),"Gross System Cost with Sales Tax and $" & -CostDiscount & " Discount", IF(OR(ShowDiscount="No",CostDiscount = 0),"Gross System Cost with Sales Tax")))&" ($"&FIXED(CostGrossPerW*(1+R36),2)&" to $"&FIXED(CostGrossPerW*(1+S36),2)&IF(SysRatingType="CEC"," per CEC AC Watt",IF(SysRatingType="PTC"," per PTC Watt"," per DC (STC) Watt"))&")" -> FALSE ($11.37 to $12.31 per CEC AC Watt)
B37: Rebates, non-Fed Grants | D37: =IF(ABS(SysRebate)>1,"Rebate","") & IF(AND(ABS(SysRebate)>1,ABS(SysGrant)>1)," & ","") & IF(ABS(SysGrant)>1,"Non-Federal Grants","")&" "&IF(IncentRebatePerW=0,"","(Rebate: $"&FIXED(-SysRebate/IF(IncentRebateRatingType="STC DC",SysSizeSTC*1000,IF(IncentRebateRatingType="PTC",SysSizePTC*1000,SysSizeCEC*1000)),2) &" per "&IF(IncentRebateRatingType="STC DC","STC DC",IF(SysRatingType="PTC","PTC DC","CEC AC"))&" Watt)")&"" -> Rebate & Non-Federal Grants (Rebate: $0.80 per CEC AC Watt) | N37: =ROUND(SysRebate+SysGrant,-2) -> -9200 | AA37: =IF(AND(ShowDiscount="Yes (%)",CostDiscount<>0),"Gross System Cost with Sales Tax and " & ROUND(CostDiscount/-CostGross*100,0) &"% Discount",IF(AND(ShowDiscount="Yes ($)",CostDiscount<>0),"Gross System Cost with Sales Tax and $" & -CostDiscount & " Discount", IF(OR(ShowDiscount="No",CostDiscount = 0),"Gross System Cost with Sales Tax")))&" ($"&FIXED(CostGrossPerW*(1+R36),2)&" to $"&FIXED(CostGrossPerW*(1+S36),2)&IF(SysRatingType="CEC"," per CEC AC Watt",IF(SysRatingType="PTC"," per PTC Watt"," per DC (STC) Watt"))&")" -> FALSE ($11.37 to $12.31 per CEC AC Watt)
B38: Fed tax on Rebate or Grant | D38: =IF(N38=0,"","Federal Tax on Rebate or Non-Federal Grants") -> Federal Tax on Rebate or Non-Federal Grants | N38: =ROUND(TaxFedOnRebateGrant,-2) -> 3200
B39: Fees | D39: =IF(N39=0,"","Estimated Fees NOT included in system contract price") -> Estimated Fees NOT included in system contract price | N39: =ROUND((CostPermitFeesNotInc+CostUtilityFeesNotInc+CostOtherFeesNotInc),-2) -> 600
B40: State Tax Credit + TaxFedOnStateTaxCredit | D40: =IF(N40=0,"","State Tax Credit Benefit (net), after Federal Tax on the State Tax Credit") -> State Tax Credit Benefit (net), after Federal Tax on the State Tax Credit | N40: =ROUND((TaxCreditState+TaxFedOnStateTaxCredit),-2) -> -3300
B41: Local Tax Credit + Fed Tax on Local Tax Credit | D41: =IF(N41=0,"",FIXED(IncentLocalTaxCredit*100,1)&"% Local Tax Credit, Net Benefit after Federal Tax effects ") ->  | N41: =ROUND((TaxCreditLocal+ TaxFedOnLocalTaxCredit),-2) -> 0
B42: Federal Tax Credit or Treasury Grant | D42: =IF(N42=0,"",FIXED(IncentFedTaxCredit*100,0)&"% Federal Tax Credit (ITC) or Treasury Grant") ->  | N42: =ROUND(TaxCreditFed,-2) -> 0
B43: Depreciation | D43: =IF(N43=0,"","Depreciation: Federal & Net State (total value, non-discounted, see schedule below)") -> Depreciation: Federal & Net State (total value, non-discounted, see schedule below) | N43: =ROUND(DeprFedStateNetSumTotal,-2) -> -37400
B44: Net PBI value | D44: =IF(N44=0,"","PBI Incentive" & IF(TaxablePBI="Yes"," after Federal Tax","")) -> PBI Incentive after Federal Tax | N44: =ROUND((SysPBI-TaxFedOnPBI),-2) -> -34300
D45: Net System Cost with Tax Benefits & Incentives | N45: ="$ "&FIXED(ROUND(CostNetAfterTaxEffectsAndPBI*(1+R36),-U36),0)&" to $ "&FIXED(ROUND(CostNetAfterTaxEffectsAndPBI*(1+S36),-U36),0) -> $ 11,400 to $ 12,300
E48: Results (preliminary estimates)
E49: ="Previous Average "&IF(AdjLifestylePct=0,"","Adjusted ")&"Monthly Electric Bill" -> Previous Average Adjusted Monthly Electric Bill | N49: =ROUND(BillwLifenoSolar,0) -> 416
E50: Estimated New Average Monthly Electric Bill | N50: ="$ "&FIXED(N49-MIN(ROUND(Savings1stMo*(1+S32),-U32),N49),0)&" to $ "&FIXED(ROUND(N49-Savings1stMo*(1+R32),-U32),0) -> $ 46 to $ 100
E51: Average Monthly Electric Bill Savings | N51: ="$ "&FIXED(ROUND(Savings1stMo*(1+R32),-U32),0)&" to $ "&FIXED(MIN(ROUND(Savings1stMo*(1+S32),-U32),N49),0) -> $ 320 to $ 370
E52: Percentage Of Bill Offset | N52: =FIXED(ROUND(Savings1stMo*(1+R32)*100/N49,U32),0)&"% to $ "&FIXED(MIN(ROUND(Savings1stMo*(1+S32),U32),N49)*100/N49,0)&"%" -> 76% to $ 89%
E54: =IF(CustType="Residential","Pre-Tax Compound Annual Rate of Return (IRR)",IF(CustType="Commercial","Effective After-Tax Compound Annual Rate of Return (IRR)","Effective Non-Taxable Compound Annual Rate of Return (IRR)"))&" over 25 years" -> Effective After-Tax Compound Annual Rate of Return (IRR) over 25 years | N54: =FIXED(IRR*100,0)&"%" -> 9%
E55: =IF(CustType="Commercial","Net Present Value with "&DiscountRate*100&"% Discount Rate","") -> Net Present Value with 3% Discount Rate | N55: =IF(CustType="Commercial",ROUND(NPV,-3),"") -> 29000
E56: Net Savings over 25 years | N56: ="$ "&FIXED(ROUND(CumNetSavings25Yrs*(1+R32),-(2+U32)),0)&" to $ "&FIXED(ROUND(CumNetSavings25Yrs*(1+S32),-(2+U32)),0) -> $ 62,000 to $ 73,000
E57: including bill savings, sRECs, maintenance,
E58: & inverter replacement (net after-tax values)
E59: Total Lifecycle Payback (25-year Net Savings divided by Net Cost) | N59: =FIXED(CumNetSavings25Yrs/CostNetAfterTaxEffectsAndPBI,1)&"x" -> 5.9x
E60: =IF(CustType="Residential","Payback (after-tax $ - not a good measure)","Capital Recovery Period (Payback)") -> Capital Recovery Period (Payback) | N60: =FIXED(YearsToCashPayback,0)&" years" -> 7 years
E61: =IF(CustType="Residential","Theoretical Initial Increase in Property Value","Property Value Increase with "&CapRate*100&"% Cap Rate") -> Property Value Increase with 6% Cap Rate | N61: =ROUND(ResaleValue1stYr,-3) -> 67000
B65: P1.2 Preliminary
D66: Financing (estimated)
D67: Smart Financing with a Line of Credit versus inefficent or optimistic simple loans:
E69: =LoanRate -> 0.06 | F69: "Smart Financed" Interest Rate
E70: =LoanTerm&" years" -> 11 years | F70: "Smart Financed" Term
H72: Inefficient Loan | K72: Smart Financed | M72: Optimistic Loan
F73: Amount Borrowed: | H73: =ROUND(LoanPrincipal,-2) -> 98300 | K73: =ROUND(LoanPrincipal,-2) -> 98300 | M73: =ROUND(CostNetAfterTaxEffectsAndPBI,-2) -> 11700
F74: Customer Out-of-Pocket Expense: | H74: 0 | K74: 0 | M74: =ROUND((LoanPrincipal-CostNetAfterTaxEffectsAndPBI),-2) -> 86600
F75: Monthly Payment (before interest tax deduction): | H75: =ROUND(LoanPaymentStandard,-1) -> 1040 | K75: =ROUND(LoanPaymentSmart,-1) -> 240 | M75: =ROUND(LoanPaymentUnrealistic,-1) -> 580
D77: Loans assume full amortization over term.
D79: Smart Financing assumes the efficient use of tax benefits, rebates, and PBIs to pay down loan principal as they
D80: are received so a lower payment is needed to pay off the loan over the desired term.
D81: Effective use of Smart Financing requires disciplined application of those incentives by the system owner to get the stated results.
D83: Smart Financing requires no Out-of-Pocket expense.
D101: See Smart Financing Timeline for details on savings and costs in each year.

Sheet Financing
A1: Top
A2: Admirals Bank | D2: Financing vs Cash
A3: Lease PPA | D3: Environment | N3: Top | AC3: Top | AR3: Top | BG3: Top
I8: ADMIRALS BANK
H10: FIN1.2 Admirals | I10: =IF(Fin1IsAdmirals,"Solar Electric Proposal with Admirals Bank Loan","ADMIRALS BANK LOANS NOT CURRENTLY APPLIED") -> ADMIRALS BANK LOANS NOT CURRENTLY APPLIED
J11: =IF(AND(NOT(Fin1IsPPA),NOT(Fin1IsLease),Loan2NetBalance>1),"NOT FULLY PAID FOR",FIXED(SysSize,IF(SysSize>100,0,1))&" kW "&IF(SysRatingType="STC","STC",IF(SysRatingType="PTC","PTC","CEC"))&" PV System") -> 9.1 kW CEC PV System
V12: General solar-savings image will be replace by ''Site Image 1' if selected on Inputs sheet
J13: Prepared For: | L13: =CustsFullName -> Jackie Sun and Jilla Sky
J14: Site: | L14: =CustFullSiteAddr -> 133 Pelhamdale Ave, #1
L15: =CustFullSiteCityStZip -> Pelham, CA 10803
J16: Date: | L16: =DateOfAnalysis -> 2013-04-28
J19: ="Net "&IF(FeedIn,"Feed-In Tariff Income","Savings") -> Net Savings
G21: 1 = Also Show After 25 Years DON'T REMOVE | H21: =IF(NOT(Fin1IsDebt),0,IF(MAX(Loan1Term,Loan2Term)>=25,0,IF(OR(NOT(FeedIn),Feed1Duration=25,(Feed2NonTOUSum+Feed2NonTOUWin+Feed2SumPk+Feed2SumPartPk)>0),1,0))) -> 0 | J21: ="Total "&IF(FeedIn,"Income",IF(SysREC=0,"Electric ","")&"Bill Savings")&IF(AND($H$21=0,SysREC<>0)," and RECs","")&" over "&IF(AND($H$21=0,SysREC=0),MAX(Loan1Term,Loan2Term)&"-year ","")& "loan term"&IF($H$21=1," / over 25 years","")&" *" -> Total Bill Savings and RECs over loan term * | O21: =DOLLAR(INDEX('OnGrid Timelines'!$E$355:$AH$355,1,MAX(Loan1Term,Loan2Term))-SUM('OnGrid Timelines'!$E$38:INDEX('OnGrid Timelines'!$E$38:$AC$38,1,MIN(25,MAX(Loan1Term,Loan2Term)))),0)&IF($H$21=1," / "&DOLLAR('OnGrid Timelines'!$AC$355-SUM('OnGrid Timelines'!$E$38:$AC$38),0),"") -> $14,700
H22: (default numbers not realistic or accurate) | J22: Net System Cost = Total System Cost - Incentives | O22: =DOLLAR('OnGrid Timelines'!$D$38-SUM('OnGrid Timelines'!$D$53:$AC$53),0)&" = "&DOLLAR('OnGrid Timelines'!$D$38,0)&" - "&DOLLAR(SUM('OnGrid Timelines'!$D$53:$AC$53),0) -> $565 = $49,848 - $49,283
J23: ="Total Net Financing Costs over "&MAX(Loan1Term,Loan2Term)&"-year loan term" -> Total Net Financing Costs over 30-year loan term | O23: =DOLLAR(Loan1AndLoan2TotalNetFeesAndInterest,0) -> $7,056
J24: ="Total Net "&IF(FeedIn,"Income","Savings")&" over loan term"&IF($H$21=1," / over 25 years","") -> Total Net Savings over loan term | O24: =DOLLAR(INDEX('OnGrid Timelines'!$E$308:$AH$308,1,MAX(Loan1Term,Loan2Term)),0)&IF($H$21=1," / "&DOLLAR('OnGrid Timelines'!$AC$308,0),"") -> $136,520
J27: ="Admirals Bank Loan"&IF(AND(Fin1IsAdmiralsPlus1,Fin2IsAdmiralsTitle1),"s","") -> Admirals Bank Loan
J29: Cash Paid At Installation | M29: =IF(Fin1IsAdmirals,CashAmount,0) -> 0
J31: ="Admirals Bank SolarStepdown Loan "&IF(OR(AND(Fin1IsAdmiralsTitle1,Loan1AmountFinanced>7500,Loan1IsIntDed="Yes"),AND(Fin2IsAdmiralsTitle1,Loan2AmountFinanced>7500,Loan2IsIntDed="Yes")),"(secured)","(unsecured)") -> Admirals Bank SolarStepdown Loan (unsecured) | R31: Admirals Bank is the solar industry's leading FHA Title-1 loan provider.
J32: Amount Financed | M32: =IF(Fin1IsAdmiralsTitle1,DOLLAR(Loan1AmountFinanced,0)&" (incl. "&DOLLAR(Loan1CalculatedFee,0)&" loan fee)",IF(Fin2IsAdmiralsTitle1,DOLLAR(Loan2AmountFinanced,0)&" (incl. "&DOLLAR(Loan2CalculatedFee,0)&" loan fee)",0)) -> 0
J33: Interest Rate / Term | M33: =IF(Fin1IsAdmiralsTitle1,Loan1IntRate*100&"% / "&Loan1Term&" years",IF(Fin2IsAdmiralsTitle1,Loan2IntRate*100&"% / "&Loan2Term&" years","")) -> 
J34: Monthly Loan Payment | M34: =IF(Fin1IsAdmiralsTitle1,DOLLAR(Loan1InitialMonthlyPmtWithFees,2)&" (incl. "&DOLLAR(Loan1MonthlyFee,2)&" FHA insurance)",IF(Fin2IsAdmiralsTitle1,DOLLAR(Loan2InitialMonthlyPmtWithFees,2)&" (incl. "&DOLLAR(Loan2MonthlyFee,2)&" FHA insurance)","")) -> 
H35: new payment after reamortization | J35: =IF(OR(AND(Fin1IsAdmiralsTitle1,Loan1NewMonthlyPmtWithFees>0,Loan1NewMonthlyPmtWithFees<>Loan1InitialMonthlyPmtWithFees),AND(Fin2IsAdmiralsTitle1,Loan2NewMonthlyPmtWithFees>0,Loan2NewMonthlyPmtWithFees<>Loan2InitialMonthlyPmtWithFees)),"Payment After Reamortization","") ->  | M35: =IF(AND(Fin1IsAdmiralsTitle1,Loan1NewMonthlyPmtWithFees>0,Loan1NewMonthlyPmtWithFees<>Loan1InitialMonthlyPmtWithFees),DOLLAR(Loan1NewMonthlyPmtWithFees,2)&" (after applying "&DOLLAR(Loan1ToPrincipalAtReamortize,0)&" of net benefits)",IF(AND(Fin2IsAdmiralsTitle1,Loan2NewMonthlyPmtWithFees>0,Loan2NewMonthlyPmtWithFees<>Loan2InitialMonthlyPmtWithFees),DOLLAR(Loan2NewMonthlyPmtWithFees,2)&" (after applying "&DOLLAR(Loan2ToPrincipalAtReamortize,0)&" of net benefits)","")) -> 
H37: plus 1 or non-admirals title | J37: =IF(Fin1IsAdmiralsPlus1,"Admirals Bank SolarPlus Loan (unsecured)",IF(Fin2IsDebt,Fin2Desc,"")) -> Personal Line of Credit (unsecured, not tax deductible)
H38: plus 1 desc | J38: =IF(Fin1IsAdmiralsPlus1,Loan1AdmiralsSubTypeDesc,"") -> 
H39: plus 1 or non-admirals amount financed | J39: =IF(OR(Fin1IsAdmiralsPlus1,Fin2IsLoan,Fin2IsLoc),"Amount Financed","") -> Amount Financed | M39: =IF(Fin1IsAdmiralsPlus1,DOLLAR(Loan1AmountFinanced,0)&" (incl. "&DOLLAR(Loan1CalculatedFee,0)&" loan fee)",IF(OR(Fin2IsLoan,Fin2IsLoc),DOLLAR(Loan2AmountFinanced,0),"")) -> $6,448
H40: plus 1 or non-admirals interest rate & term | J40: =IF(OR(Fin1IsAdmiralsPlus1,Fin2IsLoan,Fin2IsLoc),"Interest Rate / Term","") -> Interest Rate / Term | M40: =IF(Fin1IsAdmiralsPlus1,IF(Fin1IsAdmiralsPlus1NoPmt,"(no interest accrues)",Loan1IntRate*100&"% / "&Loan1Term&" years"),IF(OR(Fin2IsLoan,Fin2IsLoc),Loan2IntRate*100&"% / "&Loan2Term&" years","")) -> 13% / 5 years
H41: plus 1 or non-admirals loan pmt | J41: =IF(OR(Fin1IsAdmiralsPlus1,Fin2IsLoan,Fin2IsLoc),"Monthly Loan Payment","") -> Monthly Loan Payment | M41: =IF(Fin1IsAdmiralsPlus1,IF(Fin1IsAdmiralsPlus1NoPmt,"(no monthly payment)",DOLLAR(Loan1InitialMonthlyPmtWithFees,2)),IF(OR(Fin2IsLoan,Fin2IsLoc),DOLLAR(Loan2InitialMonthlyPmtWithFees,2),"")) -> $147.00
J44: PV System
J46: System Size STC Rating | M46: =FIXED(SysSizeSTC,IF(SysSizeSTC>100,0,1))&" kW STC DC" -> 10.4 kW STC DC
J47: =IF(SysRatingType="CEC","System Size CEC Rating","Total System Efficiency") -> System Size CEC Rating | M47: =IF(SysRatingType="CEC",FIXED(SysSizeCEC,IF(SysSizeCEC>100,0,1))&" kW CEC AC",TEXT(EffTotalSystemWithShading,"#.0%")) -> 9.1 kW CEC AC
H48: orientation and roof type | J48: =IF(SysSizeArray2=0,"PV System On:","") ->  | L48: =IF(SysSizeArray2=0,SysArrayAzimuthLong&"-facing "&LOWER(SysRoofTypeText),"") -> 
J49: =IF($H$50=1,"Array 1: ","")&FIXED(SysModCnt+IF($H$50=0,SysModCnt2,0),0)&" "&SysModule&" modules and "&FIXED(SysInvCnt+IF($H$50=0,SysInvCnt2,0),0)&" "&SysInverter&" inverter"&IF(SysInvCnt+IF($H$50=0,SysInvCnt2,0)>1,"s","")&IF($H$50=1, " / " &CHAR(10) &"Array 2: "&FIXED(SysModCnt2,0)&" "&SysModule2&" modules and "&FIXED(SysInvCnt2,0)&" "&SysInverter2&" inverter"&IF(SysInvCnt2>1,"s",""),"") -> Array 1: 33 Sanyo Electric HIT-N215A01 modules and 2 SMA America SB3000US (240V) inverters / Array 2: 15 BP Solar BP3220N modules and 1 SMA America SB7000US (240V) inverter
G50: 1 = Show Array-2 Separately DON'T REMOVE | H50: =IF(OR(SysSizeArray2=0,,AND(SysModule2=SysModule,SysInverter2=SysInverter)),0,1) -> 1
J51: =IF(NOT(FeedIn),"Electric Usage and ","")&"Solar Production" -> Electric Usage and Solar Production
J53: =IF(NOT(FeedIn),"Estimated Yr-1 Electric Usage","Est. Yr-1 Solar Production") -> Estimated Yr-1 Electric Usage | M53: =IF(FeedIn,FIXED(ProdTot,0)&" kWh",FIXED(UseAnnualTotal,0)&" kWh"&IF(AdjLifestylePct-ABS(AdjEnergyEffPct)<>0," (with "&FIXED(ABS(AdjLifestylePct-ABS(AdjEnergyEffPct))*100,0)&"% "&IF(AdjLifestylePct-ABS(AdjEnergyEffPct)>0,"increase","pre-solar reduction")&")","")) -> 16,958 kWh (with 20% pre-solar reduction)
J54: =IF(NOT(FeedIn),"Est. Yr-1 Solar Production","") -> Est. Yr-1 Solar Production | M54: =IF(NOT(FeedIn),FIXED(ProdTot,0)&" kWh","") -> 10,852 kWh
J55: =IF(NOT(FeedIn),"Annual kWh Offset %","") -> Annual kWh Offset % | M55: =IF(NOT(FeedIn),UsePctOffset,"") -> 0.6399543246
X58: LEASE AND PPA
W60: FIN1.3 LeaseOrPPA | Y60: =IF(AND(NOT(Fin1IsPPA),NOT(Fin1IsLease)),"LEASE / PPA NOT CURRENTLY APPLIED","Solar Electric "&IF(Fin1IsPrepaidLeaseOrPPA,"Prepaid-","")&Fin1TypeShort&" Proposal") -> LEASE / PPA NOT CURRENTLY APPLIED
Y61: =FIXED(SysSize,IF(SysSize>100,0,1))&" kW "&IF(SysRatingType="STC","STC",IF(SysRatingType="PTC","PTC","CEC"))&" PV System" -> 9.1 kW CEC PV System
AK62: General solar-savings image will be replace by ''Site Image 1' if selected on Inputs sheet
Y63: Prepared For: | AA63: =CustsFullName -> Jackie Sun and Jilla Sky
AA64: =IF(LEN(CustCompany)>1,CustCompany,"") -> Ichiban Hibachi
Y65: Site: | AA65: =CustFullSiteAddr -> 133 Pelhamdale Ave, #1
AA66: =CustFullSiteCityStZip -> Pelham, CA 10803
Y67: Date: | AA67: =DateOfAnalysis -> 2013-04-28
Y70: Net Savings
V72: 1 = Also Show After 25 Years DON'T REMOVE | W72: =IF(AND(NOT(Fin1IsPPA),NOT(Fin1IsLease)),0,IF(OR(AND(Fin1IsPPA,PPA1BuyoutPrice<>0,PPA1BuyoutPriceToCashFlow="Yes"),AND(Fin1IsLease,Lease1BuyoutPrice<>0,Lease1BuyoutPriceToCashFlow="Yes")),1,IF(OR(NOT(FeedIn),Feed1Duration=25,(Feed2NonTOUSum+Feed2NonTOUWin+Feed2SumPk+Feed2SumPartPk)>0),1,0))) -> 0 | Y72: ="Total "&IF(FeedIn,"Income","Electric Bill Savings")&" over "&IF($W$72=1,"",(Fin1IsPPA*PPA1Term)+(Fin1IsLease*Lease1Term)&"-year ")&IF(Fin1IsPPA,"PPA","lease")&" term"&IF($W$72=0,""," / over 25 years") -> Total Electric Bill Savings over 0-year lease term | AD72: =DOLLAR(-(SUM('OnGrid Timelines'!$D$321:INDEX('OnGrid Timelines'!$E$321:$AC$321,1,(Fin1IsPPA*PPA1Term)+(Fin1IsLease*Lease1Term)))-SUM('OnGrid Timelines'!$D$326:INDEX('OnGrid Timelines'!$E$326:$AC$326,1,(Fin1IsPPA*PPA1Term)+(Fin1IsLease*Lease1Term)))),0)&IF($W$72=0,""," / "&DOLLAR(-(SUM('OnGrid Timelines'!$D$321:$AC$321)-SUM('OnGrid Timelines'!$D$326:$AC$326)),0)) -> $183,279
W73: (default numbers not realistic or accurate) | Y73: ="Total "&IF(CommercialCust,"Net ","")&"Financing Costs over "&IF($W$72=1,"",(Fin1IsPPA*PPA1Term)+(Fin1IsLease*Lease1Term)&"-year ")&IF(Fin1IsPPA,"PPA","lease")&" term"&IF($W$72=1," / over 25 years","") -> Total Financing Costs over 0-year lease term | AD73: =DOLLAR(-(SUM('OnGrid Timelines'!$D$327:INDEX('OnGrid Timelines'!$E$327:$AC$327,1,(Fin1IsPPA*PPA1Term)+(Fin1IsLease*Lease1Term)))-SUM('OnGrid Timelines'!$D$326:INDEX('OnGrid Timelines'!$E$326:$AC$326,1,(Fin1IsPPA*PPA1Term)+(Fin1IsLease*Lease1Term)))),0)&IF($W$72=0,""," / "&DOLLAR(-(SUM('OnGrid Timelines'!$D$327:$AC$327)-SUM('OnGrid Timelines'!$D$326:$AC$326)),0)) -> $51,351
Y74: ="Total Net "&IF(FeedIn,"Income","Savings")&" over "&IF($W$72=1,"",(Fin1IsPPA*PPA1Term)+(Fin1IsLease*Lease1Term)&"-year ")&IF(Fin1IsPPA,"PPA","lease")&" term"&IF($W$72=1," / over 25 years","") -> Total Net Savings over 0-year lease term | AD74: =IF(AND(NOT(Fin1IsPPA),NOT(Fin1IsLease)),0,DOLLAR(INDEX('OnGrid Timelines'!$E$330:$AC$330,1,(Fin1IsPPA*PPA1Term)+(Fin1IsLease*Lease1Term)),0)&IF($W$72=0,""," / "&DOLLAR('OnGrid Timelines'!$AC$330,0))) -> 0
T76: =IF(OR(AND(Fin1IsPPA,PPA1BuyoutPrice<>0,PPA1BuyoutPriceToCashFlow),AND(Fin1IsLease,Lease1BuyoutPrice<>0,Lease1BuyoutPriceToCashFlow))," / over 25 years","") -> 
Y77: =IF(Fin1IsPrepaidLeaseOrPPA,"Prepaid ","")&"Solar "&IF(Fin1IsPPA,"PPA","Lease") -> Solar Lease
Y79: ="Upfront "&IF(OR(AND(Fin1IsPPA,PPA1UpfrontAmount=0,(PPA1BrokerFee+PPA1LegalFees+PPA1OtherFees)>0),AND(Fin1IsLease,Lease1UpfrontAmount=0,(Lease1BrokerFee+Lease1LegalFees+Lease1OtherFees)>0)),"Fees","Payment") -> Upfront Payment | AB79: =DOLLAR(IF(Fin1IsPPA,PPA1UpfrontAmount+PPA1BrokerFee+PPA1LegalFees+PPA1OtherFees,IF(Fin1IsLease,Lease1UpfrontAmount+Lease1BrokerFee+Lease1LegalFees+Lease1OtherFees,0)),0)&IF(OR(AND(Fin1IsPPA,PPA1UpfrontAmount>0,(PPA1BrokerFee+PPA1LegalFees+PPA1OtherFees)>0),AND(Fin1IsLease,Lease1UpfrontAmount>0,(Lease1BrokerFee+Lease1LegalFees+Lease1OtherFees)>0))," (incl. "&DOLLAR(((PPA1BrokerFee+PPA1LegalFees+PPA1OtherFees)*Fin1IsPPA)+((Lease1BrokerFee+Lease1LegalFees+Lease1OtherFees)*Fin1IsLease),0)&" in fees)","") -> $0
Y80: =IF(Fin1IsPPA,IF(PPA1kWhRate<>0,"Average ","")&"Monthly PPA Payment","Monthly Lease Payment") -> Monthly Lease Payment | AB80: =IF(Fin1IsPPA,DOLLAR(PPA1kWhRate/100*ProdTot/12,0),DOLLAR(Lease1Payment,2)) -> $0.00
Y81: =IF(Fin1IsPPA,"PPA","Lease")&" Term" -> Lease Term | AB81: =(Fin1IsPPA*PPA1Term)+(Fin1IsLease*Lease1Term) -> 0
Y82: =IF(Fin1IsPrepaidLeaseOrPPA,"","Annual "&IF(Fin1IsPPA,"PPA","Lease")&" Escalation Rate") -> Annual Lease Escalation Rate | AB82: =IF(Fin1IsPrepaidLeaseOrPPA,"",(Fin1IsPPA*PPA1PmtEscalator)+(Fin1IsLease*Lease1PmtEscalator)) -> 0
W83: buyout price or removal charge | Y83: =IF(OR(AND(Fin1IsPPA,PPA1BuyoutPrice<>0),AND(Fin1IsLease,Lease1BuyoutPrice<>0)),"End-of-Term Price to Own (optional) *",IF(OR(AND(Fin1IsPPA,PPA1RemovalCharge<>-1),AND(Fin1IsLease,Lease1RemovalCharge<>-1)),"End-of-Term Removal Charge (optional)","")) ->  | AB83: =IF(Fin1IsPPA,IF(PPA1BuyoutPrice<>0,PPA1BuyoutPrice,IF(PPA1RemovalCharge<>-1,PPA1RemovalCharge,"")),IF(Fin1IsLease,IF(Lease1BuyoutPrice<>0,Lease1BuyoutPrice,IF(Lease1RemovalCharge<>-1,Lease1RemovalCharge,"")),"")) -> 
Y86: PV System
Y88: System Size STC Rating | AB88: =FIXED(SysSizeSTC,IF(SysSizeSTC>100,0,1))&" kW STC DC" -> 10.4 kW STC DC
Y89: =IF(SysRatingType="CEC","System Size CEC Rating","Total System Efficiency") -> System Size CEC Rating | AB89: =IF(SysRatingType="CEC",FIXED(SysSizeCEC,IF(SysSizeCEC>100,0,1))&" kW CEC AC",TEXT(EffTotalSystemWithShading,"#.0%")) -> 9.1 kW CEC AC
W90: orientation and roof type | Y90: =IF(SysSizeArray2=0,"PV System On:","") ->  | AA90: =IF(SysSizeArray2=0,SysArrayAzimuthLong&"-facing "&LOWER(SysRoofTypeText),"") -> 
Y91: =IF($W$92=1,"Array 1: ","")&FIXED(SysModCnt+IF($W$92=0,SysModCnt2,0),0)&" "&SysModule&" modules and "&FIXED(SysInvCnt+IF($W$92=0,SysInvCnt2,0),0)&" "&SysInverter&" inverter"&IF(SysInvCnt+IF($W$92=0,SysInvCnt2,0)>1,"s","")&IF($W$92=1, " / " &CHAR(10) &"Array 2: "&FIXED(SysModCnt2,0)&" "&SysModule2&" modules and "&FIXED(SysInvCnt2,0)&" "&SysInverter2&" inverter"&IF(SysInvCnt2>1,"s",""),"") -> Array 1: 33 Sanyo Electric HIT-N215A01 modules and 2 SMA America SB3000US (240V) inverters / Array 2: 15 BP Solar BP3220N modules and 1 SMA America SB7000US (240V) inverter
V92: 1 = Show Array-2 Separately DON'T REMOVE | W92: =IF(OR(SysSizeArray2=0,,AND(SysModule2=SysModule,SysInverter2=SysInverter)),0,1) -> 1
Y93: =IF(NOT(FeedIn),"Electric Usage and ","")&"Solar Production" -> Electric Usage and Solar Production
Y95: =IF(NOT(FeedIn),"Estimated Yr-1 Electric Usage","Est. Yr-1 Solar Production") -> Estimated Yr-1 Electric Usage | AB95: =IF(FeedIn,FIXED(ProdTot,0)&" kWh",FIXED(UseAnnualTotal,0)&" kWh"&IF(AdjLifestylePct-ABS(AdjEnergyEffPct)<>0," (with "&FIXED(ABS(AdjLifestylePct-ABS(AdjEnergyEffPct))*100,0)&"% "&IF(AdjLifestylePct-ABS(AdjEnergyEffPct)>0,"increase","pre-solar reduction")&")","")) -> 16,958 kWh (with 20% pre-solar reduction)
Y96: =IF(NOT(FeedIn),"Est. Yr-1 Solar Production","") -> Est. Yr-1 Solar Production | AB96: =IF(NOT(FeedIn),FIXED(ProdTot,0)&" kWh","") -> 10,852 kWh
Y97: =IF(NOT(FeedIn),"Annual kWh Offset %","") -> Annual kWh Offset % | AB97: =IF(NOT(FeedIn),UsePctOffset,"") -> 0.6399543246
Y100: =""""&IF(OR(ResidentialCust,AffHousingCust),"Peace of Mind","Safe Investment")&""""&" Benefits with Solar "&IF(Fin1IsPPA,"PPA","Lease") -> "Peace of Mind" Benefits with Solar Lease
Y102: Free PV system monitoring | AD102: Guaranteed performance
Y103: No maintenance or equipment replacement costs | AD103: No insurance or ownership worries
W104: option to own at end of term / free removal | Y104: =IF(OR(AND(Fin1IsPPA,PPA1BuyoutPrice<>0),AND(Fin1IsLease,Lease1BuyoutPrice<>0)),"Option to own at end of term","Low financial risk") -> Low financial risk | AD104: =IF(OR(AND(Fin1IsPPA,PPA1RemovalCharge<>-1),AND(Fin1IsLease,Lease1RemovalCharge<>-1)),"Option to remove at end of term",IF(FeedIn,"Reliable investment","Predictable electricity costs")) -> Predictable electricity costs
AM108: FINANCING VS CASH
AL111: FIN2.1 FinancingVsCash | AN111: =IF(FeedIn,"Cumulative Net Feed-In Tariff Income",IF(OR(Fin1IsDebt,Fin2IsDebt,Fin1IsPPA,Fin1IsLease),IF(Fin1IsPrepaidLeaseOrPPA,"Upfront "&Fin1TypeShort&" Payment plus ","")&"Electric Bill With Solar "&IF(Fin1IsPrepaidLeaseOrPPA,"","plus "&IF(Fin1IsAdmirals,"Admirals Bank",IF(Fin1IsLocSmart,"Smart Financing",Fin1TypeShort))&" Payments ")&"compared to the Electric Bill Without Solar","(Cash Financed)")) -> Electric Bill With Solar plus Smart Financing Payments compared to the Electric Bill Without Solar
AL132: Not for cash-purchase warning / Not-fully-paid-for warning | AN132: =IF(AND(NOT(Fin1IsDebt),NOT(Fin1IsPPA),NOT(Fin1IsLease)),"THIS PAGE DOESN'T APPLY TO CASH-PURCHASED SYSTEMS",IF(AND(NOT(Fin1IsPPA),NOT(Fin1IsLease),Loan2NetBalance>1),"NOT FULLY PAID FOR","")) -> 
AN135: Comparing Options - Pick Your Best Choice
AP137: Upfront | AQ137: 1 | AR137: =ROUND(IF(Fin1IsPPA,PPA1Term*IF(AND(PPA1Term<25,PPA1BuyoutPrice>0,PPA1BuyoutPriceToCashFlow="Yes"),0.33,0.25),0)+IF(Fin1IsLease,Lease1Term*IF(AND(Lease1Term<25,Lease1BuyoutPrice>0,Lease1BuyoutPriceToCashFlow="Yes"),0.33,0.25),0)+IF(Fin1IsDebt,MAX(Loan1Term,Loan2Term)*IF(MAX(Loan1Term,Loan2Term)<25,0.33,0.25),0)+IF(AND(NOT(Fin1IsPPA),NOT(Fin1IsLease),NOT(Fin1IsDebt)),25*0.25,0),0) -> 8 | AS137: =ROUND(IF(Fin1IsPPA,PPA1Term*IF(AND(PPA1Term<25,PPA1BuyoutPrice>0,PPA1BuyoutPriceToCashFlow="Yes"),0.66,0.5),0)+IF(Fin1IsLease,Lease1Term*IF(AND(Lease1Term<25,Lease1BuyoutPrice>0,Lease1BuyoutPriceToCashFlow="Yes"),0.66,0.5),0)+IF(Fin1IsDebt,MAX(Loan1Term,Loan2Term)*IF(MAX(Loan1Term,Loan2Term)<25,0.66,0.5),0)+IF(AND(NOT(Fin1IsPPA),NOT(Fin1IsLease),NOT(Fin1IsDebt)),25*0.55,0),0) -> 15 | AT137: =ROUND(IF(Fin1IsPPA,PPA1Term*IF(AND(PPA1Term<25,PPA1BuyoutPrice>0,PPA1BuyoutPriceToCashFlow="Yes"),1,0.75),0)+IF(Fin1IsLease,Lease1Term*IF(AND(Lease1Term<25,Lease1BuyoutPrice>0,Lease1BuyoutPriceToCashFlow="Yes"),1,0.75),0)+IF(Fin1IsDebt,MAX(Loan1Term,Loan2Term)*IF(MAX(Loan1Term,Loan2Term)<25,1,0.75),0)+IF(AND(NOT(Fin1IsPPA),NOT(Fin1IsLease),NOT(Fin1IsDebt)),25*0.75,0),0) -> 23 | AU137: =ROUND(IF(Fin1IsPPA,IF(AND(PPA1Term<25,PPA1BuyoutPrice>0,PPA1BuyoutPriceToCashFlow="Yes"),25,PPA1Term),0)+IF(Fin1IsLease,IF(AND(Lease1Term<25,Lease1BuyoutPrice>0,Lease1BuyoutPriceToCashFlow="Yes"),25,Lease1Term),0)+IF(Fin1IsDebt,IF(MAX(Loan1Term,Loan2Term)<25,25,MAX(Loan1Term,Loan2Term)),0)+IF(AND(NOT(Fin1IsPPA),NOT(Fin1IsLease),NOT(Fin1IsDebt)),25*0.75,0),0) -> 30 | AW137: Note: Default numbers are not coherent or realistic -- taken from multiple scenarios
AN139: o | AO139: ="WITH "&IF(Fin1IsLocSmart,"SMART FINANCING",IF(Fin1IsAdmirals,"ADMIRALS BANK LOAN"&IF(AND(Fin1IsAdmiralsPlus1,Fin2IsAdmiralsTitle1),"S",""),IF(Fin1IsPrepaidLeaseOrPPA,"PREPAID ","")&UPPER(Fin1TypeShort))) -> WITH SMART FINANCING | AW139: "WITH "&UPPER(LEFT('OnGrid Timelines'!$B$288,FIND(" - ",'OnGrid Timelines'!$B$288)))
AL141: (Electricity Cost w/o Solar - New Net Electricity Cost) + RECs | AN141: ="Cumulative "&IF(FeedIn,"Income","Savings") -> Cumulative Savings | AQ141: =INDEX(IF(OR(Fin1IsPPA,Fin1IsLease),'OnGrid Timelines'!$E$358:$AH$358,'OnGrid Timelines'!$E$356:$AH$356),1,AQ$137) -> 649 | AR141: =INDEX(IF(OR(Fin1IsPPA,Fin1IsLease),'OnGrid Timelines'!$E$358:$AH$358,'OnGrid Timelines'!$E$356:$AH$356),1,AR$137) -> 5474 | AS141: =INDEX(IF(OR(Fin1IsPPA,Fin1IsLease),'OnGrid Timelines'!$E$358:$AH$358,'OnGrid Timelines'!$E$356:$AH$356),1,AS$137) -> 12896 | AT141: =INDEX(IF(OR(Fin1IsPPA,Fin1IsLease),'OnGrid Timelines'!$E$358:$AH$358,'OnGrid Timelines'!$E$356:$AH$356),1,AT$137) -> 22360 | AU141: =INDEX(IF(OR(Fin1IsPPA,Fin1IsLease),'OnGrid Timelines'!$E$358:$AH$358,'OnGrid Timelines'!$E$356:$AH$356),1,AU$137) -> 25130
AL142: (RECs included in financing cash-flow timelines) / Net System Cost With Financing (after incentives) - RECs | AN142: =IF(OR(Fin1IsPPA,Fin1IsLease),"Cumulative Cost","Cumulative Cost **") -> Cumulative Cost ** | AP142: =IF(OR(Fin1IsPPA,Fin1IsLease),'OnGrid Timelines'!D359,'OnGrid Timelines'!D357) -> -2000 | AQ142: =INDEX(IF(OR(Fin1IsPPA,Fin1IsLease),'OnGrid Timelines'!$E$359:$AH$359,'OnGrid Timelines'!$E$357:$AH$357),1,AQ$137) -> -4734 | AR142: =INDEX(IF(OR(Fin1IsPPA,Fin1IsLease),'OnGrid Timelines'!$E$359:$AH$359,'OnGrid Timelines'!$E$357:$AH$357),1,AR$137) -> -19351 | AS142: =INDEX(IF(OR(Fin1IsPPA,Fin1IsLease),'OnGrid Timelines'!$E$359:$AH$359,'OnGrid Timelines'!$E$357:$AH$357),1,AS$137) -> -38571 | AT142: =INDEX(IF(OR(Fin1IsPPA,Fin1IsLease),'OnGrid Timelines'!$E$359:$AH$359,'OnGrid Timelines'!$E$357:$AH$357),1,AT$137) -> -54029 | AU142: =INDEX(IF(OR(Fin1IsPPA,Fin1IsLease),'OnGrid Timelines'!$E$359:$AH$359,'OnGrid Timelines'!$E$357:$AH$357),1,AU$137) -> -56031
AL143: Cumulative Cash Flow | AN143: ="Net "&IF(FeedIn,"Income","Savings") -> Net Savings | AQ143: =INDEX(IF(OR(Fin1IsPPA,Fin1IsLease),'OnGrid Timelines'!$E$330:$AH$330,'OnGrid Timelines'!$E$308:$AH$308),1,AQ$137) -> -11 | AR143: =INDEX(IF(OR(Fin1IsPPA,Fin1IsLease),'OnGrid Timelines'!$E$330:$AH$330,'OnGrid Timelines'!$E$308:$AH$308),1,AR$137) -> 24324 | AS143: =INDEX(IF(OR(Fin1IsPPA,Fin1IsLease),'OnGrid Timelines'!$E$330:$AH$330,'OnGrid Timelines'!$E$308:$AH$308),1,AS$137) -> 54601 | AT143: =INDEX(IF(OR(Fin1IsPPA,Fin1IsLease),'OnGrid Timelines'!$E$330:$AH$330,'OnGrid Timelines'!$E$308:$AH$308),1,AT$137) -> 115845 | AU143: =INDEX(IF(OR(Fin1IsPPA,Fin1IsLease),'OnGrid Timelines'!$E$330:$AH$330,'OnGrid Timelines'!$E$308:$AH$308),1,AU$137) -> 136520
AN145: o | AO145: CASH PURCHASE
AL147: (Same as above) | AN147: ="Cumulative "&IF(FeedIn,"Income","Savings") -> Cumulative Savings | AQ147: =INDEX('OnGrid Timelines'!$E$360:$AH$360,1,AQ$137) -> 649 | AR147: =INDEX('OnGrid Timelines'!$E$360:$AH$360,1,AR$137) -> 5474 | AS147: =INDEX('OnGrid Timelines'!$E$360:$AH$360,1,AS$137) -> 12896 | AT147: =INDEX('OnGrid Timelines'!$E$360:$AH$360,1,AT$137) -> 22360 | AU147: =INDEX('OnGrid Timelines'!$E$360:$AH$360,1,AU$137) -> 25130
AL148: Net System Cost + Operating Costs - Incentives | AN148: =IF(OR(Fin1IsPPA,Fin1IsLease),"Cumulative Cost","Cumulative Cost **") -> Cumulative Cost ** | AP148: ='OnGrid Timelines'!D361 -> -45914 | AQ148: =INDEX('OnGrid Timelines'!$E$361:$AH$361,1,AQ$137) -> -18505 | AR148: =INDEX('OnGrid Timelines'!$E$361:$AH$361,1,AR$137) -> -8619 | AS148: =INDEX('OnGrid Timelines'!$E$361:$AH$361,1,AS$137) -> -10611 | AT148: =INDEX('OnGrid Timelines'!$E$361:$AH$361,1,AT$137) -> -10356 | AU148: =INDEX('OnGrid Timelines'!$E$361:$AH$361,1,AU$137) -> -10995
AN149: ="Net "&IF(FeedIn,"Income","Savings") -> Net Savings | AQ149: =IF(OR(Fin1IsPPA,Fin1IsLease),AQ147+AQ148,INDEX('OnGrid Timelines'!$E$164:$AH$164,1,MIN(AQ$137,25))) -> -28237 | AR149: =IF(OR(Fin1IsPPA,Fin1IsLease),AR147+AR148,INDEX('OnGrid Timelines'!$E$164:$AH$164,1,MIN(AR$137,25))) -> 27083 | AS149: =IF(OR(Fin1IsPPA,Fin1IsLease),AS147+AS148,INDEX('OnGrid Timelines'!$E$164:$AH$164,1,MIN(AS$137,25))) -> 77996 | AT149: =IF(OR(Fin1IsPPA,Fin1IsLease),AT147+AT148,INDEX('OnGrid Timelines'!$E$164:$AH$164,1,MIN(AT$137,25))) -> 154389 | AU149: =IF(OR(Fin1IsPPA,Fin1IsLease),AU147+AU148,INDEX('OnGrid Timelines'!$E$164:$AH$164,1,MIN(AU$137,25))) -> 176334
AN151: o | AO151: NO SOLAR - DO NOTHING
AN153: ="Net "&IF(FeedIn,"Income","Savings") -> Net Savings | AQ153: 0 | AR153: 0 | AS153: 0 | AT153: 0 | AU153: 0
AL157: Footnote 1 | AN157: =IF(AND(NOT(Fin1IsPPA),NOT(Fin1IsLease)),"* Page-1 "&IF(FeedIn,"Income","Bill Savings")&" is after system operating expenses. Page 2 includes these expenses under Cumulative Cost.","") -> * Page-1 Bill Savings is after system operating expenses. Page 2 includes these expenses under Cumulative Cost.
AL158: Footnote 2 | AN158: =IF(AND(NOT(Fin1IsPPA),NOT(Fin1IsLease)),"** Cumulative Cost is reduced by incentives when received."&IF($AU$148>0," In your case, total incentives exceed total costs"&IF($AU$142<0," if cash purchased.",", adding to net savings."),""),"") -> ** Cumulative Cost is reduced by incentives when received.
AL163: Disclaimers / Notices | AN163: =IF(Fin1IsAdmirals,AdmiralsDisclaimer,IF(Fin1IsDebt,OnGridDisclaimer1&OnGridDisclaimer2&OnGridDisclaimer3&OnGridDisclaimer4,IF(OR(AND(Fin1IsPPA,PPA1BuyoutPrice<>0),AND(Fin1IsLease,Lease1BuyoutPrice<>0)),"* "&PPALeaseBuyoutNotice,""))) -> Disclaimer: This information is provided as an illustration of potential financial benefits stemming from ownership of a renewable energy power system. This is not a production guarantee. A professional accountant or tax advisor should confirm these estimates. Neither OnGrid Solar nor any authorized user warrants the applicability of these estimates for particular business cases, and both disclaim all liability
AL165: DON'T REMOVE | AN165: Net RECs | AQ165: =(SUM('OnGrid Timelines'!$E$122:INDEX('OnGrid Timelines'!$E$122:$AH$122,1,MIN(AQ137,25)))-ABS(SUM('OnGrid Timelines'!$E$210:INDEX('OnGrid Timelines'!$E$210:$AH$210,1,MIN(AQ137,25))))) -> 742 | AR165: =(SUM('OnGrid Timelines'!$E$122:INDEX('OnGrid Timelines'!$E$122:$AH$122,1,MIN(AR137,25)))-ABS(SUM('OnGrid Timelines'!$E$210:INDEX('OnGrid Timelines'!$E$210:$AH$210,1,MIN(AR137,25))))) -> 5740 | AS165: =(SUM('OnGrid Timelines'!$E$122:INDEX('OnGrid Timelines'!$E$122:$AH$122,1,MIN(AS137,25)))-ABS(SUM('OnGrid Timelines'!$E$210:INDEX('OnGrid Timelines'!$E$210:$AH$210,1,MIN(AS137,25))))) -> 11613 | AT165: =(SUM('OnGrid Timelines'!$E$122:INDEX('OnGrid Timelines'!$E$122:$AH$122,1,MIN(AT137,25)))-ABS(SUM('OnGrid Timelines'!$E$210:INDEX('OnGrid Timelines'!$E$210:$AH$210,1,MIN(AT137,25))))) -> 13684 | AU165: =(SUM('OnGrid Timelines'!$E$122:INDEX('OnGrid Timelines'!$E$122:$AH$122,1,MIN(AU137,25)))-ABS(SUM('OnGrid Timelines'!$E$210:INDEX('OnGrid Timelines'!$E$210:$AH$210,1,MIN(AU137,25))))) -> 13684
AY167: ENVIRONMENT
AX169: FIN3.1 Environment | AZ169: Environmental Benefits
AZ175: Over 25 years, this solar system is
AZ176: estimated to offset:
AZ178: =FIXED(EnvBenCO2_25yrs,0) -> 425,590 | BB178: lbs of CO2 (greenhouse gas)
AZ179: =FIXED(EnvBenNOx_25yrs,0) -> 1,366 | BB179: lbs of NOx (smog)
AZ180: =FIXED(EnvBenSOx_25yrs,0) -> 1,236 | BB180: lbs of SOx (acid rain)
AZ181: =FIXED(EnvBenParticulates_25yrs,0) -> 84 | BB181: lbs of particulates (asthma)
AZ183: =FIXED(EnvBenMiles_25Yrs,0) -> 692,477 | BB183: ="miles in an average car" -> miles in an average car
BB184: ="or "&FIXED(ProdTot*2.552433,0)& " miles per year" -> or 27,699 miles per year
BH187: ="It's like taking "&FIXED(EnvBenCars_25yrs,IF(EnvBenCars_25yrs<50,1,0))&" cars off the road for 25 years" -> It's like taking 2.2 cars off the road for 25 years
BH209: ="or planting "&FIXED(EnvBenTreeAcres, IF(EnvBenTreeAcres<50,1,0))&" acres of trees" -> or planting 3.6 acres of trees
BT214: LINE OF CREDIT or NON-ADMIRALS LOAN
BS216: FIN1.1 LoanLOC | BT216: =IF(OR(Fin1IsDebt),"Solar Electric Proposal with "&IF(Fin1IsLocSmart,"Smart Financing",Fin1TypeShort),"DEBT FINANCING NOT CURRENTLY APPLIED") -> Solar Electric Proposal with Smart Financing
BU217: =IF(AND(NOT(Fin1IsPPA),NOT(Fin1IsLease),Loan2NetBalance>1),"NOT FULLY PAID FOR",FIXED(SysSize,IF(SysSize>100,0,1))&" kW "&IF(SysRatingType="STC","STC",IF(SysRatingType="PTC","PTC","CEC"))&" PV System") -> 9.1 kW CEC PV System
CG218: General solar-savings image will be replace by ''Site Image 1' if selected on Inputs sheet
BU219: Prepared For: | BW219: =CustsFullName&IF(AND(LEN(CustsFullName)>1,LEN(CustCompany)>1),", ","")&IF(LEN(CustCompany)>1,CustCompany,"") -> Jackie Sun and Jilla Sky, Ichiban Hibachi
BU220: Site: | BW220: =CustFullSiteAddr -> 133 Pelhamdale Ave, #1
BW221: =CustFullSiteCityStZip -> Pelham, CA 10803
BU222: Date: | BW222: =DateOfAnalysis -> 2013-04-28
BU225: ="Net "&IF(FeedIn,"Feed-In Tariff Income","Savings") -> Net Savings
BR227: DON'T REMOVE | BS227: =IF(NOT(Fin1IsDebt),0,IF(MAX(Loan1Term,Loan2Term)>=25,0,IF(OR(NOT(FeedIn),Feed1Duration=25,(Feed2NonTOUSum+Feed2NonTOUWin+Feed2SumPk+Feed2SumPartPk)>0),1,0))) -> 0 | BU227: ="Total "&IF(FeedIn,"Income",IF(SysREC=0,"Electric ","")&"Bill Savings")&IF(AND($BS$227=0,SysREC<>0)," and RECs","")&" over "&IF(AND($BS$227=0,SysREC=0),MAX(Loan1Term,Loan2Term)&"-year ","")& "loan term"&IF($BS$227=1," / over 25 years","")&" *" -> Total Bill Savings and RECs over loan term * | BZ227: =DOLLAR(INDEX('OnGrid Timelines'!$E$355:$AH$355,1,MAX(Loan1Term,Loan2Term))-SUM('OnGrid Timelines'!$E$38:INDEX('OnGrid Timelines'!$E$38:$AC$38,1,MIN(25,MAX(Loan1Term,Loan2Term)))),0)&IF($BS$227=1," / "&DOLLAR('OnGrid Timelines'!$AC$355-SUM('OnGrid Timelines'!$E$38:$AC$38),0),"") -> $14,700
BS228: (default numbers not realistic or accurate) | BU228: Net System Cost = Total System Cost - Incentives | BZ228: =DOLLAR('OnGrid Timelines'!$D$38-SUM('OnGrid Timelines'!$D$53:$AC$53),0)&" = "&DOLLAR('OnGrid Timelines'!$D$38,0)&" - "&DOLLAR(SUM('OnGrid Timelines'!$D$53:$AC$53),0) -> $565 = $49,848 - $49,283
BU229: ="Total Net Financing Costs over "&MAX(Loan1Term,Loan2Term)&"-year loan term" -> Total Net Financing Costs over 30-year loan term | BZ229: =DOLLAR(Loan1AndLoan2TotalNetFeesAndInterest,0) -> $7,056
BU230: ="Total Net "&IF(FeedIn,"Income","Savings")&" over loan term"&IF($BS$227=1," / over 25 years","") -> Total Net Savings over loan term | BZ230: =DOLLAR(INDEX('OnGrid Timelines'!$E$308:$AH$308,1,MAX(Loan1Term,Loan2Term)),0)&IF($BS$227=1," / "&DOLLAR('OnGrid Timelines'!$AC$308,0),"") -> $136,520
BU233: =IF(Fin1IsLocSmart,"Smart ","")&"Financing" -> Smart Financing | BZ233: =IF(OR(Fin1IsLocSmart,Fin2IsLocSmart),"What is Smart Financing?",IF(OR(AND(Fin1IsDebt,Loan1Term=Loan1AmortTerm,Loan1Term>Loan1PayoffYear),AND(Fin2IsDebt,Loan2Term=Loan2AmortTerm,Loan2Term>Loan2PayoffYear)),"Early Payoff","")) -> What is Smart Financing? | CG233: Smart Financing or Early Payoff explanation title
BU235: Cash Paid At Installation | BX235: =CashAmount -> 2000 | BZ235: =IF(OR(Fin1IsLocSmart,Fin2IsLocSmart),"With Smart Financing, some or all incentives "&IF(NOT(NonProfitGov),"(such as the 30% federal tax credit) ","")&"can be used to pay down the line-of-credit principal when received."&CHAR(10)&CHAR(10)&"The monthly payment is calculated to pay off the principal over the "&IF(Fin1IsLocSmart,Loan1Term,Loan2Term)&"-year term.",IF(AND(Fin1IsDebt,Loan1Term=Loan1AmortTerm,Loan1Term>Loan1PayoffYear),"With "&DOLLAR(Loan1ToPrincipalTotal,0)&" of net benefits applied to "&LOWER(Fin1TypeShort)&" principal, it will be fully paid off in the "&Loan1PayoffYear&IF(Loan1PayoffYear=1,"st",IF(Loan1PayoffYear=2,"nd",IF(Loan1PayoffYear=3,"rd","th")))&" year.",IF(AND(Fin2IsDebt,Loan2Term=Loan2AmortTerm,Loan2Term>Loan2PayoffYear),"With "&DOLLAR(Loan2ToPrincipalTotal,0)&" of net benefits applied to "&LOWER(Fin2TypeShort)&" (loan 2) principal, it will be fully paid off in the "&Loan2PayoffYear&IF(Loan2PayoffYear=1,"st",IF(Loan2PayoffYear=2,"nd",IF(Loan2PayoffYear=3,"rd","th")))&" year.",""))) -> With Smart Financing, some or all incentives (such as the 30% federal tax credit) can be used to pay down the line-of-credit principal when received. The monthly payment is calculated to pay off the principal over the 30-year term. | CG235: Smart Financing or Early Payoff explanation
BU237: =Fin1Desc -> Home Equity Line of Credit
BU238: Amount Financed | BX238: =Loan1AmountFinanced -> 23000
BU239: Interest Rate / Term | BX239: =Loan1IntRate*100&"% / "&Loan1Term&" years" -> 5% / 30 years
BU240: Monthly Loan Payment | BX240: =Loan1InitialMonthlyPmtWithFees -> 143
BS241: new loan-1 payment after reamortization, or extra benefits applied to LOC | BU241: =IF(AND(Fin1IsLoan,Loan1NewMonthlyPmtWithFees<>0,Loan1NewMonthlyPmtWithFees<>Loan1InitialMonthlyPmtWithFees),"Payment After Reamortization",IF(AND(Fin1IsDebt,Loan1ToPrincipalTotal>0),"Net Benefits To Principal","")) -> Net Benefits To Principal | BX241: =IF(AND(Fin1IsLoan,Loan1NewMonthlyPmtWithFees<>0,Loan1NewMonthlyPmtWithFees<>Loan1InitialMonthlyPmtWithFees),DOLLAR(Loan1NewMonthlyPmtWithFees,2)&" (after applying "&DOLLAR(Loan1ToPrincipalAtReamortize,0)&" of net benefits)",IF(AND(Fin1IsDebt,Loan1ToPrincipalTotal>0),DOLLAR(Loan1ToPrincipalTotal,0),"")) -> $15,000
BS243: loan 2 title | BU243: =IF(OR(Fin2IsLoan,Fin2IsLoc),Fin2Desc,"") -> Personal Line of Credit (unsecured, not tax deductible)
BS244: loan 2 amount financed | BU244: =IF(OR(Fin2IsLoan,Fin2IsLoc),"Amount Financed","") -> Amount Financed | BX244: =IF(OR(Fin2IsLoan,Fin2IsLoc),Loan2AmountFinanced,"") -> 6448
BS245: loan 2 interest rate & term | BU245: =IF(OR(Fin2IsLoan,Fin2IsLoc),"Interest Rate / Term","") -> Interest Rate / Term | BX245: =IF(OR(Fin2IsLoan,Fin2IsLoc),Loan2IntRate*100&"% / "&Loan2Term&" years","") -> 13% / 5 years
BS246: loan 2 loan pmt | BU246: =IF(OR(Fin2IsLoan,Fin2IsLoc),"Monthly Loan Payment","") -> Monthly Loan Payment | BX246: =IF(OR(Fin2IsLoan,Fin2IsLoc),Loan2InitialMonthlyPmtWithFees,"") -> 147
BS247: new loan-1 payment after reamortization, or extra benefits applied to LOC | BU247: =IF(AND(Fin2IsLoan,Loan2NewMonthlyPmtWithFees<>0,Loan2NewMonthlyPmtWithFees<>Loan2InitialMonthlyPmtWithFees),"Payment After Reamortization",IF(AND(Fin2IsDebt,Loan2ToPrincipalTotal>0),"Net Benefits To Principal","")) -> Net Benefits To Principal | BX247: =IF(AND(Fin2IsLoan,Loan2NewMonthlyPmtWithFees<>0,Loan2NewMonthlyPmtWithFees<>Loan2InitialMonthlyPmtWithFees),DOLLAR(Loan2NewMonthlyPmtWithFees,2),IF(AND(Fin2IsDebt,Loan2ToPrincipalTotal>0),DOLLAR(Loan2ToPrincipalTotal,0),"")) -> $15,000
BS248: new loan-1 payment after reamortization, or extra benefits applied to LOC | BX248: =IF(AND(Fin2IsLoan,Loan2NewMonthlyPmtWithFees<>0,Loan2NewMonthlyPmtWithFees<>Loan2InitialMonthlyPmtWithFees),"(after applying "&DOLLAR(Loan2ToPrincipalAtReamortize,0)&" of net benefits)","") -> 
BU250: PV System
BU252: System Size STC Rating | BX252: =FIXED(SysSizeSTC,IF(SysSizeSTC>100,0,1))&" kW STC DC" -> 10.4 kW STC DC
BU253: =IF(SysRatingType="CEC","System Size CEC Rating","Total System Efficiency") -> System Size CEC Rating | BX253: =IF(SysRatingType="CEC",FIXED(SysSizeCEC,IF(SysSizeCEC>100,0,1))&" kW CEC AC",TEXT(EffTotalSystemWithShading,"#.0%")) -> 9.1 kW CEC AC
BS254: orientation and roof type | BU254: =IF(SysSizeArray2=0,"PV System On:","") ->  | BW254: =IF(SysSizeArray2=0,SysArrayAzimuthLong&"-facing "&LOWER(SysRoofTypeText),"") -> 
BU255: =IF($BS$256=1,"Array 1: ","")&FIXED(SysModCnt+IF($BS$256=0,SysModCnt2,0),0)&" "&SysModule&" modules and "&FIXED(SysInvCnt+IF($BS$256=0,SysInvCnt2,0),0)&" "&SysInverter&" inverter"&IF(SysInvCnt+IF($BS$256=0,SysInvCnt2,0)>1,"s","")&IF($BS$256=1, " / " &CHAR(10) &"Array 2: "&FIXED(SysModCnt2,0)&" "&SysModule2&" modules and "&FIXED(SysInvCnt2,0)&" "&SysInverter2&" inverter"&IF(SysInvCnt2>1,"s",""),"") -> Array 1: 33 Sanyo Electric HIT-N215A01 modules and 2 SMA America SB3000US (240V) inverters / Array 2: 15 BP Solar BP3220N modules and 1 SMA America SB7000US (240V) inverter
BR256: DON'T REMOVE | BS256: =IF(OR(SysSizeArray2=0,,AND(SysModule2=SysModule,SysInverter2=SysInverter)),0,1) -> 1
BU257: =IF(NOT(FeedIn),"Electric Usage and ","")&"Solar Production" -> Electric Usage and Solar Production
BU259: =IF(NOT(FeedIn),"Estimated Yr-1 Electric Usage","Est. Yr-1 Solar Production") -> Estimated Yr-1 Electric Usage | BX259: =IF(FeedIn,FIXED(ProdTot,0)&" kWh",FIXED(UseAnnualTotal,0)&" kWh"&IF(AdjLifestylePct-ABS(AdjEnergyEffPct)<>0," (with "&FIXED(ABS(AdjLifestylePct-ABS(AdjEnergyEffPct))*100,0)&"% "&IF(AdjLifestylePct-ABS(AdjEnergyEffPct)>0,"increase","pre-solar reduction")&")","")) -> 16,958 kWh (with 20% pre-solar reduction)
BU260: =IF(NOT(FeedIn),"Est. Yr-1 Solar Production","") -> Est. Yr-1 Solar Production | BX260: =IF(NOT(FeedIn),FIXED(ProdTot,0)&" kWh","") -> 10,852 kWh
BU261: =IF(NOT(FeedIn),"Annual kWh Offset %","") -> Annual kWh Offset % | BX261: =IF(NOT(FeedIn),UsePctOffset,"") -> 0.6399543246

Sheet Short
A1: Short 1 | V1: Top | BA1: Top
A2: Short 2
A3: Big Print Short 3
B6: S1.1 Commercial | I6: Solar Electric Investment, Incentive and Energy Savings Analysis | N6: ShortCommPg01: Short Commercial Proposal (1-2 Pager - 2nd page is shared w/ Short Residential below)
C8: Proposal for:
C9: =CustsFullName -> Jackie Sun and Jilla Sky | H9: =DateOfAnalysis -> 2013-04-28
C10: =IF(CustCompany>0, CustCompany,"") -> Ichiban Hibachi
C11: Site Location: | H11: ="Utility: "&IF(LEFT(Utility,4)<>"user",Utility,UtilityUserDefined) -> Utility: PG&E
C12: =CustFullSiteAddr -> 133 Pelhamdale Ave, #1 | H12: ="Current Rate Schedule: "&IF(LEFT(TariffStarting,4)<>"user",TariffStarting&IF(TariffTerritory&TariffCode="","","-")&TariffTerritory&" "&TariffCode&" -- "&RateDescription,RateDescription) -> Current Rate Schedule: A10 TOU Non-FTA (S)-P H -- Commercial TOU Demand
C13: =CustFullSiteCityStZip -> Pelham, CA 10803 | H13: =IF(TariffEnding=TariffStarting,"","New Solar Rate Schedule: "&IF(LEFT(TariffEnding,4)<>"user",TariffEnding&IF(TariffTerritory&TariffCode="","","-")&TariffTerritory&" "&TariffCode&" -- "&RateEndDescription,RateEndDescription)) -> New Solar Rate Schedule: A6-P H -- Commercial TOU
H14: ="Historical Usage"&IF(AdjLifestylePct=0,": "," with Estimated Lifestyle/Cccupancy Changes: ")&FIXED(UseAdjAnnualTotal,0)&" kWh/yr" -> Historical Usage with Estimated Lifestyle/Cccupancy Changes: 17,850 kWh/yr
C15: System Information | K15: Cost Information
C16: Proposed System DC Size | H16: =FIXED(SysSizeSTC,IF(SysSizeSTC>100,0,1))&" kW STC DC" -> 10.4 kW STC DC | K16: Proposed System Cost per rated Watt | M16: ="$"&FIXED(CostGrossPerW,2)&IF(SysRatingType="CEC"," per CEC AC Watt",IF(SysRatingType="PTC"," per PTC Watt"," per STC DC Watt")) -> $11.73 per CEC AC Watt
C17: =IF(SysRatingType="CEC","System's CEC AC Rating","") -> System's CEC AC Rating | H17: =IF(SysRatingType="CEC",FIXED(SysSizeCEC,IF(SysSizeCEC>100,0,1))&" kW CEC AC","") -> 9.1 kW CEC AC | K17: Estimated Federal Tax Bracket | M17: =TaxRateFed -> 0.35
C18: =(SysModCnt+SysModCnt2)&" "&IF(SysModule<>SysModule2,"Solar PV Modules",SysModule&" modules")&" and "&(SysInvCnt+SysInvCnt2)&" "&IF(SysInverter<>SysInverter2,"Inverters",SysInverter&" inverters") -> 48 Solar PV Modules and 3 Inverters | K18: Current Utility Rate are as high as | M18: =RateStartMax -> 29.40891509
C19: Location's Avg Sun Hours | H19: =FIXED(SunHrsAnnualAvg,1)&" Sun Hours" -> 5.9 Sun Hours | K19: Current Utility Rate Average | M19: =RateStartAvg -> 29.40891509
C20: Estimated Annual Production | H20: =FIXED(ProdTot,0)&" kWh/yr" -> 10,852 kWh/yr | K20: Estimated First Year Utility Savings | M20: ="$"&FIXED(Savings1stYr,0)&" per year" -> $4,232 per year
B22: cost gross | C22: ="Gross System Cost with Sales Tax"&IF(OR(NOT(ShowDiscount),CostDiscount = 0),"",IF(CostDiscountBasis="Percent"," and "& FIXED(-CostDiscountPct*100,1) &"% Discount"," and Discount")) -> Gross System Cost with Sales Tax and 3.0% Discount | M22: =CostGross -> 106372.6355
B23: Rebates, non-Fed Grants | C23: =IF(ABS(SysRebate)>1,"Rebate","") & IF(AND(ABS(SysRebate)>1,ABS(SysGrant)>1)," & ","") & IF(ABS(SysGrant)>1,"Non-Federal Grants","") -> Rebate & Non-Federal Grants | K23: =IF(IncentRebatePerW=0,"","Rebate: $"&FIXED(-SysRebate/IF(IncentRebateRatingType="STC DC",SysSizeSTC*1000,IF(IncentRebateRatingType="PTC",SysSizePTC*1000,SysSizeCEC*1000)),2) &" per "&IF(IncentRebateRatingType="STC DC","STC DC",IF(SysRatingType="PTC","PTC DC","CEC AC"))&" Watt") -> Rebate: $0.80 per CEC AC Watt | M23: =SysRebate+SysGrant -> -9216.723703
B24: Fed tax on Rebate or Grant | C24: =IF(M24=0,"","Federal Tax on Rebate or Non-Federal Grants") -> Federal Tax on Rebate or Non-Federal Grants | M24: =TaxFedOnRebateGrant -> 3225.853296
B25: Fees | C25: =IF(M25=0,"","Estimated Fees NOT included in system contract price") -> Estimated Fees NOT included in system contract price | M25: =CostPermitFeesNotInc+CostUtilityFeesNotInc+CostOtherFeesNotInc -> 600
B26: State Tax Credit + TaxFedOnStateTaxCredit | C26: =IF(M26=0,"","State Tax Credit Benefit (net), after Federal Tax on the State Tax Credit") -> State Tax Credit Benefit (net), after Federal Tax on the State Tax Credit | M26: =TaxCreditState+TaxFedOnStateTaxCredit -> -3250
B27: Local Tax Credit + Fed Tax on Local Tax Credit | C27: =IF(M27=0,"",FIXED(IncentLocalTaxCredit*100,1)&"% Local Tax Credit, Net Benefit after Federal Tax effects ") ->  | M27: =TaxCreditLocal+ TaxFedOnLocalTaxCredit -> 0
B28: Federal Tax Credit or Treasury Grant | C28: =IF(M28=0,"",FIXED(IncentFedTaxCredit*100,0)&"% Federal Tax Credit (ITC) or Treasury Grant") -> 30% Federal Tax Credit (ITC) or Treasury Grant | M28: =TaxCreditFed+TreasuryGrantFed -> -32091.79064
B29: Depreciation | C29: =IF(M29=0,"","Depreciation: Federal & Net State (total value, non-discounted, see schedule below)") -> Depreciation: Federal & Net State (total value, non-discounted, see schedule below) | M29: =DeprFedStateNetSumTotal -> -37441.41374
B30: Net PBI value | C30: =IF(M30=0,"","PBI Incentive" & IF(TaxablePBI="Yes"," after Federal Tax","")) -> PBI Incentive after Federal Tax | M30: =SysPBI+IF(TaxablePBI="Yes",TaxFedOnPBI,1) -> -16493.11434
C31: Net System Cost with Tax Benefits & Incentives | M31: =CostNetAfterTaxEffectsAndPBI -> 11705.44634
C33: Payback / Return on Investment | H33: =FIXED(YearsToCashPayback,1)&" Years" -> 6.6 Years | K33: MACRS Depreciation Schedule
K34: Fed Depr Basis (Fed ITC Basis minus 1/2 Fed ITC) | M34: =IncentFedDepBasis -> 90926.74015
C35: Year | D35: Average Utility Rate ¢/kWh | E35: Utility Savings $/year | F35: Net Utility Savings, sRECs, PBIs, etc, after tax & maintenance | G35: Tax & Rebate Incentives | H35: Cost / Payback Schedule (Cumulative Cash Position) | K35: Federal Depreciation | M35: =DeprFedSumTotal -> 31824.35905
K36: State Net Depreciation (factoring state rebate) | M36: =DeprStateSumTotal-DeprStateFedTaxSumTotal -> 5617.05469
K37: Year | L37: State Net Depreciation | M37: Federal Depreciation
K38: 1 | L38: ='OnGrid Timelines'!$E$155+'OnGrid Timelines'!$E$156 -> 2959 | M38: ='OnGrid Timelines'!$E$154 -> 19440
K39: =K38+1 -> 2 | L39: ='OnGrid Timelines'!$F$155+'OnGrid Timelines'!$F$156 -> 4735 | M39: ='OnGrid Timelines'!$F$154 -> 31104
C40: 0 | G40: ='OnGrid Timelines'!$D$214 -> 9735 | H40: ='OnGrid Timelines'!$D$216 -> -61566 | K40: 3 | L40: ='OnGrid Timelines'!$G$155+'OnGrid Timelines'!$G$156 -> 2841 | M40: ='OnGrid Timelines'!$G$154 -> 18662
C41: 1 | D41: =RateStartAvg -> 29.40891509 | E41: ='OnGrid Timelines'!$E$121 -> 5065 | F41: ='OnGrid Timelines'!$E$215 -> 7388 | G41: ='OnGrid Timelines'!$E$214 -> 46526 | H41: ='OnGrid Timelines'!$E$216 -> -7652 | K41: 4 | L41: ='OnGrid Timelines'!$H$155+'OnGrid Timelines'!$H$156 -> 1702 | M41: ='OnGrid Timelines'!$H$154 -> 11178
C42: =$C$41+1 -> 2 | D42: =$D$41*(1+InflElect) -> 29.70300424 | E42: ='OnGrid Timelines'!$F$121 -> 5242 | F42: ='OnGrid Timelines'!$F$215 -> 7441 | G42: ='OnGrid Timelines'!$F$214 -> 33617 | H42: ='OnGrid Timelines'!$F$216 -> 33406 | K42: 5 | L42: ='OnGrid Timelines'!$I$155+'OnGrid Timelines'!$I$156 -> 1702 | M42: ='OnGrid Timelines'!$I$154 -> 11178
C43: =$C$42+1 -> 3 | D43: =$D$42*(1+InflElect) -> 30.00003429 | E43: ='OnGrid Timelines'!$G$121 -> 5426 | F43: ='OnGrid Timelines'!$G$215 -> 7498 | G43: ='OnGrid Timelines'!$G$214 -> 21008 | H43: ='OnGrid Timelines'!$G$216 -> 61912 | K43: 6 | L43: ='OnGrid Timelines'!$J$155+'OnGrid Timelines'!$J$156 -> 858 | M43: ='OnGrid Timelines'!$J$154 -> 5638
C44: =$C$43+1 -> 4 | D44: =$D$43*(1+InflElect) -> 30.30003463 | E44: ='OnGrid Timelines'!$H$121 -> 5616 | F44: ='OnGrid Timelines'!$H$215 -> 7554 | G44: ='OnGrid Timelines'!$H$214 -> 12387 | H44: ='OnGrid Timelines'!$H$216 -> 81853 | K44: 7 | L44: ='OnGrid Timelines'!$K$155+'OnGrid Timelines'!$K$156 -> 0 | M44: ='OnGrid Timelines'!$K$154 -> 0
C45: =$C$44+1 -> 5 | D45: =$D$44*(1+InflElect) -> 30.60303498 | E45: ='OnGrid Timelines'!$I$121 -> 5812 | F45: ='OnGrid Timelines'!$I$215 -> 7614 | G45: ='OnGrid Timelines'!$I$214 -> 12390 | H45: ='OnGrid Timelines'!$I$216 -> 101857 | K45: 8 | L45: ='OnGrid Timelines'!$L$155+'OnGrid Timelines'!$L$156 -> 0 | M45: ='OnGrid Timelines'!$L$154 -> 0
C46: =$C$45+1 -> 6 | D46: =$D$45*(1+InflElect) -> 30.90906533 | E46: ='OnGrid Timelines'!$J$121 -> 6016 | F46: ='OnGrid Timelines'!$J$215 -> 4937 | G46: ='OnGrid Timelines'!$J$214 -> 6008 | H46: ='OnGrid Timelines'!$J$216 -> 112802 | K46: 9 | L46: ='OnGrid Timelines'!$M$155+'OnGrid Timelines'!$M$156 -> 0 | M46: ='OnGrid Timelines'!$M$154 -> 0
C47: =$C$46+1 -> 7 | D47: =$D$46*(1+InflElect) -> 31.21815598 | E47: ='OnGrid Timelines'!$K$121 -> 6226 | F47: ='OnGrid Timelines'!$K$215 -> 5026 | G47: ='OnGrid Timelines'!$K$214 -> -486 | H47: ='OnGrid Timelines'!$K$216 -> 117342 | K47: 10 | L47: ='OnGrid Timelines'!$N$155+'OnGrid Timelines'!$N$156 -> 0 | M47: ='OnGrid Timelines'!$N$154 -> 0
C48: =$C$47+1 -> 8 | D48: =$D$47*(1+InflElect) -> 31.53033754 | E48: ='OnGrid Timelines'!$L$121 -> 6444 | F48: ='OnGrid Timelines'!$L$215 -> 5121 | G48: ='OnGrid Timelines'!$L$214 -> -483 | H48: ='OnGrid Timelines'!$L$216 -> 121980 | K48: 11 | L48: ='OnGrid Timelines'!$O$155+'OnGrid Timelines'!$O$156 -> 0 | M48: ='OnGrid Timelines'!$O$154 -> 0
C49: =$C$48+1 -> 9 | D49: =$D$48*(1+InflElect) -> 31.84564091 | E49: ='OnGrid Timelines'!$M$121 -> 6670 | F49: ='OnGrid Timelines'!$M$215 -> 5216 | G49: ='OnGrid Timelines'!$M$214 -> -481 | H49: ='OnGrid Timelines'!$M$216 -> 126715 | K49: 12 | L49: ='OnGrid Timelines'!$P$155+'OnGrid Timelines'!$P$156 -> 0 | M49: ='OnGrid Timelines'!$P$154 -> 0
C50: =$C$49+1 -> 10 | D50: =$D$49*(1+InflElect) -> 32.16409732 | E50: ='OnGrid Timelines'!$N$121 -> 6903 | F50: ='OnGrid Timelines'!$N$215 -> 5313 | G50: ='OnGrid Timelines'!$N$214 -> -478 | H50: ='OnGrid Timelines'!$N$216 -> 131550 | K50: TOTALS | L50: ='OnGrid Timelines'!$C$155+'OnGrid Timelines'!$C$156 -> 14798 | M50: ='OnGrid Timelines'!$C$154 -> 97199
C51: =$C$50+1 -> 11 | D51: =$D$50*(1+InflElect) -> 32.4857383 | E51: ='OnGrid Timelines'!$O$121 -> 7145 | F51: ='OnGrid Timelines'!$O$215 -> 5413 | G51: ='OnGrid Timelines'!$O$214 -> -476 | H51: ='OnGrid Timelines'!$O$216 -> 136487
C52: =$C$51+1 -> 12 | D52: =$D$51*(1+InflElect) -> 32.81059568 | E52: ='OnGrid Timelines'!$P$121 -> 7395 | F52: ='OnGrid Timelines'!$P$215 -> 5516 | G52: ='OnGrid Timelines'!$P$214 -> -474 | H52: ='OnGrid Timelines'!$P$216 -> 141529 | K52: Results
C53: =$C$52+1 -> 13 | D53: =$D$52*(1+InflElect) -> 33.13870164 | E53: ='OnGrid Timelines'!$Q$121 -> 7654 | F53: ='OnGrid Timelines'!$Q$215 -> 6029 | G53: ='OnGrid Timelines'!$Q$214 -> -613 | H53: ='OnGrid Timelines'!$Q$216 -> 146945 | K53: ="Old "&IF(AdjLifestylePct=0,"","Adjusted ")&"Monthly Electric Bill" -> Old Adjusted Monthly Electric Bill | M53: =BillwLifenoSolar -> 415.5847314
C54: =$C$53+1 -> 14 | D54: =$D$53*(1+InflElect) -> 33.47008865 | E54: ='OnGrid Timelines'!$R$121 -> 7922 | F54: ='OnGrid Timelines'!$R$215 -> 6134 | G54: ='OnGrid Timelines'!$R$214 -> -610 | H54: ='OnGrid Timelines'!$R$216 -> 152469 | K54: Estimated New Electric Bill | M54: =BillWithSolar -> 62.90964947
C55: =$C$54+1 -> 15 | D55: =$D$54*(1+InflElect) -> 33.80478954 | E55: ='OnGrid Timelines'!$S$121 -> 8199 | F55: ='OnGrid Timelines'!$S$215 -> 7427 | G55: ='OnGrid Timelines'!$S$214 -> -607 | H55: ='OnGrid Timelines'!$S$216 -> 159289 | K55: % Bill Offset | M55: =1-(M54/M53) -> 0.848623771
C56: =$C$55+1 -> 16 | D56: =$D$55*(1+InflElect) -> 34.14283744 | E56: ='OnGrid Timelines'!$T$121 -> 8486 | F56: ='OnGrid Timelines'!$T$215 -> 6351 | G56: ='OnGrid Timelines'!$T$214 -> -604 | H56: ='OnGrid Timelines'!$T$216 -> 165036
C57: =$C$56+1 -> 17 | D57: =$D$56*(1+InflElect) -> 34.48426581 | E57: ='OnGrid Timelines'!$U$121 -> 8783 | F57: ='OnGrid Timelines'!$U$215 -> 6464 | G57: ='OnGrid Timelines'!$U$214 -> -601 | H57: ='OnGrid Timelines'!$U$216 -> 170899 | K57: ="$"&FIXED(NPV,0)&" Net Present Value with "&DiscountRate*100&"% Discount Rate" -> $29,426 Net Present Value with 3% Discount Rate
C58: =$C$57+1 -> 18 | D58: =$D$57*(1+InflElect) -> 34.82910847 | E58: ='OnGrid Timelines'!$V$121 -> 9090 | F58: ='OnGrid Timelines'!$V$215 -> 4857 | G58: ='OnGrid Timelines'!$V$214 -> 0 | H58: ='OnGrid Timelines'!$V$216 -> 175756 | K58: ="The IRR over 25 years is "&FIXED(IRR*100,1)&"%" -> The IRR over 25 years is 9.2%
C59: =$C$58+1 -> 19 | D59: =$D$58*(1+InflElect) -> 35.17739955 | E59: ='OnGrid Timelines'!$W$121 -> 9408 | F59: ='OnGrid Timelines'!$W$215 -> 4983 | G59: ='OnGrid Timelines'!$W$214 -> 0 | H59: ='OnGrid Timelines'!$W$216 -> 180739 | K59: ="Over 25 years it will provide total savings of: $"&FIXED(CumNetSavings25Yrs,0)&"" -> Over 25 years it will provide total savings of: $69,294
C60: =$C$59+1 -> 20 | D60: =$D$59*(1+InflElect) -> 35.52917355 | E60: ='OnGrid Timelines'!$X$121 -> 9738 | F60: ='OnGrid Timelines'!$X$215 -> 5113 | G60: ='OnGrid Timelines'!$X$214 -> 0 | H60: ='OnGrid Timelines'!$X$216 -> 185852 | K60: including bill savings, sRECs, maintenance, & inverter replacement (net after-tax values)
C61: =$C$60+1 -> 21 | D61: =$D$60*(1+InflElect) -> 35.88446528 | E61: ='OnGrid Timelines'!$Y$121 -> 10078 | F61: ='OnGrid Timelines'!$Y$215 -> 5244 | G61: ='OnGrid Timelines'!$Y$214 -> 0 | H61: ='OnGrid Timelines'!$Y$216 -> 191096 | K61: ="It will pay for itself in "&FIXED(YearsToCashPayback,0)&" years" -> It will pay for itself in 7 years
C62: =$C$61+1 -> 22 | D62: =$D$61*(1+InflElect) -> 36.24330994 | E62: ='OnGrid Timelines'!$Z$121 -> 10431 | F62: ='OnGrid Timelines'!$Z$215 -> 5375 | G62: ='OnGrid Timelines'!$Z$214 -> 0 | H62: ='OnGrid Timelines'!$Z$216 -> 196471 | K62: ="With a Cap Rate of "&CapRate*100&"%, the building's value will increase by: $"&FIXED(ResaleValue1stYr,0) -> With a Cap Rate of 6%, the building's value will increase by: $67,484
C63: =$C$62+1 -> 23 | D63: =$D$62*(1+InflElect) -> 36.60574304 | E63: ='OnGrid Timelines'!$AA$121 -> 10796 | F63: ='OnGrid Timelines'!$AA$215 -> 5513 | G63: ='OnGrid Timelines'!$AA$214 -> 0 | H63: ='OnGrid Timelines'!$AA$216 -> 201984
C64: =$C$63+1 -> 24 | D64: =$D$63*(1+InflElect) -> 36.97180047 | E64: ='OnGrid Timelines'!$AB$121 -> 11174 | F64: ='OnGrid Timelines'!$AB$215 -> 5652 | G64: ='OnGrid Timelines'!$AB$214 -> 0 | H64: ='OnGrid Timelines'!$AB$216 -> 207636 | K64: Carbon Dioxide and Environmental Benefits
C65: =$C$64+1 -> 25 | D65: =$D$64*(1+InflElect) -> 37.34151847 | E65: ='OnGrid Timelines'!$AC$121 -> 11565 | F65: ='OnGrid Timelines'!$AC$215 -> 5792 | G65: ='OnGrid Timelines'!$AC$214 -> 0 | H65: ='OnGrid Timelines'!$AC$216 -> 213428 | K65: Based on estimated production, this system will reduce emissions by:
L66: =ROUND(EnvBenCO2_25yrs/2000,0)&" tons of CO2 over 25 years" -> 213 tons of CO2 over 25 years
K67: It's the environmental equivalent of:
L68: =FIXED(EnvBenMiles_25Yrs,0)&" miles not driven" -> 692,477 miles not driven
L69: ="or "&FIXED(EnvBenTreeAcres,1)&" acres of trees planted" -> or 3.6 acres of trees planted
E71: Incentives and energy savings depend upon several factors that may not be represented in this analysis.
E72: A trusted tax professional should verify the figures provided.
E73: =VendName&" provides assistance with applications for incentives and rebates." -> Acme Solar provides assistance with applications for incentives and rebates.
E74: =VendName&" does not take responsibility for any future changes in tax law or other incentives." -> Acme Solar does not take responsibility for any future changes in tax law or other incentives.
C75: =ToolVersionText -> OnGrid Tool v4
C86: ShortResPg01: Short Residential Proposal (1-2 Pager - 2nd page is shared w/ Short Commercial above)
B89: S1.2 Residential | I89: Solar Electric Investment, Incentive and Energy Savings Analysis
C90: Proposal for:
C91: =CustsFullName -> Jackie Sun and Jilla Sky | H91: =DateOfAnalysis -> 2013-04-28
C93: Site Location: | H93: ="Utility: "&IF(LEFT(Utility,4)<>"user",Utility,UtilityUserDefined) -> Utility: PG&E
C94: =CustFullSiteAddr -> 133 Pelhamdale Ave, #1 | H94: ="Current Rate Schedule: "&IF(LEFT(TariffStarting,4)<>"user",TariffStarting&IF(TariffTerritory&TariffCode="","","-")&TariffTerritory&" "&TariffCode&" -- "&RateDescription,RateDescription) -> Current Rate Schedule: A10 TOU Non-FTA (S)-P H -- Commercial TOU Demand
C95: =CustFullSiteCityStZip -> Pelham, CA 10803 | H95: =IF(TariffEnding=TariffStarting,"","New Solar Rate Schedule: "&IF(LEFT(TariffEnding,4)<>"user",TariffEnding&IF(TariffTerritory&TariffCode="","","-")&TariffTerritory&" "&TariffCode&" -- "&RateEndDescription,RateEndDescription)) -> New Solar Rate Schedule: A6-P H -- Commercial TOU
H96: ="Historical Usage"&IF(AdjLifestylePct=0,": "," with Estimated Lifestyle/Cccupancy Changes: ")&FIXED(UseAdjAnnualTotal,0)&" kWh/yr" -> Historical Usage with Estimated Lifestyle/Cccupancy Changes: 17,850 kWh/yr
C97: System Information | K97: Cost Information
C98: Proposed System Size | H98: =FIXED(SysSizeSTC,IF(SysSizeSTC>100,0,1))&" kW DC (STC)" -> 10.4 kW DC (STC) | K98: Proposed System Cost per rated Watt | M98: ="$"&FIXED(CostGrossPerW,2)&IF(SysRatingType="CEC"," per CEC AC Watt",IF(SysRatingType="PTC"," per PTC Watt"," per DC (STC) Watt")) -> $11.73 per CEC AC Watt
C99: System's CEC Rating | H99: =FIXED(SysSizeCEC,IF(SysSizeSTC>100,0,1))&" kW AC (CEC)" -> 9.1 kW AC (CEC) | K99: Estimated Federal Tax Bracket | M99: =TaxRateFed -> 0.35
C100: =(SysModCnt+SysModCnt2)&" "&IF(SysModule<>SysModule2,"Solar PV Modules",SysModule&" modules")&" and "&(SysInvCnt+SysInvCnt2)&" "&IF(SysInverter<>SysInverter2,"Inverters",SysInverter&" inverters") -> 48 Solar PV Modules and 3 Inverters | K100: Current Utility Rate are as high as | M100: =RateStartMax -> 29.40891509
C101: Location's Avg Sun Hours | H101: =FIXED(SunHrsAnnualAvg,1)&" Sun Hours" -> 5.9 Sun Hours | K101: Current Utility Rate Average | M101: =RateStartAvg -> 29.40891509
C102: Estimated Annual Production | H102: =FIXED(ProdTot,0)&" kWh/yr" -> 10,852 kWh/yr | K102: Estimated First Year Utility Savings | M102: ="$"&FIXED(Savings1stYr,0)&" per year" -> $4,232 per year
B104: cost gross | C104: ="Gross System Cost with Sales Tax"&IF(OR(NOT(ShowDiscount),CostDiscount = 0),"",IF(CostDiscountBasis="Percent"," and "& FIXED(-CostDiscountPct*100,1) &"% Discount"," and Discount")) -> Gross System Cost with Sales Tax and 3.0% Discount | M104: =CostGross -> 106372.6355
B105: Rebates, non-Fed Grants | C105: =IF(ABS(SysRebate)>1,"Rebate","") & IF(AND(ABS(SysRebate)>1,ABS(SysGrant)>1)," & ","") & IF(ABS(SysGrant)>1,"Non-Federal Grants","") -> Rebate & Non-Federal Grants | K105: =IF(IncentRebatePerW=0,"","Rebate: $"&FIXED(-SysRebate/IF(IncentRebateRatingType="STC DC",SysSizeSTC*1000,IF(IncentRebateRatingType="PTC",SysSizePTC*1000,SysSizeCEC*1000)),2) &" per "&IF(IncentRebateRatingType="STC DC","STC DC",IF(SysRatingType="PTC","PTC DC","CEC AC"))&" Watt") -> Rebate: $0.80 per CEC AC Watt | M105: =SysRebate+SysGrant -> -9216.723703
B106: Fed tax on Rebate or Grant | C106: =IF(M106=0,"","Federal Tax on Rebate or Non-Federal Grants") -> Federal Tax on Rebate or Non-Federal Grants | M106: =TaxFedOnRebateGrant -> 3225.853296
B107: Fees | C107: =IF(M107=0,"","Estimated Fees NOT included in system contract price") -> Estimated Fees NOT included in system contract price | M107: =CostPermitFeesNotInc+CostUtilityFeesNotInc+CostOtherFeesNotInc -> 600
B108: State Tax Credit + TaxFedOnStateTaxCredit | C108: =IF(M108=0,"","State Tax Credit Benefit (net), after Federal Tax on the State Tax Credit") -> State Tax Credit Benefit (net), after Federal Tax on the State Tax Credit | M108: =TaxCreditState+TaxFedOnStateTaxCredit -> -3250
B109: Local Tax Credit + Fed Tax on Local Tax Credit | C109: =IF(M109=0,"",FIXED(IncentLocalTaxCredit*100,1)&"% Local Tax Credit, Net Benefit after Federal Tax effects ") ->  | M109: =TaxCreditLocal+ TaxFedOnLocalTaxCredit -> 0
B110: Federal Tax Credit | C110: =IF(M110=0,"",FIXED(IncentFedTaxCredit*100,0)&"% Federal Tax Credit (ITC)") ->  | M110: =TaxCreditFed -> 0
B111: Net PBI value | C111: =IF(M111=0,"","PBI Incentive" & IF(TaxablePBI="Yes"," after Federal Tax","")) -> PBI Incentive after Federal Tax | M111: =SysPBI+IF(TaxablePBI="Yes",TaxFedOnPBI,1) -> -16493.11434
C112: Net System Cost with Tax Benefits & Incentives | M112: =CostNetAfterTaxEffectsAndPBI -> 11705.44634
C114: Payback / Return on Investment | H114: =FIXED(YearsToCashPayback,1)&" Years" -> 6.6 Years | K114: Results
K115: ="Old "&IF(AdjLifestylePct=0,"","Adjusted ")&"Monthly Electric Bill" -> Old Adjusted Monthly Electric Bill | M115: =BillwLifenoSolar -> 415.5847314
C116: Year | D116: Average Utility Rate ¢/kWh | E116: Utility Savings $/year | F116: Net Utility Savings, sRECs, PBIs, etc, after tax & maintenance | G116: Tax & Rebate Incentives | H116: Cost / Payback Schedule (Cumulative Cash Position) | K116: Estimated New Electric Bill | M116: =BillWithSolar -> 62.90964947
K117: % Bill Offset | M117: =1-(M116/M115) -> 0.848623771
K118: Monthly Cash Flow in 1st Year with Loan | M118: ="$"&FIXED('OnGrid Timelines'!E188,0)&" per month" -> $584 per month
K119: Monthly Cash Flow in 5th Year with Loan | M119: ="$"&FIXED('OnGrid Timelines'!I188,0)&" per month" -> $5 per month
K120: Monthly Cash Flow in 10th Year with Loan | M120: ="$"&FIXED('OnGrid Timelines'!N188,0)&" per month" -> $-67 per month
C121: 0 | G121: ='OnGrid Timelines'!$D$214 -> 9735 | H121: ='OnGrid Timelines'!$D$216 -> -61566 | K121: ="$"&FIXED(NPV,0)&" Net Present Value with "&DiscountRate*100&"% Discount Rate" -> $29,426 Net Present Value with 3% Discount Rate
C122: 1 | D122: =RateStartAvg -> 29.40891509 | E122: ='OnGrid Timelines'!$E$121 -> 5065 | F122: ='OnGrid Timelines'!$E$215 -> 7388 | G122: ='OnGrid Timelines'!$E$214 -> 46526 | H122: ='OnGrid Timelines'!$E$216 -> -7652 | K122: ="The IRR over 25 years is "&FIXED(IRR*100,1)&"%" -> The IRR over 25 years is 9.2%
C123: =$C$41+1 -> 2 | D123: =$D$41*(1+InflElect) -> 29.70300424 | E123: ='OnGrid Timelines'!$F$121 -> 5242 | F123: ='OnGrid Timelines'!$F$215 -> 7441 | G123: ='OnGrid Timelines'!$F$214 -> 33617 | H123: ='OnGrid Timelines'!$F$216 -> 33406 | K123: ="Over 25 years it will provide total savings of: $"&FIXED(CumNetSavings25Yrs,0)&"" -> Over 25 years it will provide total savings of: $69,294
C124: =$C$42+1 -> 3 | D124: =$D$42*(1+InflElect) -> 30.00003429 | E124: ='OnGrid Timelines'!$G$121 -> 5426 | F124: ='OnGrid Timelines'!$G$215 -> 7498 | G124: ='OnGrid Timelines'!$G$214 -> 21008 | H124: ='OnGrid Timelines'!$G$216 -> 61912 | K124: including bill savings, sRECs, maintenance, & inverter replacement (net after-tax values)
C125: =$C$43+1 -> 4 | D125: =$D$43*(1+InflElect) -> 30.30003463 | E125: ='OnGrid Timelines'!$H$121 -> 5616 | F125: ='OnGrid Timelines'!$H$215 -> 7554 | G125: ='OnGrid Timelines'!$H$214 -> 12387 | H125: ='OnGrid Timelines'!$H$216 -> 81853 | K125: ="It will pay for itself in "&FIXED(YearsToCashPayback,0)&" years" -> It will pay for itself in 7 years
C126: =$C$44+1 -> 5 | D126: =$D$44*(1+InflElect) -> 30.60303498 | E126: ='OnGrid Timelines'!$I$121 -> 5812 | F126: ='OnGrid Timelines'!$I$215 -> 7614 | G126: ='OnGrid Timelines'!$I$214 -> 12390 | H126: ='OnGrid Timelines'!$I$216 -> 101857 | K126: ="This project could increase your home's value by: $"&FIXED(ResaleValue1stYr,0) -> This project could increase your home's value by: $67,484
C127: =$C$45+1 -> 6 | D127: =$D$45*(1+InflElect) -> 30.90906533 | E127: ='OnGrid Timelines'!$J$121 -> 6016 | F127: ='OnGrid Timelines'!$J$215 -> 4937 | G127: ='OnGrid Timelines'!$J$214 -> 6008 | H127: ='OnGrid Timelines'!$J$216 -> 112802 | K127: Source: The Appraisal Journal, www.ongrid.net/AppraisalJournalPVValue10.98.pdf
C128: =$C$46+1 -> 7 | D128: =$D$46*(1+InflElect) -> 31.21815598 | E128: ='OnGrid Timelines'!$K$121 -> 6226 | F128: ='OnGrid Timelines'!$K$215 -> 5026 | G128: ='OnGrid Timelines'!$K$214 -> -486 | H128: ='OnGrid Timelines'!$K$216 -> 117342
C129: =$C$47+1 -> 8 | D129: =$D$47*(1+InflElect) -> 31.53033754 | E129: ='OnGrid Timelines'!$L$121 -> 6444 | F129: ='OnGrid Timelines'!$L$215 -> 5121 | G129: ='OnGrid Timelines'!$L$214 -> -483 | H129: ='OnGrid Timelines'!$L$216 -> 121980
C130: =$C$48+1 -> 9 | D130: =$D$48*(1+InflElect) -> 31.84564091 | E130: ='OnGrid Timelines'!$M$121 -> 6670 | F130: ='OnGrid Timelines'!$M$215 -> 5216 | G130: ='OnGrid Timelines'!$M$214 -> -481 | H130: ='OnGrid Timelines'!$M$216 -> 126715
C131: =$C$49+1 -> 10 | D131: =$D$49*(1+InflElect) -> 32.16409732 | E131: ='OnGrid Timelines'!$N$121 -> 6903 | F131: ='OnGrid Timelines'!$N$215 -> 5313 | G131: ='OnGrid Timelines'!$N$214 -> -478 | H131: ='OnGrid Timelines'!$N$216 -> 131550
C132: =$C$50+1 -> 11 | D132: =$D$50*(1+InflElect) -> 32.4857383 | E132: ='OnGrid Timelines'!$O$121 -> 7145 | F132: ='OnGrid Timelines'!$O$215 -> 5413 | G132: ='OnGrid Timelines'!$O$214 -> -476 | H132: ='OnGrid Timelines'!$O$216 -> 136487
C133: =$C$51+1 -> 12 | D133: =$D$51*(1+InflElect) -> 32.81059568 | E133: ='OnGrid Timelines'!$P$121 -> 7395 | F133: ='OnGrid Timelines'!$P$215 -> 5516 | G133: ='OnGrid Timelines'!$P$214 -> -474 | H133: ='OnGrid Timelines'!$P$216 -> 141529
C134: =$C$52+1 -> 13 | D134: =$D$52*(1+InflElect) -> 33.13870164 | E134: ='OnGrid Timelines'!$Q$121 -> 7654 | F134: ='OnGrid Timelines'!$Q$215 -> 6029 | G134: ='OnGrid Timelines'!$Q$214 -> -613 | H134: ='OnGrid Timelines'!$Q$216 -> 146945
C135: =$C$53+1 -> 14 | D135: =$D$53*(1+InflElect) -> 33.47008865 | E135: ='OnGrid Timelines'!$R$121 -> 7922 | F135: ='OnGrid Timelines'!$R$215 -> 6134 | G135: ='OnGrid Timelines'!$R$214 -> -610 | H135: ='OnGrid Timelines'!$R$216 -> 152469
C136: =$C$54+1 -> 15 | D136: =$D$54*(1+InflElect) -> 33.80478954 | E136: ='OnGrid Timelines'!$S$121 -> 8199 | F136: ='OnGrid Timelines'!$S$215 -> 7427 | G136: ='OnGrid Timelines'!$S$214 -> -607 | H136: ='OnGrid Timelines'!$S$216 -> 159289
C137: =$C$55+1 -> 16 | D137: =$D$55*(1+InflElect) -> 34.14283744 | E137: ='OnGrid Timelines'!$T$121 -> 8486 | F137: ='OnGrid Timelines'!$T$215 -> 6351 | G137: ='OnGrid Timelines'!$T$214 -> -604 | H137: ='OnGrid Timelines'!$T$216 -> 165036
C138: =$C$56+1 -> 17 | D138: =$D$56*(1+InflElect) -> 34.48426581 | E138: ='OnGrid Timelines'!$U$121 -> 8783 | F138: ='OnGrid Timelines'!$U$215 -> 6464 | G138: ='OnGrid Timelines'!$U$214 -> -601 | H138: ='OnGrid Timelines'!$U$216 -> 170899
C139: =$C$57+1 -> 18 | D139: =$D$57*(1+InflElect) -> 34.82910847 | E139: ='OnGrid Timelines'!$V$121 -> 9090 | F139: ='OnGrid Timelines'!$V$215 -> 4857 | G139: ='OnGrid Timelines'!$V$214 -> 0 | H139: ='OnGrid Timelines'!$V$216 -> 175756
C140: =$C$58+1 -> 19 | D140: =$D$58*(1+InflElect) -> 35.17739955 | E140: ='OnGrid Timelines'!$W$121 -> 9408 | F140: ='OnGrid Timelines'!$W$215 -> 4983 | G140: ='OnGrid Timelines'!$W$214 -> 0 | H140: ='OnGrid Timelines'!$W$216 -> 180739
C141: =$C$59+1 -> 20 | D141: =$D$59*(1+InflElect) -> 35.52917355 | E141: ='OnGrid Timelines'!$X$121 -> 9738 | F141: ='OnGrid Timelines'!$X$215 -> 5113 | G141: ='OnGrid Timelines'!$X$214 -> 0 | H141: ='OnGrid Timelines'!$X$216 -> 185852
C142: =$C$60+1 -> 21 | D142: =$D$60*(1+InflElect) -> 35.88446528 | E142: ='OnGrid Timelines'!$Y$121 -> 10078 | F142: ='OnGrid Timelines'!$Y$215 -> 5244 | G142: ='OnGrid Timelines'!$Y$214 -> 0 | H142: ='OnGrid Timelines'!$Y$216 -> 191096
C143: =$C$61+1 -> 22 | D143: =$D$61*(1+InflElect) -> 36.24330994 | E143: ='OnGrid Timelines'!$Z$121 -> 10431 | F143: ='OnGrid Timelines'!$Z$215 -> 5375 | G143: ='OnGrid Timelines'!$Z$214 -> 0 | H143: ='OnGrid Timelines'!$Z$216 -> 196471
C144: =$C$62+1 -> 23 | D144: =$D$62*(1+InflElect) -> 36.60574304 | E144: ='OnGrid Timelines'!$AA$121 -> 10796 | F144: ='OnGrid Timelines'!$AA$215 -> 5513 | G144: ='OnGrid Timelines'!$AA$214 -> 0 | H144: ='OnGrid Timelines'!$AA$216 -> 201984
C145: =$C$63+1 -> 24 | D145: =$D$63*(1+InflElect) -> 36.97180047 | E145: ='OnGrid Timelines'!$AB$121 -> 11174 | F145: ='OnGrid Timelines'!$AB$215 -> 5652 | G145: ='OnGrid Timelines'!$AB$214 -> 0 | H145: ='OnGrid Timelines'!$AB$216 -> 207636
C146: =$C$64+1 -> 25 | D146: =$D$64*(1+InflElect) -> 37.34151847 | E146: ='OnGrid Timelines'!$AC$121 -> 11565 | F146: ='OnGrid Timelines'!$AC$215 -> 5792 | G146: ='OnGrid Timelines'!$AC$214 -> 0 | H146: ='OnGrid Timelines'!$AC$216 -> 213428
C148: Carbon Dioxide and Environmental Benefits
C149: Based on estimated production, this system will reduce emissions by:
D150: =ROUND(EnvBenCO2_25yrs/2000,0)&" tons of CO2 over 25 years" -> 213 tons of CO2 over 25 years
C151: It's the environmental equivalent of:
D152: =FIXED(EnvBenMiles_25Yrs,0)&" miles not driven" -> 692,477 miles not driven
D153: ="or "&FIXED(EnvBenTreeAcres,1)&" acres of trees planted" -> or 3.6 acres of trees planted
F154: Incentives and energy savings depend upon several factors that may not be represented in this analysis.
F155: A trusted tax professional should verify the figures provided.
F156: =VendName&" provides assistance with applications for incentives and rebates." -> Acme Solar provides assistance with applications for incentives and rebates.
F157: =VendName&" does not take responsibility for any future changes in tax law or other incentives." -> Acme Solar does not take responsibility for any future changes in tax law or other incentives.
B158: x
C164: ShortCommResGraphics: Short 2nd page for Res/Comm Proposal (1-2 Pager)
B166: S1.3 Graphics
L168: Cash Flow Over Time:
M239: =ToolVersionText -> OnGrid Tool v4
O240: x
M241: x | N241: x | O241: x
AE244: S2.1 Residential
P245: S2.1 Commercial | W245: Solar Electric Investment, Incentive and Energy Savings Analysis | AK245: Solar Electric Investment, Incentive and Energy Savings Analysis
S247: =CustsFullName -> Jackie Sun and Jilla Sky | W247: =DateOfAnalysis -> 2013-04-28 | AG247: =CustsFullName -> Jackie Sun and Jilla Sky | AK247: =DateOfAnalysis -> 2013-04-28
S248: =IF(CustCompany>0,CustCompany,"") -> Ichiban Hibachi | AG248: =IF(CustCompany>0,CustCompany,"") -> Ichiban Hibachi
S250: Site Location: | W250: =IF(CustFullPh>0,CustFullPh,"") -> (408) 111 1111H, (408) 222 2222C, (408) 333 3333x333W | AG250: Site Location: | AK250: =IF(CustFullPh>0,CustFullPh,"") -> (408) 111 1111H, (408) 222 2222C, (408) 333 3333x333W
S251: =CustFullSiteAddr -> 133 Pelhamdale Ave, #1 | W251: =IF(CustEmail>0,CustEmail,"")&IF(CustEmail>0,IF(CustEmailAlt>0,", ",IF(CustWebsite>0,", ","")),"")&IF(CustEmailAlt>0,CustEmailAlt,"")&IF(CustEmailAlt>0,IF(CustWebsite>0,", ",""),"")&IF(CustWebsite>0,CustWebsite,"") -> cust@buyer.com, Cake@eater.com, www.ibm.com | AG251: =CustFullSiteAddr -> 133 Pelhamdale Ave, #1 | AK251: =IF(CustEmail>0,CustEmail,"")&IF(CustEmail>0,IF(CustEmailAlt>0,", ",IF(CustWebsite>0,", ","")),"")&IF(CustEmailAlt>0,CustEmailAlt,"")&IF(CustEmailAlt>0,IF(CustWebsite>0,", ",""),"")&IF(CustWebsite>0,CustWebsite,"") -> cust@buyer.com, Cake@eater.com, www.ibm.com
S252: =CustFullSiteCityStZip -> Pelham, CA 10803 | AG252: =CustFullSiteCityStZip -> Pelham, CA 10803
S255: System | AG255: System
S256: =(SysModCnt+SysModCnt2)&" "&IF(SysModule<>SysModule2,"Solar PV Modules",SysModule&" modules") -> 48 Solar PV Modules | AG256: =(SysModCnt+SysModCnt2)&" "&IF(SysModule<>SysModule2,"Solar PV Modules",SysModule&" modules") -> 48 Solar PV Modules
S257: =(SysInvCnt+SysInvCnt2)&" "&IF(SysInverter<>SysInverter2,"Inverters",SysInverter&" inverters") -> 3 Inverters | AG257: =(SysInvCnt+SysInvCnt2)&" "&IF(SysInverter<>SysInverter2,"Inverters",SysInverter&" inverters") -> 3 Inverters
S258: Proposed System DC Size | AA258: =FIXED(SysSizeSTC,IF(SysSizeSTC>100,0,1))&" kW STC DC" -> 10.4 kW STC DC | AG258: Proposed System DC Size | AO258: =FIXED(SysSizeSTC,IF(SysSizeSTC>100,0,1))&" kW STC DC" -> 10.4 kW STC DC
S259: =IF(SysRatingType="CEC","System's CEC AC Rating","") -> System's CEC AC Rating | AA259: =IF(SysRatingType="CEC",FIXED(SysSizeCEC,IF(SysSizeCEC>100,0,1))&" kW CEC AC","") -> 9.1 kW CEC AC | AG259: =IF(SysRatingType="CEC","System's CEC AC Rating","") -> System's CEC AC Rating | AO259: =IF(SysRatingType="CEC",FIXED(SysSizeCEC,IF(SysSizeCEC>100,0,1))&" kW CEC AC","") -> 9.1 kW CEC AC
S260: Location's Average Equivalent Noontime Sun Hours | AA260: =FIXED(SunHrsAnnualAvg,1)&" Sun Hours" -> 5.9 Sun Hours | AG260: Location's Average Equivalent Noontime Sun Hours | AO260: =FIXED(SunHrsAnnualAvg,1)&" Sun Hours" -> 5.9 Sun Hours
S261: Estimated Annual Energy Production | AA261: =FIXED(ProdTot,0)&" kWh/yr" -> 10,852 kWh/yr | AG261: Estimated Annual Energy Production | AO261: =FIXED(ProdTot,0)&" kWh/yr" -> 10,852 kWh/yr
S264: Utility & Tariff | AG264: Utility & Tariff
S265: ="Utility: " -> Utility: | AA265: =IF(LEFT(Utility,4)<>"user",Utility,UtilityUserDefined) -> PG&E | AG265: ="Utility: " -> Utility: | AO265: =IF(LEFT(Utility,4)<>"user",Utility,UtilityUserDefined) -> PG&E
S266: ="Current Rate Schedule: " -> Current Rate Schedule: | AA266: =IF(LEFT(TariffStarting,4)<>"user",TariffStarting&IF(TariffTerritory&TariffCode="","","-")&TariffTerritory&" "&TariffCode&" -- "&RateDescription,RateDescription) -> A10 TOU Non-FTA (S)-P H -- Commercial TOU Demand | AG266: ="Current Rate Schedule: " -> Current Rate Schedule: | AO266: =IF(LEFT(TariffStarting,4)<>"user",TariffStarting&IF(TariffTerritory&TariffCode="","","-")&TariffTerritory&" "&TariffCode&" -- "&RateDescription,RateDescription) -> A10 TOU Non-FTA (S)-P H -- Commercial TOU Demand
S267: =IF(TariffEnding=TariffStarting,"","New Solar Rate Schedule: ") -> New Solar Rate Schedule: | AA267: =IF(LEFT(TariffEnding,4)<>"user",TariffEnding&IF(TariffTerritory&TariffCode="","","-")&TariffTerritory&" "&TariffCode&" -- "&RateEndDescription,RateEndDescription) -> A6-P H -- Commercial TOU | AG267: =IF(TariffEnding=TariffStarting,"","New Solar Rate Schedule: ") -> New Solar Rate Schedule: | AO267: =IF(LEFT(TariffEnding,4)<>"user",TariffEnding&IF(TariffTerritory&TariffCode="","","-")&TariffTerritory&" "&TariffCode&" -- "&RateEndDescription,RateEndDescription) -> A6-P H -- Commercial TOU
S268: ="Historical Usage"&IF(AdjLifestylePct=0,": "," with Estimated Lifestyle/Cccupancy Changes: ") -> Historical Usage with Estimated Lifestyle/Cccupancy Changes: | AA268: =FIXED(UseAdjAnnualTotal,0)&" kWh/yr" -> 17,850 kWh/yr | AG268: ="Historical Usage"&IF(AdjLifestylePct=0,": "," with Estimated Lifestyle/Cccupancy Changes: ") -> Historical Usage with Estimated Lifestyle/Cccupancy Changes: | AO268: =FIXED(UseAdjAnnualTotal,0)&" kWh/yr" -> 17,850 kWh/yr
S269: Current Utility Rate are as high as | AA269: =RateStartMax -> 29.40891509 | AG269: Current Utility Rate are as high as | AO269: =RateStartMax -> 29.40891509
S270: =IF(RateStartMax=RateStartAvg,"","Current Utility Rate Average") ->  | AA270: =IF(RateStartMax=RateStartAvg,"",RateStartAvg) ->  | AG270: =IF(RateStartMax=RateStartAvg,"","Current Utility Rate Average") ->  | AO270: =IF(RateStartMax=RateStartAvg,"",RateStartAvg) -> 
S271: Estimated First Year Utility Savings | AA271: ="$"&FIXED(Savings1stYr,0)&" per year" -> $4,232 per year | AG271: Estimated First Year Utility Savings | AO271: ="$"&FIXED(Savings1stYr,0)&" per year" -> $4,232 per year
S274: Cost & Incentives | AG274: Cost & Incentives
P275: cost gross | S275: ="Gross System Cost with Sales Tax"&IF(OR(NOT(ShowDiscount),CostDiscount = 0),"",IF(CostDiscountBasis="Percent"," and "& FIXED(-CostDiscountPct*100,1) &"% Discount"," and Discount"))&" ($"&FIXED(CostGrossPerW,2)&IF(SysRatingType="CEC"," per CEC AC Watt",IF(SysRatingType="PTC"," per PTC Watt"," per DC (STC) Watt"))&")" -> Gross System Cost with Sales Tax and 3.0% Discount ($11.73 per CEC AC Watt) | AA275: =CostGross -> 106372.6355 | AG275: ="Gross System Cost with Sales Tax"&IF(OR(NOT(ShowDiscount),CostDiscount = 0),"",IF(CostDiscountBasis="Percent"," and "& FIXED(-CostDiscountPct*100,1) &"% Discount"," and Discount"))&" ($"&FIXED(CostGrossPerW,2)&IF(SysRatingType="CEC"," per CEC AC Watt",IF(SysRatingType="PTC"," per PTC Watt"," per DC (STC) Watt"))&")" -> Gross System Cost with Sales Tax and 3.0% Discount ($11.73 per CEC AC Watt) | AO275: =CostGross -> 106372.6355
P276: Rebates, non-Fed Grants | S276: =IF(ABS(SysRebate)>1,"Rebate","") & IF(AND(ABS(SysRebate)>1,ABS(SysGrant)>1)," & ","") & IF(ABS(SysGrant)>1,"Non-Federal Grants","")&" "&IF(IncentRebatePerW=0,"","(Rebate: $"&FIXED(-SysRebate/IF(IncentRebateRatingType="STC DC",SysSizeSTC*1000,IF(IncentRebateRatingType="PTC",SysSizePTC*1000,SysSizeCEC*1000)),2) &" per "&IF(IncentRebateRatingType="STC DC","STC DC",IF(SysRatingType="PTC","PTC DC","CEC AC"))&" Watt)")&"" -> Rebate & Non-Federal Grants (Rebate: $0.80 per CEC AC Watt) | AA276: =SysRebate+SysGrant -> -9216.723703 | AG276: =IF(ABS(SysRebate)>1,"Rebate","") & IF(AND(ABS(SysRebate)>1,ABS(SysGrant)>1)," & ","") & IF(ABS(SysGrant)>1,"Non-Federal Grants","")&" "&IF(IncentRebatePerW=0,"","(Rebate: $"&FIXED(-SysRebate/IF(IncentRebateRatingType="STC DC",SysSizeSTC*1000,IF(IncentRebateRatingType="PTC",SysSizePTC*1000,SysSizeCEC*1000)),2) &" per "&IF(IncentRebateRatingType="STC DC","STC DC",IF(SysRatingType="PTC","PTC DC","CEC AC"))&" Watt)")&"" -> Rebate & Non-Federal Grants (Rebate: $0.80 per CEC AC Watt) | AO276: =SysRebate+SysGrant -> -9216.723703
P277: Fed tax on Rebate or Grant | S277: =IF(AA277=0,"","Federal Tax on Rebate or Non-Federal Grants") -> Federal Tax on Rebate or Non-Federal Grants | AA277: =TaxFedOnRebateGrant -> 3225.853296 | AG277: =IF(AO277=0,"","Federal Tax on Rebate or Non-Federal Grants") -> Federal Tax on Rebate or Non-Federal Grants | AO277: =TaxFedOnRebateGrant -> 3225.853296
P278: Fees | S278: =IF(AA278=0,"","Estimated Fees NOT included in system contract price") -> Estimated Fees NOT included in system contract price | AA278: =CostPermitFeesNotInc+CostUtilityFeesNotInc+CostOtherFeesNotInc -> 600 | AG278: =IF(AO278=0,"","Estimated Fees NOT included in system contract price") -> Estimated Fees NOT included in system contract price | AO278: =CostPermitFeesNotInc+CostUtilityFeesNotInc+CostOtherFeesNotInc -> 600
P279: State Tax Credit + TaxFedOnStateTaxCredit | S279: =IF(AA279=0,"","State Tax Credit Benefit after Federal Tax Effects") -> State Tax Credit Benefit after Federal Tax Effects | AA279: =TaxCreditState+TaxFedOnStateTaxCredit -> -3250 | AG279: =IF(AO279=0,"","State Tax Credit Benefit after Federal Tax Effects") -> State Tax Credit Benefit after Federal Tax Effects | AO279: =TaxCreditState+TaxFedOnStateTaxCredit -> -3250
P280: Local Tax Credit + Fed Tax on Local Tax Credit | S280: =IF(AA280=0,"",FIXED(IncentLocalTaxCredit*100,1)&"% Local Tax Credit, Net Benefit after Federal Tax effects ") ->  | AA280: =TaxCreditLocal+ TaxFedOnLocalTaxCredit -> 0 | AG280: =IF(AO280=0,"",FIXED(IncentLocalTaxCredit*100,1)&"% Local Tax Credit, Net Benefit after Federal Tax effects ") ->  | AO280: =TaxCreditLocal+ TaxFedOnLocalTaxCredit -> 0
P281: Federal Tax Credit or Treasury Grant | S281: =IF(AA281=0,"",FIXED(IncentFedTaxCredit*100,0)&"% Federal Tax Credit (ITC) or Treasury Grant") -> 30% Federal Tax Credit (ITC) or Treasury Grant | AA281: =TaxCreditFed+TreasuryGrantFed -> -32091.79064 | AG281: =IF(AO281=0,"",FIXED(IncentFedTaxCredit*100,0)&"% Federal Tax Credit (ITC)") ->  | AO281: =TaxCreditFed -> 0
P282: Depreciation | S282: =IF(AA282=0,"","Depreciation: Federal & Net State (total value, non-discounted)") -> Depreciation: Federal & Net State (total value, non-discounted) | AA282: =DeprFedStateNetSumTotal -> -37441.41374
P283: Net PBI value | S283: =IF(AA283=0,"","PBI Incentive" & IF(TaxablePBI="Yes"," after Federal Tax","")) -> PBI Incentive after Federal Tax | AA283: =SysPBI-TaxFedOnPBI -> -34254.92978 | AG283: =IF(AO283=0,"","PBI Incentive" & IF(TaxablePBI="Yes"," after Federal Tax","")) -> PBI Incentive after Federal Tax | AO283: =SysPBI-TaxFedOnPBI -> -34254.92978
S284: Net System Cost with Tax Benefits & Incentives | AA284: =CostNetAfterTaxEffectsAndPBI -> 11705.44634 | AG284: Net System Cost with Tax Benefits & Incentives | AO284: =CostNetAfterTaxEffectsAndPBI -> 11705.44634
S287: MACRS Depreciation Schedule
S288: ="Fed Depreciation Basis (Fed ITC/Grant Basis minus 1/2 Fed ITC): $"&FIXED(IncentFedDepBasis,0) -> Fed Depreciation Basis (Fed ITC/Grant Basis minus 1/2 Fed ITC): $90,927
S289: ="Estimated Federal Tax Bracket: "&FIXED(TaxRateFed*100,0)&"%" -> Estimated Federal Tax Bracket: 35%
T290: Year | V290: State Net Depreciation Value | AA290: Federal Depreciation Value
T291: 1 | V291: ='OnGrid Timelines'!$E$155+'OnGrid Timelines'!$E$156 -> 2959 | AA291: ='OnGrid Timelines'!$E$154 -> 19440
T292: =T291+1 -> 2 | V292: ='OnGrid Timelines'!$F$155+'OnGrid Timelines'!$F$156 -> 4735 | AA292: ='OnGrid Timelines'!$F$154 -> 31104
T293: 3 | V293: ='OnGrid Timelines'!$G$155+'OnGrid Timelines'!$G$156 -> 2841 | AA293: ='OnGrid Timelines'!$G$154 -> 18662
T294: 4 | V294: ='OnGrid Timelines'!$H$155+'OnGrid Timelines'!$H$156 -> 1702 | AA294: ='OnGrid Timelines'!$H$154 -> 11178
T295: 5 | V295: ='OnGrid Timelines'!$I$155+'OnGrid Timelines'!$I$156 -> 1702 | AA295: ='OnGrid Timelines'!$I$154 -> 11178
T296: 6 | V296: ='OnGrid Timelines'!$J$155+'OnGrid Timelines'!$J$156 -> 858 | AA296: ='OnGrid Timelines'!$J$154 -> 5638
T297: 7 | V297: ='OnGrid Timelines'!$K$155+'OnGrid Timelines'!$K$156 -> 0 | AA297: ='OnGrid Timelines'!$K$154 -> 0
T298: 8 | V298: ='OnGrid Timelines'!$L$155+'OnGrid Timelines'!$L$156 -> 0 | AA298: ='OnGrid Timelines'!$L$154 -> 0
T299: 9 | V299: ='OnGrid Timelines'!$M$155+'OnGrid Timelines'!$M$156 -> 0 | AA299: ='OnGrid Timelines'!$M$154 -> 0
T300: 10 | V300: ='OnGrid Timelines'!$N$155+'OnGrid Timelines'!$N$156 -> 0 | AA300: ='OnGrid Timelines'!$N$154 -> 0
T301: 11 | V301: ='OnGrid Timelines'!$O$155+'OnGrid Timelines'!$O$156 -> 0 | AA301: ='OnGrid Timelines'!$O$154 -> 0
T302: 12 | V302: ='OnGrid Timelines'!$P$155+'OnGrid Timelines'!$P$156 -> 0 | AA302: ='OnGrid Timelines'!$P$154 -> 0
T303: TOTALS: | V303: ='OnGrid Timelines'!$C$155+'OnGrid Timelines'!$C$156 -> 14798 | AA303: ='OnGrid Timelines'!$C$154 -> 97199
S306: Incentives and energy savings depend upon several factors that may not be represented in this analysis. | AG306: Incentives and energy savings depend upon several factors that may not be represented in this analysis.
S307: A trusted tax professional should verify the figures provided. | AG307: A trusted tax professional should verify the figures provided.
S308: =VendName&" provides assistance with applications for incentives and rebates." -> Acme Solar provides assistance with applications for incentives and rebates. | AG308: =VendName&" provides assistance with applications for incentives and rebates." -> Acme Solar provides assistance with applications for incentives and rebates.
S309: =VendName&" does not take responsibility for any future changes in tax law or other incentives." -> Acme Solar does not take responsibility for any future changes in tax law or other incentives. | AG309: =VendName&" does not take responsibility for any future changes in tax law or other incentives." -> Acme Solar does not take responsibility for any future changes in tax law or other incentives.
P313: S2.2 Res & Commercial
S315: Results
T316: ="Previous Average "&IF(AdjLifestylePct=0,"","Adjusted ")&"Monthly Electric Bill" -> Previous Average Adjusted Monthly Electric Bill | AA316: =ROUND(BillwLifenoSolar,0) -> 416
T317: Estimated New Average Monthly Electric Bill | AA317: =ROUND(BillWithSolar,0) -> 63
... 170 more rows

Sheet Short2
A1: ThreePage Overview | G1: OnePageSummary with 4 Charts | L1: Top | Y1: Top | AP1: Top | BF1: Top | CE1: Top | CY1: Top
A2: OnePage Summary | G2: OnePage Summary with 2 Charts and Environmental Benefits
A3: BigPrint - OnePage Summary | G3: TwoPage Summary with 5 Charts and Incentive Details
D8: SS1.1 ThreePage Overview | F8: Solar Electric Investment Proposal
F9: ="for "&CustsFullName -> for Jackie Sun and Jilla Sky
F10: =IF(CustCompany>0, CustCompany,"") -> Ichiban Hibachi
F11: ="Site Location: "&CustFullSiteAddr&" "&CustFullSiteCityStZip -> Site Location: 133 Pelhamdale Ave, #1 Pelham, CA 10803
F13: Date : | G13: =DateOfAnalysis -> 2013-04-28
F15: ="This PROPOSAL SUMMARY is based on the site location, estimated electric usage and PV system characteristics. "&"Our goal is to help you achieve the best solar investment in terms of system cost, production, and product quality and reliability. This proposal is valid for "&SalesContractDaysValid&" days from the date of analysis." -> This PROPOSAL SUMMARY is based on the site location, estimated electric usage and PV system characteristics. Our goal is to help you achieve the best solar investment in terms of system cost, production, and product quality and reliability. This proposal is valid for 14 days from the date of analysis.
F17: PROPOSED SOLAR PV SYSTEM
F20: =IF(SysRatingType="CEC","System Size CEC Rating :","") -> System Size CEC Rating : | I20: =IF(SysRatingType="CEC",FIXED(SysSizeCEC,IF(SysSizeCEC>100,0,1))&" kW CEC AC","") -> 9.1 kW CEC AC
F21: System Size STC Rating: | I21: =FIXED(SysSizeSTC,IF(SysSizeSTC>100,0,1))&" kW STC DC" -> 10.4 kW STC DC
F22: Site's Average Sun Hours: | I22: =FIXED(SunHrsAnnualAvg, 1)&" sun-hours" -> 5.9 sun-hours
F23: Annual Solar Production | I23: =FIXED(ProdTot,0)&" kWh" -> 10,852 kWh
F24: Annual Electric Usage | I24: =FIXED(UseHistAnnualTotal,0)&" kWh" -> 21,000 kWh
F25: Annual kWh Offset % | I25: =UsePctOffset -> 0.6399543246
F26: PV Solar System To Be Mounted On: | I26: =SysRoofTypeText -> Foam roof
F27: Array 1 : | I27: =SysModCnt&" "&SysModule&" Modules" -> 33 Sanyo Electric HIT-N215A01 Modules
I28: =SysInvCnt&" "&SysInverter&" Inverter"&IF(SysInvCnt>1,"s","") -> 2 SMA America SB3000US (240V) Inverters
I29: =VALUE(SysArraySlope)&" degrees "&SysArrayAzimuthLong&" Orientation" -> 30 degrees West Orientation
F30: =IF(SysModCnt2>0,"Array 2 :","") -> Array 2 : | I30: =IF(SysModCnt2>0,SysModCnt2&" "&SysModule2&" Modules", "") -> 15 BP Solar BP3220N Modules
I31: =IF(SysModCnt2>0,SysInvCnt2&" "&SysInverter2&" Inverter"&IF(SysInvCnt>1,"s",""),"") -> 1 SMA America SB7000US (240V) Inverters
I32: =IF(SysModCnt2>0, VALUE(SysArraySlope2)&" degrees "&SysArrayAzimuthLong2&" Orientation", "") -> 30 degrees West Orientation
F35: Estimated Electric Usage and Solar Production
D65: SS1.2 ThreePage Overview | F65: ELECTRIC BILLS COMPARISON | J65: YOUR CONTRIBUTION:-
F66: Before and After Solar | J66: Cleaner and Greener Environments
G68: % of Bill Offset | H68: =BillPctOffset -> 0.848623771 | J68: Over 25 years, the system is estimated to offset: -
G69: New Bill | H69: =1-BillPctOffset -> 0.151376229 | J69: =FIXED(ProdTot*25,0,0) &" kWH of electricity" -> 271,301 kWH of electricity
J70: =FIXED(ProdTot/UseAnnualTotal*100,0)&"% of the estimated future usage" -> 64% of the estimated future usage
J71: CO2 emissions: | N71: =FIXED(EnvBenCO2_25yrs,0,0)&" lbs" -> 425,590 lbs
J72: NOx which creates smog | N72: =FIXED(EnvBenNOx_25yrs,0,0)&" lbs" -> 1,366 lbs
J73: SOx which causes acid rain | N73: =FIXED(EnvBenSOx_25yrs,0,0)&" lbs" -> 1,236 lbs
J74: Particulates that cause asthma | N74: =FIXED(EnvBenParticulates_25yrs,0,0)&" lbs" -> 84 lbs
J76: That's the environmental equivalent of:
J78: =FIXED(EnvBenMiles_25Yrs,0)&" miles driven in an average car" -> 692,477 miles driven in an average car
J79: ="or taking "&FIXED((EnvBenCars_25yrs),1)&" cars off the road for 25 years" -> or taking 2.2 cars off the road for 25 years
J81: ="or planting "&FIXED(EnvBenTreeAcres,1)&" acres of trees" -> or planting 3.6 acres of trees
F91: SOLAR PV ECONOMICS AND RETURNS
F93: ="Gross System Price "&" ($"&FIXED(CostGrossPerW,2)&IF(SysRatingType="CEC"," per CEC AC Watt",IF(SysRatingType="PTC"," per PTC Watt"," per STC DC Watt"))&")" -> Gross System Price ($11.73 per CEC AC Watt) | M93: =CostGross -> 106372.6355
F95: Net System Cost after Tax Benefits & Incentives | M95: =CostNetAfterTaxEffectsAndPBI -> 11705.44634
F97: Estimated First Year Utility Savings | M97: =Savings1stYr -> 4232.100983
F99: Net Savings over 25 years: | M99: =CumNetSavings25Yrs -> 69293.7172
F100: including bill savings, sRECs, maintenance, & inverter replacement (after-tax)
F102: Total Lifecycle Payback (25-year Net Savings divided by Net Cost) | M102: =FIXED(CumNetSavings25Yrs/CostNetAfterTaxEffectsAndPBI,1)&"x" -> 5.9x
F104: =IF(CustType="Residential","Simple Payback","Capital Recovery Period (Payback)") -> Capital Recovery Period (Payback) | M104: =FIXED(YearsToCashPayback,1)&" years" -> 6.6 years
F106: =IF(CustType="Residential","Pre-Tax Compound Annual Rate of Return (IRR)",IF(CustType="Commercial","Effective After-Tax Compound Annual Rate of Return (IRR)","Effective Non-Taxable Compound Annual Rate of Return (IRR)"))&" over 25 years" -> Effective After-Tax Compound Annual Rate of Return (IRR) over 25 years | M106: =FIXED(IRR*100,1)&"%" -> 9.2%
F108: =IF(CustType="Residential","Estimated Initial Increase in Property Value","Property Value Increase with "&CapRate*100&"% Cap Rate") -> Property Value Increase with 6% Cap Rate | M108: =ResaleValue1stYr -> 67484.1941
F110: Maximum resale value increase occurs | M110: =ResaleValueMax -> 72453.32532
F111: =" at year "&ResaleValueMaxYear&" at a value of:" -> at year 9 at a value of:
F113: =IF(CustType="Commercial","Net Present Value with "&DiscountRate*100&"% Discount Rate","") -> Net Present Value with 3% Discount Rate | M113: =IF(CustType="Commercial", NPV, "") -> 29426.02628
F115: =TRIM(OnGridDisclaimer1)&" "&TRIM(OnGridDisclaimer2)&" "&TRIM(OnGridDisclaimer3)&" "&TRIM(OnGridDisclaimer4) -> Disclaimer: This information is provided as an illustration of potential financial benefits stemming from ownership of a renewable energy power system. This is not a production guarantee. A professional accountant or tax advisor should confirm these estimates. Neither OnGrid Solar nor any authorized user warrants the applicability of these estimates for particular business cases, and both disclaim all liability
D121: SS1.3 ThreePage Overview | F121: ANNUAL BILLS, SAVINGS & PAYBACK SCHEDULE
F123: Year | G123: Old Electric Bill | H123: New Electric Bill | I123: Electric Bill Savings | J123: Annual Savings, RECs after tax, operating expense | K123: Rebates, PBIs, after tax, Tax Credits and Depreciation | L123: Cost / Payback (Cumulative Cash Position)
F125: 0 | K125: ='OnGrid Timelines'!$D$221 -> 9735 | L125: ='OnGrid Timelines'!$D$222 -> -61566 | P125: NOTES:
F126: 1 | G126: =BillwLifenoSolar*12 -> 4987.016777 | H126: =BillWithSolar*12 -> 754.9157936 | I126: =G126-H126 -> 4232.100983 | J126: ='OnGrid Timelines'!$E$220 -> 3515 | K126: ='OnGrid Timelines'!$E$221 -> 50399 | L126: ='OnGrid Timelines'!$E$222 -> -7652 | P126: Annual Savings (or Feed-In Income), RECs after tax, operating expense = Annual Savings (or Feed-In Income after tax) + REC after tax- Operating Expenses- Lost Fed & State Tax Deductions
F127: 2 | G127: =G126*(1+InflElectYr1) -> 5086.757113 | H127: =(H126*(1+InflElectYr1))+((G126-H126)*SysModDegradationRate) -> 801.7548669 | I127: 4285.002246 | J127: ='OnGrid Timelines'!$F$220 -> 3584 | K127: ='OnGrid Timelines'!$F$221 -> 37474 | L127: ='OnGrid Timelines'!$F$222 -> 33406 | P127: For details of "Annual Savings or FIT, after tax", go to Row 163 of "OnGrid Timelines" tab.
F128: 3 | G128: =G127*(1+InflElectYr2) -> 5239.359826 | H128: =(H127*(1+InflElectYr2))+((G127-H127)*SysModDegradationRate) -> 857.9450297 | I128: 4381.414796 | J128: ='OnGrid Timelines'!$G$220 -> 3657 | K128: ='OnGrid Timelines'!$G$221 -> 24849 | L128: ='OnGrid Timelines'!$G$222 -> 61912
F129: 4 | G129: =G128*(1+InflElectYr3) -> 5448.934219 | H129: =(H128*(1+InflElectYr3))+((G128-H128)*SysModDegradationRate) -> 925.1234419 | I129: 4523.810777 | J129: ='OnGrid Timelines'!$H$220 -> 3729 | K129: ='OnGrid Timelines'!$H$221 -> 16212 | L129: ='OnGrid Timelines'!$H$222 -> 81853 | P129: Note:Rebates, PBIs, after tax, Tax Credits and Depreciation = Net rebates + net PBIs + Federal and State tax incentives (net) + depreciation tax benefits (net)
F130: 5 | G130: =G129*(1+InflElect) -> 5503.423561 | H130: =(H129*(1+InflElect))+((G129-H129)*SysModDegradationRate) -> 968.3032571 | I130: 4535.120304 | J130: ='OnGrid Timelines'!$I$220 -> 3804 | K130: ='OnGrid Timelines'!$I$221 -> 16200 | L130: ='OnGrid Timelines'!$I$222 -> 101857 | P130: Note: Depreciation Tax Benefits (net) = Federal tax on depreciation + state tax on depreciation - federal tax on state depreciation
F131: 6 | G131: 5558.457797 | H131: 1011.999692 | I131: 4546.458105 | J131: ='OnGrid Timelines'!$J$220 -> 4237 | K131: ='OnGrid Timelines'!$J$221 -> 6708 | L131: ='OnGrid Timelines'!$J$222 -> 112802 | P131: For details of "Rebates, PBIs, after tax, Tax Credits and Depreciation", go to Row 164 of "OnGrid Timelines" tab.
F132: 7 | G132: 5614.042375 | H132: 1056.218125 | I132: 4557.82425 | J132: ='OnGrid Timelines'!$K$220 -> 4326 | K132: ='OnGrid Timelines'!$K$221 -> 214 | L132: ='OnGrid Timelines'!$K$222 -> 117342
F133: 8 | G133: 5670.182799 | H133: 1100.963988 | I133: 4569.218811 | J133: ='OnGrid Timelines'!$L$220 -> 4421 | K133: ='OnGrid Timelines'!$L$221 -> 217 | L133: ='OnGrid Timelines'!$L$222 -> 121980
F134: 9 | G134: 5726.884626 | H134: 1146.242769 | I134: 4580.641858 | J134: ='OnGrid Timelines'!$M$220 -> 4516 | K134: ='OnGrid Timelines'!$M$221 -> 219 | L134: ='OnGrid Timelines'!$M$222 -> 126715
F135: 10 | G135: 5784.153473 | H135: 1192.06001 | I135: 4592.093462 | J135: ='OnGrid Timelines'!$N$220 -> 4613 | K135: ='OnGrid Timelines'!$N$221 -> 222 | L135: ='OnGrid Timelines'!$N$222 -> 131550
F136: 11 | G136: 5841.995007 | H136: 1238.421311 | I136: 4603.573696 | J136: ='OnGrid Timelines'!$O$220 -> 4713 | K136: ='OnGrid Timelines'!$O$221 -> 224 | L136: ='OnGrid Timelines'!$O$222 -> 136487
F137: 12 | G137: 5900.414958 | H137: 1285.332327 | I137: 4615.08263 | J137: ='OnGrid Timelines'!$P$220 -> 4816 | K137: ='OnGrid Timelines'!$P$221 -> 226 | L137: ='OnGrid Timelines'!$P$222 -> 141529
F138: 13 | G138: 5959.419107 | H138: 1332.79877 | I138: 4626.620337 | J138: ='OnGrid Timelines'!$Q$220 -> 5329 | K138: ='OnGrid Timelines'!$Q$221 -> 87 | L138: ='OnGrid Timelines'!$Q$222 -> 146945
F139: 14 | G139: 6019.013298 | H139: 1380.826411 | I139: 4638.186888 | J139: ='OnGrid Timelines'!$R$220 -> 5434 | K139: ='OnGrid Timelines'!$R$221 -> 90 | L139: ='OnGrid Timelines'!$R$222 -> 152469
F140: 15 | G140: 6079.203431 | H140: 1429.421076 | I140: 4649.782355 | J140: ='OnGrid Timelines'!$S$220 -> 6727 | K140: ='OnGrid Timelines'!$S$221 -> 93 | L140: ='OnGrid Timelines'!$S$222 -> 159289
F141: 16 | G141: 6139.995465 | H141: 1478.588655 | I141: 4661.406811 | J141: ='OnGrid Timelines'!$T$220 -> 5651 | K141: ='OnGrid Timelines'!$T$221 -> 96 | L141: ='OnGrid Timelines'!$T$222 -> 165036
F142: 17 | G142: 6201.39542 | H142: 1528.335092 | I142: 4673.060328 | J142: ='OnGrid Timelines'!$U$220 -> 5764 | K142: ='OnGrid Timelines'!$U$221 -> 99 | L142: ='OnGrid Timelines'!$U$222 -> 170899
F143: 18 | G143: 6263.409374 | H143: 1578.666396 | I143: 4684.742979 | J143: ='OnGrid Timelines'!$V$220 -> 4857 | K143: ='OnGrid Timelines'!$V$221 -> 0 | L143: ='OnGrid Timelines'!$V$222 -> 175756
F144: 19 | G144: 6326.043468 | H144: 1629.588632 | I144: 4696.454836 | J144: ='OnGrid Timelines'!$W$220 -> 4983 | K144: ='OnGrid Timelines'!$W$221 -> 0 | L144: ='OnGrid Timelines'!$W$222 -> 180739
F145: 20 | G145: 6389.303903 | H145: 1681.10793 | I145: 4708.195973 | J145: ='OnGrid Timelines'!$X$220 -> 5113 | K145: ='OnGrid Timelines'!$X$221 -> 0 | L145: ='OnGrid Timelines'!$X$222 -> 185852
F146: 21 | G146: 6453.196942 | H146: 1733.230479 | I146: 4719.966463 | J146: ='OnGrid Timelines'!$Y$220 -> 5244 | K146: ='OnGrid Timelines'!$Y$221 -> 0 | L146: ='OnGrid Timelines'!$Y$222 -> 191096
F147: 22 | G147: 6517.728911 | H147: 1785.962532 | I147: 4731.766379 | J147: ='OnGrid Timelines'!$Z$220 -> 5375 | K147: ='OnGrid Timelines'!$Z$221 -> 0 | L147: ='OnGrid Timelines'!$Z$222 -> 196471
F148: 23 | G148: 6582.9062 | H148: 1839.310405 | I148: 4743.595795 | J148: ='OnGrid Timelines'!$AA$220 -> 5513 | K148: ='OnGrid Timelines'!$AA$221 -> 0 | L148: ='OnGrid Timelines'!$AA$222 -> 201984
F149: 24 | G149: 6648.735262 | H149: 1893.280478 | I149: 4755.454785 | J149: ='OnGrid Timelines'!$AB$220 -> 5652 | K149: ='OnGrid Timelines'!$AB$221 -> 0 | L149: ='OnGrid Timelines'!$AB$222 -> 207636
F150: 25 | G150: 6715.222615 | H150: 1947.879193 | I150: 4767.343422 | J150: ='OnGrid Timelines'!$AC$220 -> 5792 | K150: ='OnGrid Timelines'!$AC$221 -> 0 | L150: ='OnGrid Timelines'!$AC$222 -> 213428
F152: TOTAL | G152: =SUM(G125:G150) -> 148657.1959 | H152: =SUM(H125:H150) -> 33578.27666 | I152: =SUM(I125:I150) -> 115078.9193 | J152: =SUM(J125:J150) -> 121365 | K152: =SUM(K125:K150) -> 163364
F154: Summary of PV Solar Benefits
F156: . clean, renewable energy from the sun | J156: . attractive cash flow
F157: . own your own electric generator | J157: . increase resale value of your property
F158: . significantly reduce annual electric bills | J158: . reduce CO2, NOx, and SOx gas emissions
F159: . protect from rising electric rates | J159: . reduce dependence on fossil fuels and imported oil
F160: . attractive Return on Investment | J160: . enjoy interesting new technology
T178: SS2 OnePage Summary | U178: ="SOLAR PROPOSAL FOR : "&CustsFullName&IF(CustCompany>0, ", "&CustCompany, "") -> SOLAR PROPOSAL FOR : Jackie Sun and Jilla Sky, Ichiban Hibachi
U180: ="At "&CustFullSiteAddr&", "&CustFullSiteCityStZip -> At 133 Pelhamdale Ave, #1, Pelham, CA 10803
U182: =IF(CustType="Residential","A home improvement to save energy and money","A property improvement to save energy and money") -> A property improvement to save energy and money
U184: TARGET: | V184: TO DESIGN & INSTALL A SOLAR ELECTRIC SYSTEM WITH AN ATTRACTIVE INVESTMENT RATE OF RETURN AND OTHER BENEFITS
U186: . To provide an attractive Return on Investment | Z186: . To provide independence benefits
U187: =IF(CustType="Residential",". To measurably improve the home resale value",". To measurably improve property resale value") -> . To measurably improve property resale value | Z187: . To enjoy interesting new technology
U188: . To provide an attractive cash flow if financed | Z188: . To ensure this property stays current with
U189: . To provide environmental benefits | Z189: =IF(CustType="Residential"," housing amenity trends"," real estate amenity trends") -> real estate amenity trends
U191: Solar electric systems are now low enough cost and provide sufficiently high performance to be able to provide an attractive vehicle for financial investment as well as the more traditional environment and independence benefits. Solar also protects from ever rising electric rates.
U193: Incentives from the utility and government are currently available to drive adoption but are being used up quickly. Solar equipment prices recently declined abruptly due to world market events and prices have stablized at new lower levels. As governments tighten their belts, incentives will not be renewed so this may be the best near term opportunity to acquire a system.
U195: ="The proposed system consists of "&SysModCnt&" "&SysModule&" modules and "&SysInvCnt&" "&SysInverter&IF(SysInvCnt>1," inverters", " inverter") &IF(SysModCnt2>0," in the primary array, and a secondary array comprising "&SysModCnt2&" "&SysModule2&" modules and "&SysInvCnt2&" "&SysInverter2&IF(SysInvCnt2>1," inverters"," inverter"),) & " and will be installed on the "&SysRoofTypeText&" at: "&CustFullSiteAddr&", "&CustFullSiteCityStZip&"." -> The proposed system consists of 33 Sanyo Electric HIT-N215A01 modules and 2 SMA America SB3000US (240V) inverters in the primary array, and a secondary array comprising 15 BP Solar BP3220N modules and 1 SMA America SB7000US (240V) inverter and will be installed on the Foam roof at: 133 Pelhamdale Ave, #1, Pelham, CA 10803.
U197: FINANCIAL: | V197: ="The proposed "& FIXED(SysSize,IF(SysSize>100,0,1))&" kW "&IF(SysRatingType="STC","STC DC",IF(SysRatingType="PTC","PTC","CEC AC"))&" rated system will garner incentives and will generate immediate and growing savings." -> The proposed 9.1 kW CEC AC rated system will garner incentives and will generate immediate and growing savings.
U199: The Cash Purchase breakdown is: | Z199: The Financial Benefits of Solar System Ownership are:
U200: Top Line Cost Before Incentives | X200: =CostGross -> 106372.6355 | Z200: Electric Bill Savings in 1st Year | AC200: ="$"&FIXED(Savings1stYr,0) -> $4,232
U201: =IF(TaxCreditFed+TreasuryGrantFed=0,"","U.S. Fed Tax Credit/Grant") -> U.S. Fed Tax Credit/Grant | X201: =IF(TaxCreditFed+TreasuryGrantFed=0,"",TaxCreditFed+TreasuryGrantFed) -> -32091.79064 | Z201: Cumulative Savings over 25 Years | AC201: ="$"&FIXED(CumNetSavings25Yrs,0) -> $69,294 | AD201: Annual Savings 1st Year/25-Year Cumulative Net Savings - include bill savings, sRECs, PBIs, etc after tax, maintenance, & inverter replacement (net after-tax values)
U202: =IF(DeprStateFedTaxSumTotal=0,"","Net Depreciation") -> Net Depreciation | X202: =IF(DeprFedStateNetSumTotal=0,"",DeprFedStateNetSumTotal) -> -37441.41374 | Z202: =IF(SysPBI=0,"","PBI 1st-Year / Lifetime Value") -> PBI 1st-Year / Lifetime Value | AC202: =IF(SysPBI=0, "","$"&FIXED('OnGrid Timelines'!$E$127,0)&" / "&"$"&FIXED(-SysPBI,0)) -> $3,173 / $25,374 | AD202: PBI 1st Year /Total PBI Value
U203: =IF(SysRebate+SysGrant+TaxFedOnRebateGrant=0,"","Net value of Rebates") -> Net value of Rebates | X203: =IF(SysRebate+SysGrant+TaxFedOnRebateGrant=0, "",(SysRebate+SysGrant)+TaxFedOnRebateGrant) -> -5990.870407 | Z203: =IF(SysREC=0,"","SREC 1st-Year / Lifetime Value") -> SREC 1st-Year / Lifetime Value | AC203: =IF(SysREC=0,"","$"&FIXED('OnGrid Timelines'!$E$122,0)&" / "&"$"&FIXED(-SysREC,0)) -> $1,442 / $15,048 | AD203: SREC 1st Year/Total SREC Value
U204: =IF(SysRebate+SysGrant+TaxFedOnRebateGrant=0,"","(Rebates are sometimes taxable)") -> (Rebates are sometimes taxable) | Z204: =IF(AND(SysPBI=0, SysREC=0), "", "(Above may be subject to tax effects)") -> (Above may be subject to tax effects)
U205: =IF(TaxCreditState+TaxFedOnStateTaxCredit=0,"","Net value of State Tax Credits") -> Net value of State Tax Credits | X205: =IF(TaxCreditState+TaxFedOnStateTaxCredit=0,"",TaxCreditState+TaxFedOnStateTaxCredit) -> -3250 | Z205: =IF(CustType="Residential","Pre-Tax Compound Annual Rate of Return (IRR)",IF(CustType="Commercial","Effective After-Tax Compound Annual Rate of Return (IRR)","Effective Non-Taxable Compound Annual Rate of Return (IRR)"))&" over 25 years" -> Effective After-Tax Compound Annual Rate of Return (IRR) over 25 years
U206: =IF(TaxCreditState+TaxFedOnStateTaxCredit=0,"","(State tax credits are effectively Fed Taxable)") -> (State tax credits are effectively Fed Taxable) | AC206: =FIXED(IRR*100,1)&"%" -> 9.2%
U207: =IF(IncentGrantTotal=0,"","Net value of other short term incentives") -> Net value of other short term incentives | X207: =IF(IncentGrantTotal=0,"",-IncentGrantTotal*(1-TaxRateFed)) -> -1300 | Z207: =IF(CustType="Commercial","Net Present Value with "&DiscountRate*100&"% Discount Rate","") -> Net Present Value with 3% Discount Rate | AC207: =IF(CustType="Commercial","$"&FIXED(NPV,0),"") -> $29,426
U208: =IF(IncentGrantTotal=0,"","(excl SREC)") -> (excl SREC) | Z208: Total Lifecycle Payback | AC208: =FIXED(CumNetSavings25Yrs/CostNetAfterTaxEffectsAndPBI,1)&"x" -> 5.9x
U209: =IF(CostPermitFeesNotInc+CostUtilityFeesNotInc+CostOtherFeesNotInc=0,"","Fees not included in system price") -> Fees not included in system price | X209: =IF(CostPermitFeesNotInc+CostUtilityFeesNotInc+CostOtherFeesNotInc=0,"",CostPermitFeesNotInc+CostUtilityFeesNotInc+CostOtherFeesNotInc) -> 600 | Z209: =IF(CustType="Residential","Simple Payback","Capital Recovery Period (Payback)") -> Capital Recovery Period (Payback) | AC209: =FIXED(YearsToCashPayback,1)&" years" -> 6.6 years
U210: Net Cost of System | X210: =CostNetAfterTaxEffectsAndPBI -> 11705.44634 | Z210: =IF(CustType="Residential","Estimated Initial Increase in Property Value","Property Value Increase with "&CapRate*100&"% Cap Rate") -> Property Value Increase with 6% Cap Rate | AC210: ="$"&FIXED(ResaleValue1stYr,0) -> $67,484
U212: =TRIM(OnGridDisclaimer1)&" "&TRIM(OnGridDisclaimer2)&" "&TRIM(OnGridDisclaimer3)&" "&TRIM(OnGridDisclaimer4) -> Disclaimer: This information is provided as an illustration of potential financial benefits stemming from ownership of a renewable energy power system. This is not a production guarantee. A professional accountant or tax advisor should confirm these estimates. Neither OnGrid Solar nor any authorized user warrants the applicability of these estimates for particular business cases, and both disclaim all liability
U214: STATUS: | V214: Site inspection and needs analysis have been completed. A high level system design is complete and available
U215: ="for approval. Federal Tax Credit and other incentives are currently available and incentive paperwork has been prepared. High quality equipment is available and will be ordered and installation will begin approximately "&ROUND(SalesContractTime1/7 + SalesContractTime2 +SalesContractTime3,0)&" weeks after approval. Customer approval of construction agreement and incentive application are essential to lock in the currently available incentives." -> for approval. Federal Tax Credit and other incentives are currently available and incentive paperwork has been prepared. High quality equipment is available and will be ordered and installation will begin approximately 15 weeks after approval. Customer approval of construction agreement and incentive application are essential to lock in the currently available incentives.
C217: =OnGridDisclaimer1&OnGridDisclaimer2&OnGridDisclaimer3&OnGridDisclaimer4 -> Disclaimer: This information is provided as an illustration of potential financial benefits stemming from ownership of a renewable energy power system. This is not a production guarantee. A professional accountant or tax advisor should confirm these estimates. Neither OnGrid Solar nor any authorized user warrants the applicability of these estimates for particular business cases, and both disclaim all liability | U217: ACTION: | V217: =CustsFullName&IF(CustCompany>0," of "&CustCompany, "")&", to review the scope of work and credentials to determine whether to engage "&VendName&" for the installation of the described solar system." -> Jackie Sun and Jilla Sky of Ichiban Hibachi, to review the scope of work and credentials to determine whether to engage Acme Solar for the installation of the described solar system.
AK226: SS3 BigPrint - OnePage Summary | AL226: ="SOLAR PROPOSAL FOR : "&CustsFullName -> SOLAR PROPOSAL FOR : Jackie Sun and Jilla Sky
AL227: =IF(CustCompany>0, CustCompany, "") -> Ichiban Hibachi
AL229: ="At "&CustFullSiteAddr&", "&CustFullSiteCityStZip -> At 133 Pelhamdale Ave, #1, Pelham, CA 10803
AL231: =IF(CustType="Residential","A home improvement to save energy and money","A property improvement to save energy and money") -> A property improvement to save energy and money
AL233: TARGET: | AM233: TO DESIGN & INSTALL A SOLAR ELECTRIC SYSTEM WITH AN ATTRACTIVE INVESTMENT RATE OF RETURN AND OTHER BENEFITS
AL235: . To provide an attractive Return on Investment | AQ235: . To provide independence benefits
AL236: =IF(CustType="Residential",". To measurably improve the home resale value",". To measurably improve property resale value") -> . To measurably improve property resale value | AQ236: . To enjoy interesting new technology
AL237: . To provide an attractive cash flow if financed | AQ237: . To ensure this property stays current with
AL238: . To provide environmental benefits | AQ238: =IF(CustType="Residential"," housing amenity trends"," real estate amenity trends") -> real estate amenity trends
AL240: ="The proposed system consists of "&SysModCnt&" "&SysModule&" modules and "&SysInvCnt&" "&SysInverter&IF(SysInvCnt>1," inverters", " inverter") &IF(SysModCnt2>0," in the primary array, and a secondary array comprising "&SysModCnt2&" "&SysModule2&" modules and "&SysInvCnt2&" "&SysInverter2&IF(SysInvCnt2>1," inverters"," inverter"),) & " and will be installed on the "&SysRoofTypeText&" at: "&CustFullSiteAddr&", "&CustFullSiteCityStZip&"." -> The proposed system consists of 33 Sanyo Electric HIT-N215A01 modules and 2 SMA America SB3000US (240V) inverters in the primary array, and a secondary array comprising 15 BP Solar BP3220N modules and 1 SMA America SB7000US (240V) inverter and will be installed on the Foam roof at: 133 Pelhamdale Ave, #1, Pelham, CA 10803.
AL242: FINANCIAL: | AM242: ="The proposed "& FIXED(SysSize,IF(SysSize>100,0,1))&" kW "&IF(SysRatingType="STC","STC DC",IF(SysRatingType="PTC","PTC","CEC AC"))&" rated system will garner incentives and will generate immediate and growing savings." -> The proposed 9.1 kW CEC AC rated system will garner incentives and will generate immediate and growing savings.
AL244: The Cash Purchase breakdown is: | AQ244: The Financial Benefits of Solar System Ownership are:
AL245: Top Line Cost Before Incentives | AO245: =CostGross -> 106372.6355 | AQ245: Electric Bill Savings in 1st Year | AT245: ="$"&FIXED(Savings1stYr,0) -> $4,232
AL246: =IF(TaxCreditFed+TreasuryGrantFed=0,"","U.S. Fed Tax Credit/Grant") -> U.S. Fed Tax Credit/Grant | AO246: =IF(TaxCreditFed+TreasuryGrantFed=0,"",TaxCreditFed+TreasuryGrantFed) -> -32091.79064 | AQ246: Cumulative Savings over 25 Years | AT246: ="$"&FIXED(CumNetSavings25Yrs,0) -> $69,294 | AU246: Annual Savings 1st Year/25-Year Cumulative Net Savings - include bill savings, sRECs, PBIs, etc after tax, maintenance, & inverter replacement (net after-tax values)
AL247: =IF(DeprStateFedTaxSumTotal=0,"","Net Depreciation") -> Net Depreciation | AO247: =IF(DeprFedStateNetSumTotal=0,"",DeprFedStateNetSumTotal) -> -37441.41374 | AQ247: =IF(SysPBI=0,"","PBI 1st-Year / Lifetime Value") -> PBI 1st-Year / Lifetime Value | AT247: =IF(SysPBI=0, "","$"&FIXED('OnGrid Timelines'!$E$127,0)&" / "&"$"&FIXED(-SysPBI,0)) -> $3,173 / $25,374 | AU247: PBI 1st Year /Total PBI Value
AL248: =IF(SysRebate+SysGrant+TaxFedOnRebateGrant=0,"","Net value of Rebates") -> Net value of Rebates | AO248: =IF(SysRebate+SysGrant+TaxFedOnRebateGrant=0, "",(SysRebate+SysGrant)+TaxFedOnRebateGrant) -> -5990.870407 | AQ248: =IF(SysREC=0,"","SREC 1st-Year / Lifetime Value") -> SREC 1st-Year / Lifetime Value | AT248: =IF(SysREC=0,"","$"&FIXED('OnGrid Timelines'!$E$122,0)&" / "&"$"&FIXED(-SysREC,0)) -> $1,442 / $15,048 | AU248: SREC 1st Year/Total SREC Value
AL249: =IF(SysRebate+SysGrant+TaxFedOnRebateGrant=0,"","(Rebates are sometimes taxable)") -> (Rebates are sometimes taxable) | AQ249: =IF(AND(SysPBI=0, SysREC=0), "", "(Above may be subject to taxation effects)") -> (Above may be subject to taxation effects)
AL250: =IF(TaxCreditState+TaxFedOnStateTaxCredit=0,"","Net value of State Tax Credits") -> Net value of State Tax Credits | AO250: =IF(TaxCreditState+TaxFedOnStateTaxCredit=0,"",TaxCreditState+TaxFedOnStateTaxCredit) -> -3250 | AQ250: =IF(CustType="Residential","Pre-Tax Compound Annual Rate of Return (IRR)",IF(CustType="Commercial","Effective After-Tax Compound Annual Rate of Return (IRR)","Effective Non-Taxable Compound Annual Rate of Return (IRR)"))&" over 25 years" -> Effective After-Tax Compound Annual Rate of Return (IRR) over 25 years
AL251: =IF(TaxCreditState+TaxFedOnStateTaxCredit=0,"","(State tax credits are effectively Fed Taxable)") -> (State tax credits are effectively Fed Taxable) | AT251: =FIXED(IRR*100,1)&"%" -> 9.2%
AL252: =IF(IncentGrantTotal=0,"","Net value of other short term incentives") -> Net value of other short term incentives | AO252: =IF(IncentGrantTotal=0,"",-IncentGrantTotal*(1-TaxRateFed)) -> -1300 | AQ252: =IF(CustType="Commercial","Net Present Value with "&DiscountRate*100&"% Discount Rate","") -> Net Present Value with 3% Discount Rate | AT252: =IF(CustType="Commercial","$"&FIXED(NPV,0),"") -> $29,426
AL253: =IF(IncentGrantTotal=0,"","(excl SREC)") -> (excl SREC) | AQ253: Total Lifecycle Payback | AT253: =FIXED(CumNetSavings25Yrs/CostNetAfterTaxEffectsAndPBI,1)&"x" -> 5.9x
AL254: =IF(CostPermitFeesNotInc+CostUtilityFeesNotInc+CostOtherFeesNotInc=0,"","Fees not included in system price") -> Fees not included in system price | AO254: =IF(CostPermitFeesNotInc+CostUtilityFeesNotInc+CostOtherFeesNotInc=0,"",CostPermitFeesNotInc+CostUtilityFeesNotInc+CostOtherFeesNotInc) -> 600 | AQ254: =IF(CustType="Residential","Simple Payback","Capital Recovery Period (Payback)") -> Capital Recovery Period (Payback) | AT254: =FIXED(YearsToCashPayback,1)&" years" -> 6.6 years
AL255: Net Cost of System | AO255: =CostNetAfterTaxEffectsAndPBI -> 11705.44634 | AQ255: =IF(CustType="Residential","Estimated Initial Increase in Property Value","Property Value Increase with "&CapRate*100&"% Cap Rate") -> Property Value Increase with 6% Cap Rate | AT255: ="$"&FIXED(ResaleValue1stYr,0) -> $67,484
AL257: =TRIM(OnGridDisclaimer1)&" "&TRIM(OnGridDisclaimer2)&" "&TRIM(OnGridDisclaimer3)&" "&TRIM(OnGridDisclaimer4) -> Disclaimer: This information is provided as an illustration of potential financial benefits stemming from ownership of a renewable energy power system. This is not a production guarantee. A professional accountant or tax advisor should confirm these estimates. Neither OnGrid Solar nor any authorized user warrants the applicability of these estimates for particular business cases, and both disclaim all liability
AL258: STATUS: | AM258: Site inspection and needs analysis have been completed. A high level system design is complete and
AL259: ="available for approval. Federal Tax Credit and other incentives are currently available and incentive paperwork has been prepared. High quality equipment is available and will be ordered and installation will begin approximately "&ROUND(SalesContractTime1/7 + SalesContractTime2 +SalesContractTime3,0)&" weeks after approval. Customer approval of construction agreement and incentive application are essential to lock in the currently available incentives." -> available for approval. Federal Tax Credit and other incentives are currently available and incentive paperwork has been prepared. High quality equipment is available and will be ordered and installation will begin approximately 15 weeks after approval. Customer approval of construction agreement and incentive application are essential to lock in the currently available incentives.
AL261: ACTION: | AM261: =CustsFullName&IF(CustCompany>0," of "&CustCompany, "")&", to review the scope of work and credentials to determine whether to engage "&VendName&" for the installation of the described solar system." -> Jackie Sun and Jilla Sky of Ichiban Hibachi, to review the scope of work and credentials to determine whether to engage Acme Solar for the installation of the described solar system.
BA275: SS4 OnePage Summary with 4 Charts | BB275: Solar Electric Proposal
BB277: ="PV System: "&FIXED(SysSize,IF(SysSize>100,0,1))&" kW "&IF(SysRatingType="STC","STC",IF(SysRatingType="PTC","PTC","CEC")) -> PV System: 9.1 kW CEC | BC277: =FIXED(SysSizeSTC,IF(SysSizeSTC>100,0,1))&" kW DC / "&FIXED(SysSizeCEC,IF(SysSizeSTC>100,0,1))&" kW AC " -> 10.4 kW DC / 9.1 kW AC | BD277: 10.4 kW DC / 9.1 kW AC | BE277: 10.4 kW DC / 9.1 kW AC | BF277: 10.4 kW DC / 9.1 kW AC | BG277: 10.4 kW DC / 9.1 kW AC | BH277: 10.4 kW DC / 9.1 kW AC | BI277: 10.4 kW DC / 9.1 kW AC | BJ277: 10.4 kW DC / 9.1 kW AC | BK277: 10.4 kW DC / 9.1 kW AC | BL277: 10.4 kW DC / 9.1 kW AC | BM277: 10.4 kW DC / 9.1 kW AC | BN277: 10.4 kW DC / 9.1 kW AC | BO277: 10.4 kW DC / 9.1 kW AC | BP277: 10.4 kW DC / 9.1 kW AC
BC279: Customer: | BE279: =CustsFullName -> Jackie Sun and Jilla Sky | BJ279: =VendSalesperson -> Ship Full User
BE280: =IF(CustCompany>0,CustCompany,"") -> Ichiban Hibachi | BJ280: =VendName -> Acme Solar
BC281: Site: | BE281: =CustFullSiteAddr -> 133 Pelhamdale Ave, #1 | BJ281: ="Work Phone: "&IF(VendSalesPhWork>0,VendSalesPhWork,"") -> Work Phone: (123) 123 1234
BE282: =CustFullSiteCityStZip -> Pelham, CA 10803 | BJ282: ="Cell Phone: "&IF(VendSalesPhCell>0,VendSalesPhCell,"") -> Cell Phone: (123) 123 3456
BC283: Date: | BE283: =DateOfAnalysis -> 2013-04-28 | BJ283: =IF(VendSalesEmail>0,VendSalesEmail,"") -> fulluser@acmesolar.com
BJ284: =IF(VendSalesFax>0,"Fax "&VendSalesFax,"") -> Fax (123) 123 4567
BC286: Utility & Rate Information
BC287: Utility | BF287: =UtilityLong -> Pacific Gas & Electric
BC288: Current Rate Schedule | BF288: =TariffStarting -> A10 TOU Non-FTA (S)
BC289: =IF(TariffEnding=TariffStarting,"","New Rate Schedule ") -> New Rate Schedule | BF289: =IF(TariffEnding=TariffStarting,"", TariffEnding) -> A6
BC290: Current Bill per month | BF290: =BillNoSolar -> 449.614709
BC291: New Bill per month | BF291: =BillWithSolar -> 62.90964947
BC292: Savings and % of Bill offset | BF292: =Savings1stMo -> 352.675082 | BG292: =BillPctOffset -> 0.848623771
BC294: PV System Information
BC295: System Size STC Rating: | BF295: =FIXED(SysSizeSTC,IF(SysSizeSTC>100,0,1))&" kW STC DC" -> 10.4 kW STC DC
BC296: =IF(SysRatingType="CEC","System Size CEC Rating :","") -> System Size CEC Rating : | BF296: =IF(SysRatingType="CEC",FIXED(SysSizeCEC,IF(SysSizeCEC>100,0,1))&" kW CEC AC","") -> 9.1 kW CEC AC
BC297: Site's Sun Hours | BF297: =FIXED(SunHrsAnnualAvg, 1)&" (average)" -> 5.9 (average)
BC298: PV System On: | BF298: =SysRoofTypeText -> Foam roof
BC300: ="Array"&IF(SysModCnt2>0,"s","")&": "&SysModCnt&" "&SysModule&" modules and "&SysInvCnt&" "&SysInverter&IF(SysInvCnt>1," inverters", " inverter") &IF(SysModCnt2>0," in the primary array, and a secondary array comprising "&SysModCnt2&" "&SysModule2&" modules and "&SysInvCnt2&" "&SysInverter2&IF(SysInvCnt2>1," inverters"," inverter"),) -> Arrays: 33 Sanyo Electric HIT-N215A01 modules and 2 SMA America SB3000US (240V) inverters in the primary array, and a secondary array comprising 15 BP Solar BP3220N modules and 1 SMA America SB7000US (240V) inverter
BC302: Annual Kwh Usage and Production
BC303: Estimated Electric Usage | BG303: =FIXED(UseHistAnnualTotal,0)&" kWh" -> 21,000 kWh
BC304: Estimated Solar Production | BG304: =FIXED(ProdTot,0)&" kWh" -> 10,852 kWh
BC305: Annual kWh Offset % | BG305: =UsePctOffset -> 0.6399543246
BC307: Pricing / Cost Information
BC308: Gross System Price | BG308: ="$"&FIXED(CostGross,0) -> $106,373
BC309: Incentives and Tax Benefits | BG309: =-CostGross+CostNetAfterTaxEffectsAndPBI -> -94667.18912
BC310: Net System Cost | BG310: ="$"&FIXED(CostNetAfterTaxEffectsAndPBI,0) -> $11,705
BC312: Financials & Economic Returns
BC313: Estimated First Year Utility Savings | BG313: ="$"&FIXED(Savings1stYr,0) -> $4,232
BC314: Net Savings over 25 years | BG314: ="$"&FIXED(CumNetSavings25Yrs,0) -> $69,294 | BQ314: Net Savings over 25 years - include bill savings, inverter replacement (net after-tax values), maintenance, and SRECs, if any.
BC315: =IF(CustType="Residential","Pre-Tax Compound Annual Rate of Return (IRR)",IF(CustType="Commercial","Effective After-Tax Compound Annual Rate of Return (IRR)","Effective Non-Taxable Compound Annual Rate of Return (IRR)"))&" over 25 years" -> Effective After-Tax Compound Annual Rate of Return (IRR) over 25 years | BG315: =FIXED(IRR*100,1)&"%" -> 9.2%
BC316: Total Lifecycle Payback | BG316: =FIXED(CumNetSavings25Yrs/CostNetAfterTaxEffectsAndPBI,1)&"x" -> 5.9x
BC317: =IF(CustType="Residential","Simple Payback","Capital Recovery Period (Payback)") -> Capital Recovery Period (Payback) | BG317: =FIXED(YearsToCashPayback,1)&" years" -> 6.6 years
BC318: =IF(CustType="Residential","Estimated Initial Increase in Property Value","Property Value Increase with "&CapRate*100&"% Cap Rate") -> Property Value Increase with 6% Cap Rate | BG318: ="$"&FIXED(ResaleValue1stYr,0) -> $67,484
BC319: =IF(CustType="Commercial","Net Present Value with "&DiscountRate*100&"% Discount Rate","") -> Net Present Value with 3% Discount Rate | BG319: =IF(CustType="Commercial","$"&FIXED(NPV,0),"") -> $29,426
BU331: SS5 OnePage Summary with 2 Charts and Environmental Benefits | BV331: Solar Electric System Proposal
BV333: PV System: 9.1 kW STC
BW335: Customer: | BY335: =CustsFullName -> Jackie Sun and Jilla Sky | CD335: =VendSalesperson -> Ship Full User
BY336: =IF(CustCompany>0,CustCompany,"") -> Ichiban Hibachi | CD336: =VendName -> Acme Solar
BW337: Site: | BY337: =CustFullSiteAddr -> 133 Pelhamdale Ave, #1 | CD337: ="Work Phone: "&IF(VendSalesPhWork>0,VendSalesPhWork,"") -> Work Phone: (123) 123 1234
BY338: =CustFullSiteCityStZip -> Pelham, CA 10803 | CD338: ="Cell Phone: "&IF(VendSalesPhCell>0,VendSalesPhCell,"") -> Cell Phone: (123) 123 3456
BW339: Date: | BY339: =DateOfAnalysis -> 2013-04-28 | CD339: =IF(VendSalesFax>0,"Fax "&VendSalesFax,"") -> Fax (123) 123 4567
BW341: Current Usage and Billing | CD341: Utility
BW342: Estimated Electric Usage | CA342: =FIXED(UseHistAnnualTotal,0)&" kWh" -> 21,000 kWh | CD342: =UtilityLong -> Pacific Gas & Electric
BW343: Current Bill per month | CA343: ="$"&FIXED(BillNoSolar,0) -> $450
BW345: Proposed PV System
BW346: System Size: | CA346: =FIXED(SysSizeSTC,IF(SysSizeSTC>100,0,1))&" kW STC DC"&IF(SysRatingType="CEC"," or "&FIXED(SysSizeCEC,IF(SysSizeCEC>100,0,1))&" kW CEC AC","") -> 10.4 kW STC DC or 9.1 kW CEC AC
BW348: Array 1 : | CD348: =IF(SysModCnt2>0,"Array 2 :","") -> Array 2 :
BW349: =SysModCnt&" "&SysModule&" Modules" -> 33 Sanyo Electric HIT-N215A01 Modules | CD349: =IF(SysModCnt2>0,SysModCnt2&" "&SysModule2&" Modules", "") -> 15 BP Solar BP3220N Modules
BW350: =SysInvCnt&" "&SysInverter&" Inverter"&IF(SysInvCnt>1,"s","") -> 2 SMA America SB3000US (240V) Inverters | CD350: =IF(SysModCnt2>0,SysInvCnt2&" "&SysInverter2&" Inverter"&IF(SysInvCnt>1,"s",""),"") -> 1 SMA America SB7000US (240V) Inverters
BW351: =VALUE(SysArraySlope)&" degrees "&SysArrayAzimuthLong&" Orientation" -> 30 degrees West Orientation | CD351: =IF(SysModCnt2>0, VALUE(SysArraySlope2)&" degrees "&SysArrayAzimuthLong2&" Orientation", "") -> 30 degrees West Orientation
BW353: Estimated Solar Production | CA353: =FIXED(ProdTot,0)&" kWh" -> 10,852 kWh | CD353: Gross System Price | CI353: =CostGross -> 106372.6355
BW354: New Bill per month | CA354: ="$"&FIXED(BillWithSolar,0) -> $63 | CD354: Incentives and Tax Benefits | CI354: =-(CostGross-CostNetAfterTaxEffectsAndPBI) -> -94667.18912
BW355: Annual Bill Offset % | CA355: =BillPctOffset -> 0.848623771
BW356: Annual kWh Offset % | CA356: =UsePctOffset -> 0.6399543246 | CD356: Net System Cost | CI356: =CostNetAfterTaxEffectsAndPBI -> 11705.44634
BW358: Financials & Economics Returns | CD358: Environmental Benefits
BW359: Estimated First Year Utility Savings | CB359: ="$"&FIXED(Savings1stYr,0) -> $4,232 | CD359: Over 25 years, the PV system is estimated
... 68 more rows

Sheet Medium
A1: Medium 1 | F1: Top | W1: Top
A2: Medium 2
C4: MedPg01: Residential & Commercial Medium Proposal:
B6: M1.1 Usage and System | C6: A Personalized Solar Analysis for: | G6: =FIXED(SysSize,1)&" kW "&CustType&" PV System" -> 9.1 kW Commercial PV System
C7: =CustsFullName -> Jackie Sun and Jilla Sky | G7: Site Address:
C8: =IF(CustCompany>0,CustCompany,"") -> Ichiban Hibachi | G8: =CustFullSiteAddr -> 133 Pelhamdale Ave, #1
C9: =IF(CustFullPh>0,CustFullPh,"") -> (408) 111 1111H, (408) 222 2222C, (408) 333 3333x333W | G9: =CustFullSiteCityStZip -> Pelham, CA 10803
C10: =IF(CustEmail>0,CustEmail,"")&IF(CustEmail>0,IF(CustEmailAlt>0,", ",IF(CustWebsite>0,", ","")),"")&IF(CustEmailAlt>0,CustEmailAlt,"")&IF(CustEmailAlt>0,IF(CustWebsite>0,", ",""),"")&IF(CustWebsite>0,CustWebsite,"") -> cust@buyer.com, Cake@eater.com, www.ibm.com | G10: =DateOfAnalysis -> 2013-04-28
D15: ELECTRICAL ENERGY USAGE, BILLING & TAX INPUTS & ASSUMPTIONS
D16: =UseWinAvg -> 1500 | E16: Average Winter Monthly Historic Usage
D17: =UseSumAvg -> 2000 | E17: Average Summer Monthly Historic Usage
D18: =UseHistAnnualTotal -> 21000 | E18: Total Annual Historic Usage
D20: =IF(AdjLifestylePct=0,"",UseAdjAnnualTotal) -> 17850 | E20: =IF(AdjLifestylePct=0,"","Total Annual Estimated Usage with lifestyle/occupancy changes") -> Total Annual Estimated Usage with lifestyle/occupancy changes
E21: =IF(AdjLifestylePct=0,"","About "&""&FIXED((UseAdjAnnualTotal/UseHistAnnualTotal)*100,0)&"% of Historic Usage") -> About 85% of Historic Usage
D23: =IF(AdjEnergyEffPct=0,"",UseAnnualTotal) -> 16957.5 | E23: =IF(AdjEnergyEffPct=0,"","Total Annual Estimated Usage factoring in Energy Efficiency gains (excluding solar)") -> Total Annual Estimated Usage factoring in Energy Efficiency gains (excluding solar)
E24: =IF(AdjEnergyEffPct=0,"","About "&""&FIXED((UseAnnualTotal/UseAdjAnnualTotal)*100,0)&"% of Lifestyle Adjusted Usage") -> About 95% of Lifestyle Adjusted Usage
D26: ="Utility: "&IF(LEFT(Utility,4)<>"user",Utility,UtilityUserDefined) -> Utility: PG&E
D27: ="Current Rate Schedule: "&IF(LEFT(TariffStarting,4)<>"user",TariffStarting&IF(TariffTerritory&TariffCode="","","-")&TariffTerritory&" "&TariffCode&" -- "&RateDescription,RateDescription) -> Current Rate Schedule: A10 TOU Non-FTA (S)-P H -- Commercial TOU Demand
D28: =IF(TariffEnding=TariffStarting,"","New Solar Rate Schedule: "&IF(LEFT(TariffEnding,4)<>"user",TariffEnding&IF(TariffTerritory&TariffCode="","","-")&TariffTerritory&" "&TariffCode&" -- "&RateEndDescription,RateEndDescription)) -> New Solar Rate Schedule: A6-P H -- Commercial TOU
D30: =TaxRateFed -> 0.35 | E30: Federal Income Tax Rate
D31: =TaxRateState -> 0.0884 | E31: State Income Tax Rate
D32: =TaxRateCombinedNet -> 0.40746 | E32: Net Effective Combined Fed & State Income Tax Rate
D34: =InflMaint -> 0.03 | E34: Assumed General Inflation (maintenance, etc)
E35: The CPI has increased 3.1% annually since 1982
D36: =InflElect -> 0.01 | E36: =IF(CustsFullName="Invalid User or License","Invalid User or License",("Assumed Electric Rate Escalation"&IF(InflElectYr1=InflElect,"",(", except "&InflElectYr1*100&"% next year"&IF(InflElectYr2=InflElect,"",(" and "&InflElectYr2*100&"% in 2 years"&IF(InflElectYr3=InflElect,"",(" and "&InflElectYr3*100&"% in 3 years")))))))) -> Assumed Electric Rate Escalation, except 2% next year and 3% in 2 years and 4% in 3 years
E37: Average California Electric Rates increased 6.7% annually from 1970 to 2001
I38: modifed grahic
I39: recheck formatting on 03,04,07
I40: << Make graphic update by state and w/ latest info from Datafile?
IT43: =Medium!IT44 -> 0
D54: SOLAR ELECTRIC SYSTEM | F54: =IF(CustsFullName="Invalid User or License","Invalid User or License","") -> 
D55: =SysSize -> 9.071034 | E55: ="PV system size ("&IF(SysRatingType="STC","STC DC",IF(SysRatingType="PTC","PTC","CEC AC"))&" Rating)" -> PV system size (CEC AC Rating)
E56: ="Comprising "&SysModCnt&" "&SysModule&" modules and "&SysInvCnt&" "&SysInverter&IF(SysInvCnt>1," inverters", " inverter") &IF(SysModCnt2>0," in the primary array, and a secondary array comprising "&SysModCnt2&" "&SysModule2&" modules and "&SysInvCnt2&" "&SysInverter2&IF(SysInvCnt2>1," inverters"," inverter."),".") -> Comprising 33 Sanyo Electric HIT-N215A01 modules and 2 SMA America SB3000US (240V) inverters in the primary array, and a secondary array comprising 15 BP Solar BP3220N modules and 1 SMA America SB7000US (240V) inverter.
E57: ="PV Array is "&VALUE(SysArraySlope)&"° up from horizontal, and facing "&SysArrayAzimuth -> PV Array is 30° up from horizontal, and facing W
D59: =IF(SysArea<1,"",SysArea) ->  | E59: =IF(SysArea<5,"","square feet, approximate roof area required") -> 
E60: =IF(SysArea<5,"","Module dimensions are "&SysModDim&IF(SysModCnt2>0," in the primary array, and "&SysModDim2&" in the secondary array.",".")) -> 
D62: =SunHrsAnnualAvg -> 5.858333333 | E62: ="Hours of equivalent full noontime sun occurs at "&CustSiteCity&", "&CustSiteState -> Hours of equivalent full noontime sun occurs at Pelham, CA
E63: ="This is based on 30-year annual average data for nearby "&IF(SiteRedbookCity="User Site Insolation",SiteRedBookCityUserDefined,SiteRedbookCity) -> This is based on 30-year annual average data for nearby Santa Maria, CA
E64: found in the NREL Redbook (rredc.nrel.gov/solar/pubs/redbook)
E65: This level of sunshine can vary +/- 9% year to year due to weather
D67: =EffTotalSystem -> 0.5816952084 | E67: Total system efficiency factor, accounting for:
E68: inverter, module heating, wire losses, dust & dirt, and module mismatch factors
E69: Normal per CEC design guidebook is about 69-73%
E70: This does not include shading, array orientation, or thermal stagnation factors
D72: =((ProdHrsWP+ProdHrsWpP+ProdHrsWoP)*ProdUseWinMonths+(ProdHrsSP+ProdHrsSpP+ProdHrsSoP)*ProdUseSumMonths)/12 -> 4.995639685 | E72: Hours of effective full noontime sun, factoring in shading & orientation
D74: =ProdTot -> 10852.02546 | E74: ="kWh/year estimated production ("&FIXED(ProdTot/SysSizeCEC,0)&" kWh per year per kW CEC AC Capacity Rating)" -> kWh/year estimated production (1,196 kWh per year per kW CEC AC Capacity Rating)
E75: ="Offsets about "&FIXED((ProdTot/UseAdjAnnualTotal)*100,0)&"% of estimated/adjusted future usage" -> Offsets about 61% of estimated/adjusted future usage
D77: =SysModDegradationRate -> 0.0075 | E77: Annual Module Degradation Rate (normally 0% to 1%) affecting future production due to aging.
C82: MedPg02: Residential & Commercial Medium Proposal
B84: M1.2 Bills Costs and Incentives | C84: =CustsFullName&IF(CustCompany<>"",", "&CustCompany,"") -> Jackie Sun and Jilla Sky, Ichiban Hibachi
D91: ENERGY COSTS/SAVINGS | F91: =IF(CustsFullName="Invalid User or License","Invalid User or License","") -> 
D93: HISTORIC ENERGY COSTS WITHOUT SOLAR:
D94: =BillNoSolar -> 449.614709 | E94: Historic Average Monthly Charges
K95: =ShowDiscount -> 1
D96: ESTIMATED FUTURE ENERGY COSTS WITH ADJUSTMENTS IN USAGE (BEFORE SOLAR) | K96: =CostwAdders -> 107462.5108
D97: =BillwEffnoSolar -> 405.9429044 | E97: Average Monthly Charges accounting for adjustments in usage | K97: =CostDiscount -> -3289.875324
D99: ESTIMATED FUTURE ENERGY COSTS WITH SOLAR AND ADJUSTMENTS
D100: =BillWithSolar -> 62.90964947 | E100: Average Monthly Charges with Solar
D102: SAVINGS USING SOLAR:
D103: =Savings1stMo -> 352.675082 | E103: Savings in 1st month due to solar (with usage adjustments)
E104: Savings will increase over time as electric rates rise
D105: =Savings1stYr -> 4232.100983 | E105: First year savings due to solar
D106: =IF(CustType="Residential",(Savings1stYr/(1-TaxRateCombined)),"") ->  | E106: =IF(CustType="Residential","Pre-Tax value of the first year annual savings due to solar","") -> 
D108: =OnGridDisclaimer1 -> Disclaimer: This information is provided as an illustration of potential financial benefits stemming from
D109: =OnGridDisclaimer2 -> ownership of a renewable energy power system. This is not a production guarantee.
D110: =OnGridDisclaimer3 -> A professional accountant or tax advisor should confirm these estimates.
D111: =OnGridDisclaimer4 -> Neither OnGrid Solar nor any authorized user warrants the applicability of these estimates for particular business cases, and both disclaim all liability
D113: SYSTEM PRICING & CAPITAL COST SUMMARY
B114: cost w/ adders | D114: =IF( ShowDiscount,CostwAdders,CostwAdders+CostDiscount) -> 107462.5108 | E114: =IF(D115=0,"Total System Cost (includes full service, parts, delivery, installation, warranty, sales tax)","Total System Cost (includes full service, parts, delivery, installation, warranty)") -> Total System Cost (includes full service, parts, delivery, installation, warranty)
B115: sales tax | D115: =CostSalesTax -> 400 | E115: =IF(D115=0,"","Sales Tax (if not included above)") -> Sales Tax (if not included above)
B116: permit fees | D116: =CostPermitFeesInc -> 500 | E116: =IF(D116=0,"","Estimated Permit Fees included in system contract price") -> Estimated Permit Fees included in system contract price
B117: utility fees | D117: =CostUtilityFeesInc -> 600 | E117: =IF(D117=0,"","Utility Fees included in system contract price") -> Utility Fees included in system contract price
B118: other fees | D118: =CostOtherFeesInc -> 700 | E118: =IF(D118=0,"","Other Fees included in system contract price") -> Other Fees included in system contract price
B119: discount | D119: =IF(ShowDiscount,CostDiscount,0) -> -3289.875324 | E119: =IF(OR(NOT(ShowDiscount),CostDiscount = 0),"",IF(CostDiscountBasis="Percent",VendName&" "& FIXED(-CostDiscountPct*100,1) &"% Discount",VendName&" Discount")) -> Acme Solar 3.0% Discount | J119: =IF(AND(ShowDiscount="Yes (%)",CostDiscount<>0),VendName&" "& ROUND(CostDiscount/-CostGross*100,0) &"% Discount",IF(AND(ShowDiscount="Yes ($)",CostDiscount<>0),VendName&" Discount", IF(OR(ShowDiscount="No",CostDiscount = 0),""))) -> FALSE
B120: cost gross | D120: =CostGross -> 106372.6355 | E120: ="Gross Top Line Cost ($"&FIXED((CostGross/SysSize/1000),2)&" per "&IF(SysRatingType="STC","STC DC",IF(SysRatingType="PTC","PTC","CEC AC"))&" Watt)" -> Gross Top Line Cost ($11.73 per CEC AC Watt)
B122: Rebates, non-Fed Grants | D122: =SysRebate+SysGrant -> -9216.723703 | E122: =IF(D122=0,"","Rebates and non-Federal Grants (as applicable)") -> Rebates and non-Federal Grants (as applicable)
B123: CostAfterRebate | D123: =CostAfterRebate -> 99155.91176 | E123: System Price after Rebate and non-Federal Grants
B125: permit fees | D125: =CostPermitFeesNotInc -> 100 | E125: =IF(D125=0,"","Estimated Permit Fees NOT included in system contract price") -> Estimated Permit Fees NOT included in system contract price
B126: utility fees | D126: =CostUtilityFeesNotInc -> 200 | E126: =IF(D126=0,"","Utility Fees NOT included in system contract price") -> Utility Fees NOT included in system contract price
B127: other fees | D127: =CostOtherFeesNotInc -> 300 | E127: =IF(D127=0,"","Other Fees NOT included in system contract price") -> Other Fees NOT included in system contract price
B128: CostAfterRebateAndFees | D128: =CostAfterRebateAndFees -> 97755.91176 | E128: Cost After Rebate, non-Fed Grant, & Fees (may be the Tax Creditable Amount, see Tax Advisor)
B130: TreasuryGrantFed | D130: =TreasuryGrantFed -> -32091.79064 | E130: =IF(D130=0,"","Federal Treasury Grant") -> Federal Treasury Grant
B131: CostNetUpFront | D131: =CostNetUpFront -> 65664.12112 | E131: Net Cost Up Front (after Rebate, Grants, & Fees)
B133: Fed tax on Rebate or Grant | D133: =-IF(TaxableRebate="yes",(SysRebate*TaxRateFed),0)-IF(TaxableGrant="yes",(SysGrant*TaxRateFed),0) -> 3225.853296 | E133: =IF(TaxableRebate="Yes",IF(SysRebate<>0,"Federal Tax on Rebate, ",""),"")&IF(SysGrant<>0,IF(TaxableGrant="Yes","Federal Tax on non-Fed Grant",""),"") -> Federal Tax on Rebate, Federal Tax on non-Fed Grant
B134: State Tax Credit + TaxFedOnStateTaxCredit | D134: =TaxCreditState+TaxFedOnStateTaxCredit -> -3250 | E134: =IF(D134=0,"","State Tax Credit Benefit (net), after Federal Tax on the State Tax Credit") -> State Tax Credit Benefit (net), after Federal Tax on the State Tax Credit
B135: TaxCreditFed | D135: =TaxCreditFed -> 0 | E135: =IF(D135=0,"","Federal Investment Tax Credit (ITC)") -> 
B136: DeprFedStateNetSumTotal | D136: =DeprFedStateNetSumTotal -> -37441.41374 | E136: =IF(D136=0,"","Depreciation: Federal & Net State (total value, non-discounted)") -> Depreciation: Federal & Net State (total value, non-discounted)
B137: CostNetAfterTaxEffects | D137: =CostNetAfterTaxEffects -> 28198.56068 | E137: Net System Cost after Tax Benefits, Rebates, and Grants
B139: Net PBI value | D139: =SysPBI*IF(TaxablePBI="Yes",(1-TaxRateFed),1) -> -16493.11434 | E139: =IF(SysPBI<>0,"PBI Incentive" & IF(TaxablePBI="Yes"," after Federal Tax",""),"") -> PBI Incentive after Federal Tax
B140: CostNetAfterTaxEffectsAndPBI | D140: =CostNetAfterTaxEffectsAndPBI -> 11705.44634 | E140: Net System Cost after Tax Benefits, Rebates, Grants, and PBIs
B142: energy efficiency section | D142: =IF(D143=0,"","ENERGY EFFICIENCY:") -> ENERGY EFFICIENCY: | E142: =IF(D143=0,"","Efficiency ROI improvement calculations based on cost of measure & savings on system size") -> Efficiency ROI improvement calculations based on cost of measure & savings on system size
B143: EnergyEffCost | D143: =EnergyEffCost -> 1000 | E143: =IF(D143=0,"","Cost of Energy Efficiency improvements") -> Cost of Energy Efficiency improvements
B144: EnergyEffTaxCredits | D144: =EnergyEffTaxCredits -> -500 | E144: =IF(D144=0,"","Fed Tax Credits for Energy Efficiency improvements") -> Fed Tax Credits for Energy Efficiency improvements
B145: CostNetAllIncluded | D145: =CostNetAllIncluded -> 14505.44634 | E145: =IF(D143=0,"TOTAL NET COST OF SYSTEM (after tax effects) ","TOTAL NET COST OF SYSTEM PLUS ENERGY EFFICIENCY IMPROVEMENTS (after all tax effects)") -> TOTAL NET COST OF SYSTEM PLUS ENERGY EFFICIENCY IMPROVEMENTS (after all tax effects)
D148: SMART FINANCING | F148: =IF(CustsFullName="Invalid User or License","Invalid User or License","") -> 
D149: =LoanRate -> 0.06 | E149: "Smart Financing" Interest Rate
D150: =LoanTerm&" years" -> 11 years | E150: "Smart Financing" Payoff Term
D152: =LoanPrincipal -> 98255.91176 | E152: "Smart Financing" Initial Loan Balance
E153: (Year 0 net cash cost minus any "Up-Front Cash To Reduce Loan")
D155: =CostAfterRebateAndFees+EnergyEffCost-LoanPrincipal -> 500 | E155: Up-Front Cash To Reduce Loan
C160: MedPg03: Residential & Commercial Medium Proposal
B162: M1.3 Environmental and Investment Overview | C162: =CustsFullName&IF(CustCompany<>"",", "&CustCompany,"") -> Jackie Sun and Jilla Sky, Ichiban Hibachi
D165: ENVIRONMENTAL BENEFITS:
D167: =ProdTot -> 10852.02546 | E167: ="kWh/year estimated system production of electricity, or about "&FIXED(ProdTot/UseAnnualTotal*100,0)&"% of the estimated future usage" -> kWh/year estimated system production of electricity, or about 64% of the estimated future usage
D169: Over 25 years, this solar system is estimated to offset:
D170: =EnvBenCO2_25yrs -> 425589.5797 | E170: lbs of CO2, the leading greenhouse gas
D171: =EnvBenNOx_25yrs -> 1365.727404 | E171: lbs of NOx, which creates smog
D172: =EnvBenSOx_25yrs -> 1236.317 | E172: lbs of SO2, which causes acid rain
D173: =EnvBenParticulates_25yrs -> 84.10319731 | E173: lbs of particulates that cause asthma
D174: =EnvBenMiles_25Yrs -> 692476.6975 | E174: ="miles driven in an average car, or "&FIXED(EnvBenMiles_25Yrs/25,0)&" miles a year" -> miles driven in an average car, or 27,699 miles a year
E176: ="It's like taking "&FIXED((EnvBenCars_25yrs),1)&" cars off the road for 25 years." -> It's like taking 2.2 cars off the road for 25 years.
E177: ="Or planting "&FIXED(EnvBenTreeAcres,1)&" acres of trees." -> Or planting 3.6 acres of trees.
IT180: =Medium!IT181 -> 0
D202: RETURN ON INVESTMENT SUMMARY (see following pages for detail)
D204: ANNUAL RATE OF RETURN
D205: =IRR -> 0.09212323228 | E205: =IF(CustType="Residential","Pre-Tax Compound Annual Rate of Return (IRR)",IF(CustType="Commercial","Effective After-Tax Compound Annual Rate of Return (IRR)","Effective Non-Taxable Compound Annual Rate of Return (IRR)"))&" over 25 years" -> Effective After-Tax Compound Annual Rate of Return (IRR) over 25 years
E206: For comparison with other investments
E207: Additional value as a hedge against future electric rate increases
D209: TOTAL LIFECYCLE PAYBACK (Cumulative Electric Bill Savings Over 25 Years including system expenses)
D210: =CumNetSavings25Yrs -> 69293.7172 | E210: ="equals "&FIXED(D210/CostNetAfterTaxEffects,1)&"x" &" return on net system cost of $"&FIXED(CostNetAfterTaxEffects,0) -> equals 2.5x return on net system cost of $28,199 | J210: ="equals "&FIXED(D210/CostNetAfterTaxEffects*100,0)&"%" &" return on initial system cost of $"&FIXED(CostNetAfterTaxEffects,0) -> equals 246% return on initial system cost of $28,199
D211: =IF(CustType="Residential","",FIXED(YearsToCashPayback,1)) -> 6.6 | E211: =IF(CustType="Residential","","Years to Cash PAYBACK including maintenance, inverter replacement, tax consequences, etc.") -> Years to Cash PAYBACK including maintenance, inverter replacement, tax consequences, etc.
D213: EQUITY / PROPERTY VALUE INCREASE:
D214: =ResaleValue1stYr -> 67484.1941 | E214: ="Appraisal Journal Estimated Immediate Increase in Property Value" -> Appraisal Journal Estimated Immediate Increase in Property Value
D215: ="or "&FIXED((ResaleValue1stYr/CostNetAllIncluded)*100,0)&"%" -> or 465% | E215: of the system's cost
E216: ="Based on 20 x First Year's Net Savings of $"&FIXED(NetAnnualSavingsNonTax1stYr,0) -> Based on 20 x First Year's Net Savings of $7,372
E217: Equity increases $20 for every $1 saved in annual utility expenses
E218: ref: The Appraisal Journal, Oct 98
E219: see www.ongrid.net/AppraisalJournalPVValue10.98.pdf
E221: This Resale Value will continue to increase as electric bill savings increase due to escalation
E222: This increase is limited by the total remaining savings expected within 25 years
D223: =ResaleValueMax -> 72453.32532 | E223: ="Maximum resale value based on estimated remaining savings to 25 years, occurs at year "&ResaleValueMaxYear&"." -> Maximum resale value based on estimated remaining savings to 25 years, occurs at year 9.
C228: MedPg04: Residential & Commercial Medium Proposal
B230: M1.4 Cash Flow | C230: =CustsFullName&IF(CustCompany<>"",", "&CustCompany,"") -> Jackie Sun and Jilla Sky, Ichiban Hibachi
D232: ="'Smart Financing' with a Line of Credit assumes the efficient use of tax benefits, rebates, and PBIs to pay down principal owed as the incentive is received, so a lower payment is needed to pay off the debt over the desired "&"term. The customer then does not need a bridge loan, nor will they have any excess cash on hand (after recieving an incentive benefit) costing interest but producing no benefit. "&"Lines of Credit type financing typically to allow large early payments to reduce principal." -> 'Smart Financing' with a Line of Credit assumes the efficient use of tax benefits, rebates, and PBIs to pay down principal owed as the incentive is received, so a lower payment is needed to pay off the debt over the desired term. The customer then does not need a bridge loan, nor will they have any excess cash on hand (after recieving an incentive benefit) costing interest but producing no benefit. Lines of Credit type financing typically to allow large early payments to reduce principal.
D237: Monthly Financing Payment Options:
D238: =LoanPaymentStandard -> 1038.179645 | E238: =" Inefficient Loan amortizing $"&FIXED(LoanPrincipal,0)&" (incentives received after Year 0 don't reduce principal)" -> Inefficient Loan amortizing $98,256 (incentives received after Year 0 don't reduce principal)
D239: =LoanPaymentSmart -> 239.1945678 | E239: "Smart" Financed 1st Month (principal is reduced as incentive benefits are received over time)
D240: =LoanPaymentUnrealistic -> 584.4573103 | E240: =" Optimistic Loan amortizing $"&FIXED(CostNetAllIncluded,0)&". Requires 'bridge' loan until incentives are received." -> Optimistic Loan amortizing $14,505. Requires 'bridge' loan until incentives are received.
D242: SMART FINANCING CASH FLOW:
D243: =D245-D244 -> 264 | E243: =IF(CustType="Residential","Net Electric Bill Savings in 1st Month, including maintenance.",IF(CustType="Commercial","Net After-Tax Electric Bill Savings in 1st Month, including maintenance.","Net Electric Bill Savings in 1st Month, including maintenance.")) -> Net After-Tax Electric Bill Savings in 1st Month, including maintenance.
D244: ='OnGrid Timelines'!$E$178 -> 320 | E244: ="1st Month Net Cost of a "&LoanRate*100&"%, "&LoanTerm&" year loan" -> 1st Month Net Cost of a 6%, 11 year loan
D245: ='OnGrid Timelines'!$E$188 -> 584 | E245: NET SAVINGS / CASH FLOW IN FIRST MONTH
D246: ='OnGrid Timelines'!$F$188 -> 135 | E246: Net Monthly Savings / Cash Flow in 2nd Year
D247: ='OnGrid Timelines'!$I$188 -> 5 | E247: Net Monthly Savings / Cash Flow in 5nd Year
D248: ='OnGrid Timelines'!$N$188 -> -67 | E248: Net Monthly Savings / Cash Flow in 10th Year
E249: After 5th year, net monthly savings will increase due to electricity escalation, but
E250: decrease due to reduced interest (tax deduction) portion of loan repayment.
E251: Savings get larger, because escalation works faster than reduction in interest.
C302: MedPg05: Residential & Commercial Medium Proposal
B304: M1.5 Resale Value and Payback | C304: =CustsFullName&IF(CustCompany<>"",", "&CustCompany,"") -> Jackie Sun and Jilla Sky, Ichiban Hibachi
D309: EQUITY / PROPERTY VALUE INCREASE:
D311: =ResaleValue1stYr -> 67484.1941 | E311: ="Appraisal Journal Estimated Immediate Increase in Property Value" -> Appraisal Journal Estimated Immediate Increase in Property Value
D312: ="or "&FIXED((ResaleValue1stYr/CostNetAllIncluded)*100,0)&"%" -> or 465% | E312: of the system's cost
E313: ="Based on 20 x First Year's Net Savings of $"&FIXED(NetAnnualSavingsNonTax1stYr,0) -> Based on 20 x First Year's Net Savings of $7,372
E314: Equity increases $20 for every $1 saved in annual utility expenses
E315: ref: The Appraisal Journal, Oct 98
E316: see www.ongrid.net/AppraisalJournalPVValue10.98.pdf
E318: This Resale Value will continue to increase as electric bill savings increase due to escalation
E319: This increase is limited by the total remaining savings expected within 25 years
D320: =ResaleValueMax -> 72453.32532 | E320: ="Maximum resale value based on estimated remaining savings to 25 years occurs at year "&ResaleValueMaxYear -> Maximum resale value based on estimated remaining savings to 25 years occurs at year 9
D345: TOTAL LIFECYCLE PAYBACK (Cumulative Electric Bill Savings Over 25 Years including system expenses)
D347: =CumNetSavings25Yrs -> 69293.7172 | E347: ="equals "&FIXED(D347/CostNetAfterTaxEffects*100,0)&"% or "&FIXED(D347/CostNetAfterTaxEffects,1)&"x return on net system cost of $"&FIXED(CostNetAfterTaxEffects,0) -> equals 246% or 2.5x return on net system cost of $28,199
D348: =IF(CustType="Residential","",FIXED(YearsToCashPayback,1)) -> 6.6 | E348: =IF(CustType="Residential","","Years to Cash Payback including maintenance, inverter replacement, tax consequences, etc.") -> Years to Cash Payback including maintenance, inverter replacement, tax consequences, etc.
R379: Medium 2
W381: Personalized Solar Analysis
Q382: M1.2 Usage and System | S382: =CustsFullName -> Jackie Sun and Jilla Sky | Y382: =FIXED(SysSize,1)&" kW "&CustType&" PV System" -> 9.1 kW Commercial PV System
S383: =IF(CustCompany>0,CustCompany,"") -> Ichiban Hibachi
S384: =IF(CustFullPh>0,CustFullPh,"") -> (408) 111 1111H, (408) 222 2222C, (408) 333 3333x333W | Y384: =DateOfAnalysis -> 2013-04-28
S385: =IF(CustEmail>0,CustEmail,"")&IF(CustEmail>0,IF(CustEmailAlt>0,", ",IF(CustWebsite>0,", ","")),"")&IF(CustEmailAlt>0,CustEmailAlt,"")&IF(CustEmailAlt>0,IF(CustWebsite>0,", ",""),"")&IF(CustWebsite>0,CustWebsite,"") -> cust@buyer.com, Cake@eater.com, www.ibm.com
S387: Mailing Address: | Y387: Site Address:
S388: =CustFullMailAddr -> 133 Pelhamdale Ave, #1 | Y388: =CustFullSiteAddr -> 133 Pelhamdale Ave, #1
S389: =CustFullMailCityStZip -> Pelham, CA 10803 | Y389: =CustFullSiteCityStZip -> Pelham, CA 10803
S394: ELECTRICAL ENERGY USAGE, BILLING & TAX INPUTS & ASSUMPTIONS
T396: =UseWinAvg -> 1500 | V396: Average Winter Monthly Historic Usage
T397: =UseSumAvg -> 2000 | V397: Average Summer Monthly Historic Usage
T398: =UseHistAnnualTotal -> 21000 | V398: Total Annual Historic Usage
T400: =IF(AdjLifestylePct=0,"",UseAdjAnnualTotal) -> 17850 | V400: =IF(AdjLifestylePct=0,"","Total Annual Estimated Usage with lifestyle/occupancy changes") -> Total Annual Estimated Usage with lifestyle/occupancy changes
V401: =IF(AdjLifestylePct=0,"","About "&""&FIXED((UseAdjAnnualTotal/UseHistAnnualTotal)*100,0)&"% of Historic Usage") -> About 85% of Historic Usage
T403: =IF(AdjEnergyEffPct=0,"",UseAnnualTotal) -> 16957.5 | V403: =IF(AdjEnergyEffPct=0,"","Total Annual Estimated Usage factoring in Energy Efficiency gains (excluding solar)") -> Total Annual Estimated Usage factoring in Energy Efficiency gains (excluding solar)
V404: =IF(AdjEnergyEffPct=0,"","About "&""&FIXED((UseAnnualTotal/UseAdjAnnualTotal)*100,0)&"% of Lifestyle Adjusted Usage") -> About 95% of Lifestyle Adjusted Usage
V406: ="Utility: "&IF(LEFT(Utility,4)<>"user",Utility,UtilityUserDefined) -> Utility: PG&E
V407: ="Current Rate Schedule: "&IF(LEFT(TariffStarting,4)<>"user",TariffStarting&IF(TariffTerritory&TariffCode="","","-")&TariffTerritory&" "&TariffCode&" -- "&RateDescription,RateDescription) -> Current Rate Schedule: A10 TOU Non-FTA (S)-P H -- Commercial TOU Demand
V408: =IF(TariffEnding=TariffStarting,"","New Solar Rate Schedule: "&IF(LEFT(TariffEnding,4)<>"user",TariffEnding&IF(TariffTerritory&TariffCode="","","-")&TariffTerritory&" "&TariffCode&" -- "&RateEndDescription,RateEndDescription)) -> New Solar Rate Schedule: A6-P H -- Commercial TOU
T410: =InflMaint -> 0.03 | V410: Assumed General Inflation (maintenance, etc)
V411: The CPI has increased 3.1% annually since 1982
T412: =InflElect -> 0.01 | V412: =IF(CustsFullName="Invalid User or License","Invalid User or License",("Assumed Electric Rate Escalation"&IF(InflElectYr1=InflElect,"",(", except "&InflElectYr1*100&"% next year"&IF(InflElectYr2=InflElect,"",(" and "&InflElectYr2*100&"% in 2 years"&IF(InflElectYr3=InflElect,"",(" and "&InflElectYr3*100&"% in 3 years")))))))) -> Assumed Electric Rate Escalation, except 2% next year and 3% in 2 years and 4% in 3 years
V413: Average California Electric Rates increased 6.7% annually from 1970 to 2001
T430: =TaxRateFed -> 0.35 | V430: Federal Income Tax Rate
T431: =TaxRateState -> 0.0884 | V431: State Income Tax Rate
T432: =TaxRateCombinedNet -> 0.40746 | V432: Net Effective Combined Fed & State Income Tax Rate
R438: MedPg02: Residential & Commercial Medium Proposal
S441: SOLAR ELECTRIC SYSTEM | X441: =IF(CustsFullName="Invalid User or License","Invalid User or License","") -> 
T443: =SysSize -> 9.071034 | V443: ="PV system size ("&IF(SysRatingType="STC","STC DC",IF(SysRatingType="PTC","PTC","CEC AC"))&" Rating)" -> PV system size (CEC AC Rating)
V444: ="Comprising "&SysModCnt&" "&SysModule&" modules and "&SysInvCnt&" "&SysInverter&IF(SysInvCnt>1," inverters", " inverter") &IF(SysModCnt2>0," in the primary array, and a secondary array comprising "&SysModCnt2&" "&SysModule2&" modules and "&SysInvCnt2&" "&SysInverter2&IF(SysInvCnt2>1," inverters"," inverter."),".") -> Comprising 33 Sanyo Electric HIT-N215A01 modules and 2 SMA America SB3000US (240V) inverters in the primary array, and a secondary array comprising 15 BP Solar BP3220N modules and 1 SMA America SB7000US (240V) inverter.
V445: ="PV Array is "&VALUE(SysArraySlope)&"° up from horizontal, and facing "&SysArrayAzimuth -> PV Array is 30° up from horizontal, and facing W
T447: =IF(SysArea<1,"",SysArea) ->  | V447: =IF(SysArea<5,"","square feet, approximate roof area required") -> 
V448: =IF(SysArea<5,"","Module dimensions are "&SysModDim&IF(SysModCnt2>0," in the primary array, and "&SysModDim2&" in the secondary array.","")) -> 
T450: =SunHrsAnnualAvg -> 5.858333333 | V450: ="Hours of equivalent full noontime sun occurs at "&CustSiteCity&", "&CustSiteState -> Hours of equivalent full noontime sun occurs at Pelham, CA
V451: ="This is based on 30-year annual average data for nearby "&IF(SiteRedbookCity="User Site Insolation",SiteRedBookCityUserDefined,SiteRedbookCity)&" found in the NREL Redbook (rredc.nrel.gov/solar/pubs/redbook). This level of sunshine can vary +/- 9% year to year due to weather." -> This is based on 30-year annual average data for nearby Santa Maria, CA found in the NREL Redbook (rredc.nrel.gov/solar/pubs/redbook). This level of sunshine can vary +/- 9% year to year due to weather.
T453: =EffTotalSystem -> 0.5816952084 | V453: Total system efficiency factor, accounting for:
... 107 more rows

Sheet Long
A1: Long 1 | E1: Long 1.1 | H1: Long 2.1
A2: Long 2 | E2: Long 1.7 | F2: Top | H2: Long 2.7
E3: Long 1.11 | H3: Long 2.11
C5: LongPg01 to LongPg15: Long Proposal, currently only for Residential, but eventually for all.
B7: L1.1 Cover
C27: =VendName&" is privileged to present" -> Acme Solar is privileged to present
C29: A personalized solar electric analysis for:
C31: =CustsFullName -> Jackie Sun and Jilla Sky
C32: =IF(CustCompany>0,CustCompany,"") -> Ichiban Hibachi
C33: =IF(CustFullPh>0,CustFullPh,"") -> (408) 111 1111H, (408) 222 2222C, (408) 333 3333x333W
C34: =IF(CustEmail>0,CustEmail,"")&IF(CustEmail>0,IF(CustEmailAlt>0,", ",IF(CustWebsite>0,", ","")),"")&IF(CustEmailAlt>0,CustEmailAlt,"")&IF(CustEmailAlt>0,IF(CustWebsite>0,", ",""),"")&IF(CustWebsite>0,CustWebsite,"") -> cust@buyer.com, Cake@eater.com, www.ibm.com
C36: Site Address:
C37: =CustFullSiteAddr -> 133 Pelhamdale Ave, #1
C38: =CustFullSiteCityStZip -> Pelham, CA 10803
C41: of a
C44: =FIXED(SysSize,1)&" kW "&CustType&" PV System" -> 9.1 kW Commercial PV System
IO47: =Long!#REF! -> 
J51: prepared by:
J52: =VendSalesperson -> Ship Full User
J53: =VendName -> Acme Solar
J54: ="Voice "&IF(VendSalesPhWork>0,VendSalesPhWork,"")&IF(VendSalesPhWork>0,IF(VendSalesPhCell>0,", ",""),"")&IF(VendSalesPhCell>0,VendSalesPhCell,"") -> Voice (123) 123 1234, (123) 123 3456
J55: =IF(VendSalesFax>0,"Fax "&VendSalesFax,"") -> Fax (123) 123 4567
J56: =IF(VendSalesEmail>0,VendSalesEmail,"") -> fulluser@acmesolar.com
J57: =IF(VendSalesWeb>0,VendSalesWeb,"") -> 
J60: =DateOfAnalysis -> 2013-04-28
J64: =ToolVersionText -> OnGrid Tool v4
B66: L1.2 Letter | C66: ="Proposal for: "&CustsFullName&IF(CustCompany<>"",", "&CustCompany,"") -> Proposal for: Jackie Sun and Jilla Sky, Ichiban Hibachi
C68: ="Dear "&CustsFullName&"," -> Dear Jackie Sun and Jilla Sky,
C70: ="Thank you for the opportunity to present you with a proposal for a solar electric system. "&VendName&" is delighted to be working with you." -> Thank you for the opportunity to present you with a proposal for a solar electric system. Acme Solar is delighted to be working with you.
C72: ="This proposal covers the following areas:" -> This proposal covers the following areas:
C73: • Your current usage profile and economic assumptions included in your customized analysis
C74: • A summary of your site conditions
C75: • Opportunities to save energy
C76: • How solar electric systems work
C77: • Our recommendation of a solar system to fit your needs
C78: =IF(VendSalesWeb>0,VendSalesWeb,"") -> 
C79: • A cost analysis, including incentive programs, tax credits and other critical information leading to the economic bottom line.
C80: • A financial analysis of what the solar system will do for you economically, including:
C81: > How much the solar system will save on your electric bill
C82: =IF(VendSalesWeb>0,VendSalesWeb,"") -> 
C83: > How much the system will increase your property's value
C84: > If you finance the system, how much it will cost or save you on a monthly basis, both initially, and over time.
C85: > As an investment, what its long-term Compound Annual Rate of Return will be (comparable to stocks, bonds, savings, etc).
C86: > An environmental analysis, showing how much benefit you'll be creating on top of the savings you'll enjoy.
C88: Please contact me at: | IO88: =Long!IO89 -> 0
C89: =VendSalesperson -> Ship Full User
C90: =VendName -> Acme Solar
C91: ="Voice "&IF(VendSalesPhWork>0,VendSalesPhWork,"")&IF(VendSalesPhWork>0,IF(VendSalesPhCell>0,", ",""),"")&IF(VendSalesPhCell>0,VendSalesPhCell,"") -> Voice (123) 123 1234, (123) 123 3456
C92: =IF(VendSalesFax>0,"Fax "&VendSalesFax,"") -> Fax (123) 123 4567
C93: =IF(VendSalesEmail>0,VendSalesEmail,"") -> fulluser@acmesolar.com
C94: =IF(VendSalesWeb>0,VendSalesWeb,"") -> 
C96: I would be pleased to answer any questions. I will also follow up with you shortly.
C98: ="Sincerely," -> Sincerely,
C100: =""&VendSalesperson -> Ship Full User
C102: Notice
C103: ="This information is provided as an illustration of potential financial benefits stemming from ownership of a renewable energy power system. This is not a production guarantee. A "&"professional accountant or tax advisor should confirm these estimates. Neither OnGrid Solar nor any authorized user of the tool used to produce these results warrants the applicability of "&"these estimates for particular business cases, and both disclaim all liability." -> This information is provided as an illustration of potential financial benefits stemming from ownership of a renewable energy power system. This is not a production guarantee. A professional accountant or tax advisor should confirm these estimates. Neither OnGrid Solar nor any authorized user of the tool used to produce these results warrants the applicability of these estimates for particular business cases, and both disclaim all liability.
C104: The estimates of production and other results can be independently validated at the following websites:
C105: PV Watts Solar Performance Estimator: http://www.nrel.gov/rredc/pvwatts
C106: California Solar Initiative - Solar 101: http://www.gosolarcalifornia.org/solar101/index.html
C107: California Energy Commission: http://www.consumerenergycenter.org/renewables/estimator/index.html
C108: The DSIRE Database of Incentives: http://www.dsireusa.org/solar
B112: L1.3 Usage | C112: ="Proposal for: "&CustsFullName&IF(CustCompany<>"",", "&CustCompany,"") -> Proposal for: Jackie Sun and Jilla Sky, Ichiban Hibachi
C114: Energy Usage Profile
C115: This describes the historical usage of energy, a major factor in sizing a solar system
C117: Your property has used, on average:
C118: =FIXED(UseWinAvg,0)&" kWh in the winter months ("&TOUWinStartMonth&" thru "&TOUWinEndMonth&") and" -> 1,500 kWh in the winter months (Nov thru Apr) and | M118: << TOU TOUWinEndMonth
C119: =FIXED(UseSumAvg,0)&" kWh in the summer months ("&TOUSumStartMonth&" thru "&TOUSumEndMonth&")" -> 2,000 kWh in the summer months (May thru Oct) | M119: << TOU SumEndMonth
C120: ="The total annual usage has been: "&FIXED(UseHistAnnualTotal,0)&" kWh" -> The total annual usage has been: 21,000 kWh
C121: ="This equates to an average electric bill of $"&FIXED(BillNoSolar,2)&" per month." -> This equates to an average electric bill of $449.61 per month.
C123: =IF(ABS(AdjLifestylePct)>0,"Based on our discussions, it looks like your usage will be about "&FIXED(100*AdjLifestylePct+100,0)&"% of historic due to lifestyle changes. We anticipate your bill will adjust to $"&FIXED(BillwLifenoSolar,2)&" per month when accounting for these lifestyle changes.","We are not anticipating any changes in usage due to any lifestyle changes or number of occupants.") -> Based on our discussions, it looks like your usage will be about 85% of historic due to lifestyle changes. We anticipate your bill will adjust to $415.58 per month when accounting for these lifestyle changes.
C125: ="We are not anticipating that you will improve your building's efficiency. However, Energy Efficiency is a cost effective way to improve the return on your solar investment, and do the right thing "&"environmentally. There are federal tax credits that can make energy efficiency even more attractive. More on this later." -> We are not anticipating that you will improve your building's efficiency. However, Energy Efficiency is a cost effective way to improve the return on your solar investment, and do the right thing environmentally. There are federal tax credits that can make energy efficiency even more attractive. More on this later.
C127: =IF(CustType="residential","This home is "&IF(RateTierMax="Tier 1","below",IF(RateTierMax="Tier 2","below","above"))&" average usage, with top usage in "&RateTierMax&IF(RateStartMax>0.01,". The top rate you pay for electricity is "&FIXED(RateStartMax,1)&"¢ per kWh.",".")&" The average rate was "&FIXED(RateStartAvg,1)&"¢ per kWh. Solar will save electricity in the top tiers first.","") -> 
IO136: =Long!IO137 -> 0
C144: =IF(CustType="residential","The Tier pricing system is a progressive pricing system whereby the more you consume, the higher the rate becomes. The top of Tier 2 represents the 'average' user in your geography who uses 130% of 'baseline'. Baseline for your geography is "&BaseSum&" kWh per day in the summer, and "&BaseWin&" kWh per day in the winter. In a 30-day month, this translates to "&FIXED(BaseSum*30,0)&" kWh per month in the summer, and "&FIXED(BaseWin*30,0)&" kWh per month in the winter.","") -> 
C146: ="Your current electric rate is "&IF(LEFT(TariffStarting,4)<>"user",TariffStarting&IF(TariffTerritory&TariffCode="","","-")&TariffTerritory&TariffCode&", which is a "&RateDescription&" rate. "&IF(TariffEnding=TariffStarting,"","TOU stands for Time-of-Use, which many times, is a beneficial rate for solar. TOU rates value electricity differently depending on time of day. Solar can sell back best during the day, "&"which usually corresponds with the highest TOU rates. We suggest you switch to "&TariffEnding&IF(TariffTerritory&TariffCode="","","-")&TariffTerritory&TariffCode&", which is a "&RateEndDescription&" rate."),TariffStarting&IF(TariffEnding=TariffStarting,".",". We suggest you switch to "&TariffEnding&".")) -> Your current electric rate is A10 TOU Non-FTA (S)-PH, which is a Commercial TOU Demand rate. TOU stands for Time-of-Use, which many times, is a beneficial rate for solar. TOU rates value electricity differently depending on time of day. Solar can sell back best during the day, which usually corresponds with the highest TOU rates. We suggest you switch to A6-PH, which is a Commercial TOU rate. | M146: << check with "user defined" rates selected
B148: L1.4 Escalation and Site | C148: ="Proposal for: "&CustsFullName&IF(CustCompany<>"",", "&CustCompany,"") -> Proposal for: Jackie Sun and Jilla Sky, Ichiban Hibachi
C150: Rate Escalation Factors
C151: ="Rate escalation plays a big factor in future energy costs, and magnifies the amount a solar system will save you. Historically, escalation has been around 6.7% on average over 30 years from 1970-2001, much higher than the CPI. "&"In this analysis, electric rate escalation of "&FIXED(InflElect*100,1)&"% has been factored in over the long term. The CPI-U (Urban Consumer Price Index) has increased about 3.1% annually since 1982. In this analysis, general inflation on maintenance, etc. is assumed to be "&FIXED(InflMaint*100,1)&"%." -> Rate escalation plays a big factor in future energy costs, and magnifies the amount a solar system will save you. Historically, escalation has been around 6.7% on average over 30 years from 1970-2001, much higher than the CPI. In this analysis, electric rate escalation of 1.0% has been factored in over the long term. The CPI-U (Urban Consumer Price Index) has increased about 3.1% annually since 1982. In this analysis, general inflation on maintenance, etc. is assumed to be 3.0%. | M151: << Make graphic update by state and w/ latest info from Datafile?
C170: Tax Assumptions:
C171: We've assumed the following tax brackets for factoring in certain tax implications:
C172: =FIXED(TaxRateFed*100,1)&"% Federal Income Tax Rate" -> 35.0% Federal Income Tax Rate
C173: =FIXED(TaxRateState*100,1)&"% State Income Tax Rate" -> 8.8% State Income Tax Rate
C174: =FIXED((TaxRateCombinedNet)*100,1)&"% Combined Net Fed & State Income Tax Rate (assuming itemized tax deductions)" -> 40.7% Combined Net Fed & State Income Tax Rate (assuming itemized tax deductions)
IO176: =Long!IO177 -> 0
C177: Site Conditions & System Efficiency Factors
C178: ="The anticipated orientation of your PV Array is "&VALUE(SysArraySlope)&"° up from horizontal, and facing "&SysArrayAzimuth&". It will be mounted on your "&SysRoofTypeText & "." -> The anticipated orientation of your PV Array is 30° up from horizontal, and facing W. It will be mounted on your Foam roof.
C180: ="Your site location in "&CustSiteCity&", "&CustSiteState&" receives about "&FIXED(SunHrsAnnualAvg,1)&" hours of equivalent full noontime sun. This is based on 30-year annual average data for nearby "&IF(SiteRedbookCity="User Site Insolation",SiteRedBookCityUserDefined,SiteRedbookCity)&" found in the NREL Redbook (http://rredc.nrel.gov/solar/pubs/redbook). This level of sunshine can vary +/- 9% year to year due to weather." -> Your site location in Pelham, CA receives about 5.9 hours of equivalent full noontime sun. This is based on 30-year annual average data for nearby Santa Maria, CA found in the NREL Redbook (http://rredc.nrel.gov/solar/pubs/redbook). This level of sunshine can vary +/- 9% year to year due to weather.
C182: ="Accounting for shading & orientation factors, we anticipate your system will have "&FIXED((((ProdHrsSP+ProdHrsSpP+ProdHrsSoP)*ProdUseSumMonths)+((ProdHrsWP+ProdHrsWpP+ProdHrsWoP)*ProdUseWinMonths))/12,1)&" hours of effective equivalent full noontime sun." -> Accounting for shading & orientation factors, we anticipate your system will have 5.0 hours of effective equivalent full noontime sun.
C184: System Efficiency Estimations
C185: ="In addition to shading & orientation, there are numerous system efficiency factors that must be included to make a reasonable, conservative estimation of production. "&"These include inverter efficiency, module heating, wire losses, dust & dirt, and module mismatch factors. We expect that these will account for a total system efficiency factor of "&FIXED(EffTotalSystem*100,0)&"%. Normal loss factors for most systems are estimated to be 69%-73% (from the CEC guidebook, see http://www.energy.ca.gov/reports/2001-09-04_500-01-020.PDF)." -> In addition to shading & orientation, there are numerous system efficiency factors that must be included to make a reasonable, conservative estimation of production. These include inverter efficiency, module heating, wire losses, dust & dirt, and module mismatch factors. We expect that these will account for a total system efficiency factor of 58%. Normal loss factors for most systems are estimated to be 69%-73% (from the CEC guidebook, see http://www.energy.ca.gov/reports/2001-09-04_500-01-020.PDF).
B187: L1.5 Efficiency | C187: ="Proposal for: "&CustsFullName&IF(CustCompany<>"",", "&CustCompany,"") -> Proposal for: Jackie Sun and Jilla Sky, Ichiban Hibachi
C189: Opportunities For Saving Energy
C191: ="Conservation - simply using or doing with less. This is always the most cost effective, but not always doable. Can you turn off or unplug an extra refrigerator in the garage, and only use it "&"when it's really needed? Are there other things that are rarely used that can be shut off without impacting your lifestyle?" -> Conservation - simply using or doing with less. This is always the most cost effective, but not always doable. Can you turn off or unplug an extra refrigerator in the garage, and only use it when it's really needed? Are there other things that are rarely used that can be shut off without impacting your lifestyle?
C193: Energy Efficiency:
C194: ="Getting the same benefits and enjoyment, but in ways that require less input energy. These are often very cost effective, but less in vogue than solar electricity. They include lighting "&"upgrades and replacing refrigerator and other equipment or appliances with more modern and efficient products." -> Getting the same benefits and enjoyment, but in ways that require less input energy. These are often very cost effective, but less in vogue than solar electricity. They include lighting upgrades and replacing refrigerator and other equipment or appliances with more modern and efficient products.
C196: The American Council for an Energy Efficient Economy produces excellent guides for home and building energy efficiency and savings. More information is available at: http://www.aceee.org/consumer/consumer.htm
C198: An energy efficiency audit can identify other ways to use less, and sometimes be even more comfortable.
C200: Solar Electric System:
C201: ="Solar Electricity, or 'PV', is the most interesting, hottest new technology. Strongly supported by the state & federal governments. "&"Solar Electricity is one of the fastest growing energy technologies worldwide, growing over 35% each year for the last 8 years. "&"Not actually a 'new' technology, the first solar panel was put into use in 1954. Most of the bigger solar manufacturers have over 20 years experience in producing and refining their products. "&"Some have over 40 years experience." -> Solar Electricity, or 'PV', is the most interesting, hottest new technology. Strongly supported by the state & federal governments. Solar Electricity is one of the fastest growing energy technologies worldwide, growing over 35% each year for the last 8 years. Not actually a 'new' technology, the first solar panel was put into use in 1954. Most of the bigger solar manufacturers have over 20 years experience in producing and refining their products. Some have over 40 years experience.
B203: L1.6 How Solar Works | C203: ="Proposal for: "&CustsFullName&IF(CustCompany<>"",", "&CustCompany,"") -> Proposal for: Jackie Sun and Jilla Sky, Ichiban Hibachi
C205: How Solar Electric Systems work
C206: ="Solar Electric systems generate electricity silently and without any moving parts. Sunlight falls on the solar array (blue, on the roof), generating DC electricity. That DC electricity is converted "&"into household 120V AC electricity by the inverter (blue & grey, on the wall). The AC electricity is fed into your electric meter and circuit breaker panel (grey, on the wall). The electricity either "&"goes to your appliances and lights, or to the grid, or some to each. This all happens silently and automatically every day." -> Solar Electric systems generate electricity silently and without any moving parts. Sunlight falls on the solar array (blue, on the roof), generating DC electricity. That DC electricity is converted into household 120V AC electricity by the inverter (blue & grey, on the wall). The AC electricity is fed into your electric meter and circuit breaker panel (grey, on the wall). The electricity either goes to your appliances and lights, or to the grid, or some to each. This all happens silently and automatically every day.
C225: ="At night and during cloudy weather, the solar system's output is reduced or stopped; however, your "&IF(CustType="residential","home","building")&" then gets electricity directly from the utility grid. You're always connected to the grid, so you can have as much power as you need, any time you need it, regardless of whether the solar system is able to put out any power." -> At night and during cloudy weather, the solar system's output is reduced or stopped; however, your building then gets electricity directly from the utility grid. You're always connected to the grid, so you can have as much power as you need, any time you need it, regardless of whether the solar system is able to put out any power.
C243: ="When the solar system can put out power, it goes to reducing your usage at the time, or, if there is excess, to spinning the meter backwards, counting down your electric use and bill. "&"Special metering, such as Time-of-Use metering and billing arrangements can help you take advantage of higher daytime rates, allowing you to sell power at a high rate, and buy it back at "&"night at a lower rate. This helps reduce the necessary size of your solar system, while still cutting your bill by the same amount." -> When the solar system can put out power, it goes to reducing your usage at the time, or, if there is excess, to spinning the meter backwards, counting down your electric use and bill. Special metering, such as Time-of-Use metering and billing arrangements can help you take advantage of higher daytime rates, allowing you to sell power at a high rate, and buy it back at night at a lower rate. This helps reduce the necessary size of your solar system, while still cutting your bill by the same amount.
B245: L1.7 Recommended System | C245: ="Proposal for: "&CustsFullName&IF(CustCompany<>"",", "&CustCompany,"") -> Proposal for: Jackie Sun and Jilla Sky, Ichiban Hibachi
C247: Recommended Solar Electric System
C248: ="Based on the above usage, site conditions and system factors, we recommend a "&FIXED(SysSize,3)&" kW ("&SysRatingType&" rating) system comprising "&SysModCnt&" "&SysModule&" modules and "&SysInvCnt&" "&SysInverter&IF(SysInvCnt>1," inverters", " inverter")&IF(SysModCnt2>0," in the primary array, and a secondary array comprising "&SysModCnt2&" "&SysModule2&" modules and "&SysInvCnt2&" "&SysInverter2&IF(SysInvCnt2>1," inverters"," inverter."),".")&" This system will offset about "&FIXED(BillPctOffset*100,0)&"% of your electric bill." -> Based on the above usage, site conditions and system factors, we recommend a 9.071 kW (CEC rating) system comprising 33 Sanyo Electric HIT-N215A01 modules and 2 SMA America SB3000US (240V) inverters in the primary array, and a secondary array comprising 15 BP Solar BP3220N modules and 1 SMA America SB7000US (240V) inverter. This system will offset about 85% of your electric bill.
C250: ="Note: There are several ways of rating solar systems. One way is using the CEC AC rating system. The CEC AC rating system takes account of system performance reductions due to inverter "&"efficiency and module heating effects. Using this rating system, the primary modules have a rating of "&SysModPTC&" watts, and the inverters have an efficiency rating of "&SysInvEff*100&"%. The total system has a CEC AC rating of: "&FIXED(SysSizeCEC,3)&" kW." -> Note: There are several ways of rating solar systems. One way is using the CEC AC rating system. The CEC AC rating system takes account of system performance reductions due to inverter efficiency and module heating effects. Using this rating system, the primary modules have a rating of 199.6 watts, and the inverters have an efficiency rating of 95.5%. The total system has a CEC AC rating of: 9.071 kW.
C252: ="Another method is using the nameplate rating system, also known as STC (Standard Test Conditions) or DC rating of the system. This rating system assumes standard, ideal factory conditions. Using this rating system, the modules have a rating of "&SysModSTC&" watts. The nameplate rating (STC) of this system is: "&FIXED(SysSizeSTC,3)&" kW DC. These ratings are useful in comparing systems side-by-side." -> Another method is using the nameplate rating system, also known as STC (Standard Test Conditions) or DC rating of the system. This rating system assumes standard, ideal factory conditions. Using this rating system, the modules have a rating of 215 watts. The nameplate rating (STC) of this system is: 10.395 kW DC. These ratings are useful in comparing systems side-by-side.
C254: =IF(SysArea+SysArea2<5,"","This system will require approximately "&FIXED(SysArea+SysArea2,0)&" square feet of mounting area. The module dimensions are "&SysModDim&" plus typically 1-inch gaps between rows and columns of modules"&IF(SysModCnt2>0," in the primary array, and "&SysModDim2&" in the secondary array.","."))&" It will be mounted on your "&SysRoofTypeText&"." -> It will be mounted on your Foam roof.
C256: ="This system, in this configuration (with the shading, orientation, tilt and other factors assumed) is estimated to produce "&FIXED(ProdTot,0)&" kWh per year of usable electricity to offset your electric bill." -> This system, in this configuration (with the shading, orientation, tilt and other factors assumed) is estimated to produce 10,852 kWh per year of usable electricity to offset your electric bill.
C258: ="That is about "&FIXED(ProdTot/SysSizeCEC,0)&" kWh per year per kW CEC AC capacity rating, or "&FIXED(ProdTot/SysSizeSTC,0)&" kWh per year per kW STC nameplate rating. This might be useful to you for comparison, on a per kW basis, to estimations you might see in other tools or estimators, or in print from government energy agencies. "&"It's a way of checking the validity of the estimations and proposal being presented to you." -> That is about 1,196 kWh per year per kW CEC AC capacity rating, or 1,044 kWh per year per kW STC nameplate rating. This might be useful to you for comparison, on a per kW basis, to estimations you might see in other tools or estimators, or in print from government energy agencies. It's a way of checking the validity of the estimations and proposal being presented to you.
C260: ="Over time, solar systems lose a little bit of performance each year due to ageing of the solar modules. The annual module degradation rate in your system is estimated to be "&FIXED(SysModDegradationRate*100,1)&"% per year (normal ranges are from 0% to 1%)."&" Solar modules typically have a 20 or 25 year performance warranty, typically for 80% of their 'as new' performance, so you can rest assured that your system will have long lasting high performance." -> Over time, solar systems lose a little bit of performance each year due to ageing of the solar modules. The annual module degradation rate in your system is estimated to be 0.8% per year (normal ranges are from 0% to 1%). Solar modules typically have a 20 or 25 year performance warranty, typically for 80% of their 'as new' performance, so you can rest assured that your system will have long lasting high performance.
B265: L1.8 Usage with Solar | C265: ="Proposal for: "&CustsFullName&IF(CustCompany<>"",", "&CustCompany,"") -> Proposal for: Jackie Sun and Jilla Sky, Ichiban Hibachi
C267: Electric Usage with Solar:
C268: ="Your new average electric bill will be approximately $"&FIXED(BillWithSolar,0)&" per month when averaged over a typical year. This is an estimate, and will be affected by many factors including any unanticipated changes in your usage, variations in the weather in a particular year, and excessive dirt build-up on the array." -> Your new average electric bill will be approximately $63 per month when averaged over a typical year. This is an estimate, and will be affected by many factors including any unanticipated changes in your usage, variations in the weather in a particular year, and excessive dirt build-up on the array.
C270: ="This translates to a savings of approximately $"&FIXED(Savings1stMo,0)&" per month when compared to what we expected your usage to adjust to with anticipated lifestyle changes. Over a year, we expect you will save about $"&FIXED(Savings1stYr,0)&" "&IF(CustType="Residential","The Pre-Tax value of the first year annual savings due to solar is $"& FIXED(Savings1stYr/(1-TaxRateCombined),0)&". This is important for valuing the solar savings compared to other investments, which are often taxable.","") -> This translates to a savings of approximately $353 per month when compared to what we expected your usage to adjust to with anticipated lifestyle changes. Over a year, we expect you will save about $4,232
C272: =IF(CustType="residential","Your net energy use will be substantially lower because of the production from the solar system. The total area in the chart below shows your total usage, "&"and matches the usage in the previous chart above. However, the area in green is the fraction that will now come from solar.","") -> 
C289: =IF(CustType="residential","Your new tier is now "&RateTierMaxNew&". Your new marginal cost of electricity is "&FIXED(RateEndMax,1)&"¢ per kWh (that is, the new cost to switch on the lights. Your old cost to do so was "&FIXED(RateStartMax,1)&"¢ per kWh). Note: it is not necessary to produce all the electricity you use, because you are taking advantage of selling at higher rates, and buying at lower rates.","") -> 
B291: L1.9 Costs and Incentives | C291: ="Proposal for: "&CustsFullName&IF(CustCompany<>"",", "&CustCompany,"") -> Proposal for: Jackie Sun and Jilla Sky, Ichiban Hibachi
C293: Solar System Capital Cost and Incentive Summary
C294: Your solar system is eligible for incentives to help make it more affordable and attractive. The breakdown for the cost of your system, from the top line, to the net cost, after all incentives is:
B295: cost w/ adders | C295: =IF( ShowDiscount,CostwAdders,CostwAdders+CostDiscount) -> 107462.5108 | D295: =IF(C296=0,"Total System Cost (includes full service, parts, delivery, installation, warranty, sales tax)","Total System Cost (includes full service, parts, delivery, installation, warranty)") -> Total System Cost (includes full service, parts, delivery, installation, warranty)
B296: sales tax | C296: =CostSalesTax -> 400 | D296: =IF(C296=0,"","Sales Tax (if not included above)") -> Sales Tax (if not included above)
B297: permit fees | C297: =CostPermitFeesInc -> 500 | D297: =IF(C297=0,"","Estimated Permit Fees included in system contract price") -> Estimated Permit Fees included in system contract price
B298: utility fees | C298: =CostUtilityFeesInc -> 600 | D298: =IF(C298=0,"","Utility Fees included in system contract price") -> Utility Fees included in system contract price
B299: other fees | C299: =CostOtherFeesInc -> 700 | D299: =IF(C299=0,"","Other Fees included in system contract price") -> Other Fees included in system contract price
B300: discount | C300: =IF(ShowDiscount,CostDiscount,0) -> -3289.875324 | D300: =IF(OR(NOT(ShowDiscount),CostDiscount = 0),"",IF(CostDiscountBasis="Percent",VendName&" "& FIXED(-CostDiscountPct*100,1) &"% Discount",VendName&" Discount")) -> Acme Solar 3.0% Discount | E300: Acme Solar 3.0% Discount | F300: Acme Solar 3.0% Discount | G300: Acme Solar 3.0% Discount | H300: Acme Solar 3.0% Discount | I300: Acme Solar 3.0% Discount | J300: Acme Solar 3.0% Discount | K300: Acme Solar 3.0% Discount | L300: Acme Solar 3.0% Discount
B301: cost gross | C301: =CostGross -> 106372.6355 | D301: ="Gross Top Line Cost ($"&FIXED((CostGross/SysSize/1000),2)&" per "&IF(SysRatingType="STC","STC DC",IF(SysRatingType="PTC","PTC","CEC AC"))&" Watt)" -> Gross Top Line Cost ($11.73 per CEC AC Watt)
B302: Rebates, non-Fed Grants | C302: =SysRebate+SysGrant -> -9216.723703 | D302: =IF(C302=0,"","Rebate and non-Federal Grants (as applicable)") -> Rebate and non-Federal Grants (as applicable) | E302: =IF(D302=0,"","Rebate Incentive at $")&FIXED((IncentRebatePerW),2)&" per Watt or Grant Amount" -> Rebate Incentive at $1.10 per Watt or Grant Amount | F302: Rebate Incentive at $1.10 per Watt or Grant Amount | G302: Rebate Incentive at $1.10 per Watt or Grant Amount | H302: Rebate Incentive at $1.10 per Watt or Grant Amount | I302: Rebate Incentive at $1.10 per Watt or Grant Amount | J302: Rebate Incentive at $1.10 per Watt or Grant Amount | K302: Rebate Incentive at $1.10 per Watt or Grant Amount | L302: Rebate Incentive at $1.10 per Watt or Grant Amount
B303: CostAfterRebate | C303: =CostAfterRebate -> 99155.91176 | D303: System Price after Rebate and non-Federal Grants
D304: =IF(C304=0,"","") -> 
B305: permit fees | C305: =CostPermitFeesNotInc -> 100 | D305: =IF(C305=0,"","Estimated Permit Fees NOT included in system contract price") -> Estimated Permit Fees NOT included in system contract price
B306: utility fees | C306: =CostUtilityFeesNotInc -> 200 | D306: =IF(C306=0,"","Utility Fees NOT included in system contract price") -> Utility Fees NOT included in system contract price
B307: other fees | C307: =CostOtherFeesNotInc -> 300 | D307: =IF(C307=0,"","Other Fees NOT included in system contract price") -> Other Fees NOT included in system contract price
B308: CostAfterRebateAndFees | C308: =CostAfterRebateAndFees -> 97755.91176 | D308: Cost After Rebate, non-Fed Grant, & Fees (may be the Tax Creditable Amount, see Tax Advisor)
B309: TreasuryGrantFed | C309: =TreasuryGrantFed -> -32091.79064 | D309: =IF(C309=0,"","Federal Treasury Grant") -> Federal Treasury Grant
B310: CostNetUpFront | C310: =CostNetUpFront -> 65664.12112 | D310: Net Cost Up Front (after Rebate, Grants, & Fees)
B311: Fed tax on Rebate or Grant | C311: =-IF(TaxableRebate="yes",(SysRebate*TaxRateFed),0)-IF(TaxableGrant="yes",(SysGrant*TaxRateFed),0) -> 3225.853296 | D311: =IF(TaxableRebate="Yes",IF(SysRebate<>0,"Federal Tax on Rebate, ",""),"")&IF(SysGrant<>0,IF(TaxableGrant="Yes","Federal Tax on Grant",""),"") -> Federal Tax on Rebate, Federal Tax on Grant
B312: State Tax Credit + TaxFedOnStateTaxCredit | C312: =TaxCreditState+TaxFedOnStateTaxCredit -> -3250 | D312: =IF(C312=0,"","State Tax Credit Benefit (net), after Federal Tax on the State Tax Credit") -> State Tax Credit Benefit (net), after Federal Tax on the State Tax Credit | P312: Local Tax Credit & Fed Tax on Local Tax Credit
B313: TaxCreditFed | C313: =TaxCreditFed -> 0 | D313: =IF(C313=0,"","Federal Investment Tax Credit (ITC)") -> 
B314: DeprFedStateNetSumTotal | C314: =DeprFedStateNetSumTotal -> -37441.41374 | D314: =IF(C314=0,"","Depreciation: Federal & Net State (total value, non-discounted)") -> Depreciation: Federal & Net State (total value, non-discounted)
B315: CostNetAfterTaxEffects | C315: =CostNetAfterTaxEffects -> 28198.56068 | D315: Net System Cost after Tax Benefits, Rebates, and Grants
B316: Net PBI value | C316: =SysPBI-TaxFedOnPBI -> -34254.92978 | D316: =IF(SysPBI<>0,"PBI Incentive" & IF(TaxablePBI="Yes"," after Federal Tax",""),"") -> PBI Incentive after Federal Tax
B317: CostNetAfterTaxEffectsAndPBI | C317: =CostNetAfterTaxEffectsAndPBI -> 11705.44634 | D317: Net System Cost after Tax Benefits, Rebates, Grants, and PBIs
D318: =IF(C318=0,"","") -> 
B319: energy efficiency section | C319: =IF(C320=0,"","ENERGY EFFICIENCY:") -> ENERGY EFFICIENCY: | D319: =IF(C320=0,"","Efficiency ROI improvement calculations based on cost of measure & savings on system size") -> Efficiency ROI improvement calculations based on cost of measure & savings on system size
B320: EnergyEffCost | C320: =EnergyEffCost -> 1000 | D320: =IF(C320=0,"","Cost of Energy Efficiency improvements") -> Cost of Energy Efficiency improvements
B321: EnergyEffTaxCredits | C321: =EnergyEffTaxCredits -> -500 | D321: =IF(C321=0,"","Fed Tax Credits for Energy Efficiency improvements") -> Fed Tax Credits for Energy Efficiency improvements
B322: CostNetAllIncluded | C322: =CostNetAllIncluded -> 14505.44634 | D322: =IF(C320=0,"TOTAL NET COST OF SYSTEM (after tax effects) ","TOTAL NET COST OF SYSTEM PLUS ENERGY EFFICIENCY IMPROVEMENTS (after all tax effects)") -> TOTAL NET COST OF SYSTEM PLUS ENERGY EFFICIENCY IMPROVEMENTS (after all tax effects)
C324: ="Incentives are reducing your cost of the system by approximately "&FIXED((1-(CostNetAllIncluded)/CostGross)*100,0)&"%, or about $"&FIXED((CostGross-CostNetAllIncluded),0) -> Incentives are reducing your cost of the system by approximately 86%, or about $91,867
B327: L1.10 Payback | C327: ="Proposal for: "&CustsFullName&IF(CustCompany<>"",", "&CustCompany,"") -> Proposal for: Jackie Sun and Jilla Sky, Ichiban Hibachi
C329: Financial Analysis & Payback
C330: ="Your solar system will generate substantial savings on your electric bill. These savings can provide a variety of direct and future economic benefits. Some of the ways these economic benefits are measured include:" -> Your solar system will generate substantial savings on your electric bill. These savings can provide a variety of direct and future economic benefits. Some of the ways these economic benefits are measured include:
C331: Direct, immediate & future savings on your electric bill creating improved cash flow
C332: Total Lifecycle Payback
C333: =IF(CustType="residential","Home","Building")&" resale/appraisal value increase" -> Building resale/appraisal value increase
C334: Current and future cash flow if financed
C335: Compound Annual Rate of Return (comparable to stocks, bonds, savings, etc)
C337: Direct, Immediate & Future Savings
C338: ="These immediate and future savings will immediately reduce the operating expenses of your "&IF(CustType="residential","home","building")&" and improve your cash flow:" -> These immediate and future savings will immediately reduce the operating expenses of your building and improve your cash flow:
G339: New average monthly electric bill: | H339: =BillWithSolar -> 62.90964947
G340: Monthly savings: | H340: =Savings1stMo -> 352.675082
G341: Annual savings: | H341: =Savings1stYr -> 4232.100983
C343: ="The savings will increase over time due to escalation, which we've agreed to anticipate being "&FIXED(InflElect*100,1)&"% for electricity over the long term. Historically, electric escalation has been 6.7% in California for the 30 years from 1970-2001, even though the CPI has only been 3.1% since 1982." -> The savings will increase over time due to escalation, which we've agreed to anticipate being 1.0% for electricity over the long term. Historically, electric escalation has been 6.7% in California for the 30 years from 1970-2001, even though the CPI has only been 3.1% since 1982.
C345: Total Lifecycle Payback
C346: ="Payback is often looked at as a measure of financial soundness of an investment. However, for long-term investments such as stocks, bonds, homes, and solar systems, payback isn't "&"easily found or comparable to other investments to determine which investments form the best options for a diversified portfolio. 'Payback' has several other drawbacks as well, including the "&"difficulty in accounting for escalation and inflation, time-value-of-money, one-time expenses such as inverter replacement cost, or the savings available after 'payback' has been achieved." -> Payback is often looked at as a measure of financial soundness of an investment. However, for long-term investments such as stocks, bonds, homes, and solar systems, payback isn't easily found or comparable to other investments to determine which investments form the best options for a diversified portfolio. 'Payback' has several other drawbacks as well, including the difficulty in accounting for escalation and inflation, time-value-of-money, one-time expenses such as inverter replacement cost, or the savings available after 'payback' has been achieved.
C347: ="Other ways of looking at Payback include analysis of the Total Lifecycle Payback over the 25-year warranted life of the solar modules. In the graphic below, the steadily increasing steps reflect each year's savings from the solar system affected by "&FIXED(InflElect*100,1)&"% escalation. The red area in the graphic below shows the needed accumulation of savings before payback. The green area shows additional savings received after payback. "&IF(FIXED(YearsToCashPayback,1)*1<17," As you can see, savings after payback are substantial.","") -> Other ways of looking at Payback include analysis of the Total Lifecycle Payback over the 25-year warranted life of the solar modules. In the graphic below, the steadily increasing steps reflect each year's savings from the solar system affected by 1.0% escalation. The red area in the graphic below shows the needed accumulation of savings before payback. The green area shows additional savings received after payback. As you can see, savings after payback are substantial.
C348: ="The Total Lifecycle savings is $"&FIXED(CumNetSavings25Yrs,0)&", including bill savings, sRECs, maintenance, & inverter replacement (net after-tax values) over 25 years compared to a system cost of $"&FIXED(CostNetAfterTaxEffectsAndPBI,0)&". This yields a Total Lifecycle Payback of "&FIXED(CumNetSavings25Yrs/CostNetAfterTaxEffectsAndPBI,1)&"x. Payback occurs at Year "&FIXED(YearsToCashPayback,1)&"." -> The Total Lifecycle savings is $69,294, including bill savings, sRECs, maintenance, & inverter replacement (net after-tax values) over 25 years compared to a system cost of $11,705. This yields a Total Lifecycle Payback of 5.9x. Payback occurs at Year 6.6.
B366: L1.11 Resale Value | C366: ="Proposal for: "&CustsFullName&IF(CustCompany<>"",", "&CustCompany,"") -> Proposal for: Jackie Sun and Jilla Sky, Ichiban Hibachi
C368: =IF(CustType="residential","Home","Building")&" Resale/Appraisal Value Increase" -> Building Resale/Appraisal Value Increase
C369: ="Solar systems increase "&IF(CustType="residential","home","building")&" values by reducing operating costs. "&IF(CustType="residential",M369,M371) -> Solar systems increase building values by reducing operating costs. The 'Cap Rate' or 'Capitalization Rate' is used to measure the value of solar in commercial buildings. The annual savings are divided by the 'Cap Rate', which in this building's case is 6.0%. The rationale is that the cost of capital is a factor in determining the economic value of a capital expenditure in a building. If the cost of capital is less than the savings, then it is worthwhile. | M369: ="The Appraisal Institute published a study in the Appraisal Journal in 1998 & again in 1999, that stated that if a home's operating costs can be reduced through an energy efficiency measure "&"that reduces its operating costs, those savings have a tangible connection to increasing the home's value. The rationale is, that instead of paying the utility, a future buyer could take a "&"larger mortgage, and instead pay the bank and their operating costs would remain unchanged." -> The Appraisal Institute published a study in the Appraisal Journal in 1998 & again in 1999, that stated that if a home's operating costs can be reduced through an energy efficiency measure that reduces its operating costs, those savings have a tangible connection to increasing the home's value. The rationale is, that instead of paying the utility, a future buyer could take a larger mortgage, and instead pay the bank and their operating costs would remain unchanged.
C371: =IF(CustType="residential","The article established that a homes resale value increases $20 for every $1 saved in operating costs. This is based on a 5% after-tax long-term average for mortgage costs. "&"For more information see www.ongrid.net/AppraisalJournalPVValue10.98.pdf which is from The Appraisal Journal, Oct '98. While this may sound dated, it is based on solid math that doesn't vary with time, only long term averages in mortgage interest rates.","Based on the 'Cap Rate' above, the resale value multiplier is "&ResaleValueMultiplier) -> Based on the 'Cap Rate' above, the resale value multiplier is 16.7 | M371: ="The 'Cap Rate' or 'Capitalization Rate' is used to measure the value of solar in commercial buildings. The annual savings are divided by the 'Cap Rate', which in this building's case is "&FIXED(CapRate*100,1)&"%. The rationale is that the cost of capital is a factor in determining the "&"economic value of a capital expenditure in a building. "&"If the cost of capital is less than the savings, then it is worthwhile." -> The 'Cap Rate' or 'Capitalization Rate' is used to measure the value of solar in commercial buildings. The annual savings are divided by the 'Cap Rate', which in this building's case is 6.0%. The rationale is that the cost of capital is a factor in determining the economic value of a capital expenditure in a building. If the cost of capital is less than the savings, then it is worthwhile.
C373: =IF(CustType="residential","This home's","This building's")&" annual savings of $"&FIXED(Savings1stYr,0)&" translate to an immediate theoretical increase in resale value of $"&FIXED(ResaleValue1stYr,0)&". This translates to "&FIXED(ResaleValue1stYr/CostNetAllIncluded*100,0)&"% of the system's net cost." -> This building's annual savings of $4,232 translate to an immediate theoretical increase in resale value of $67,484. This translates to 465% of the system's net cost.
C375: ="Because savings increase over time due to electric rate escalation, the increase in resale value will increase as well. However, the limit to this increase will be the anticipated remaining "&"savings left in the system before it's 'end of life', which has been conservatively estimated at 25 years (the module warranty life). The actual system life is much longer, but to be "&"conservative, we'll use this shorter time horizon." -> Because savings increase over time due to electric rate escalation, the increase in resale value will increase as well. However, the limit to this increase will be the anticipated remaining savings left in the system before it's 'end of life', which has been conservatively estimated at 25 years (the module warranty life). The actual system life is much longer, but to be conservative, we'll use this shorter time horizon.
C390: ="The maximum resale value of $"&FIXED(ResaleValueMax,0)&" based on estimated remaining savings to 25 years occurs at year "&ResaleValueMaxYear&"." -> The maximum resale value of $72,453 based on estimated remaining savings to 25 years occurs at year 9.
B393: L1.12 Cash Flow | C393: ="Proposal for: "&CustsFullName&IF(CustCompany<>"",", "&CustCompany,"") -> Proposal for: Jackie Sun and Jilla Sky, Ichiban Hibachi
C395: Current and Future Cash Flows if Financed
C396: ="If the system is financed, a cash flow analysis compares the cost of the loan (principal, interest and tax effects) to the savings on the electric bill (minus maintenance and other costs). For this analysis, we've assumed a financing interest rate of "&LoanRate*100&"%, and a term of "&LoanTerm&" years. "&"Here we present 3 options for financing the system; what we'll call the 'Inefficient Loan', the 'Optimistic Loan', and 'Smart Financing' using a Line of Credit:" -> If the system is financed, a cash flow analysis compares the cost of the loan (principal, interest and tax effects) to the savings on the electric bill (minus maintenance and other costs). For this analysis, we've assumed a financing interest rate of 6%, and a term of 11 years. Here we present 3 options for financing the system; what we'll call the 'Inefficient Loan', the 'Optimistic Loan', and 'Smart Financing' using a Line of Credit:
C397: ="Option 1: Fully amortized 'Inefficient Loan' of the above interest rate and term; the initial principal is the net system cost after up-front incentives (such as rebates and grants) are received. "&"This requires no out-of-pocket costs to the consumer to acquire the solar system, but as other incentives and benefits are received (such as tax credits, tax deductions, PBI's, and "&"depreciation, each as applicable), the consumer ends up with cash on hand which they also are paying loan interest on, so this loan ends up costing unnecesary interest, making it inefficient and expensive." -> Option 1: Fully amortized 'Inefficient Loan' of the above interest rate and term; the initial principal is the net system cost after up-front incentives (such as rebates and grants) are received. This requires no out-of-pocket costs to the consumer to acquire the solar system, but as other incentives and benefits are received (such as tax credits, tax deductions, PBI's, and depreciation, each as applicable), the consumer ends up with cash on hand which they also are paying loan interest on, so this loan ends up costing unnecesary interest, making it inefficient and expensive.
C398: ="The payment amount for this loan is $"&FIXED(LoanPaymentStandard,0)&"/mo on $"&FIXED(LoanPrincipal,0,0)&" borrowed." -> The payment amount for this loan is $1,038/mo on $98,256 borrowed.
C401: ="Option 2: Fully amortized 'Optimistic Loan' of the above interest rate and term; the initial principal is the net system cost after all near-term incentives (rebates, grants, tax credits, tax "&"deductions, PBI's, and depreciation) except SRECs if any (SRECs are excluded because their value is usually uncertain) are received. This loan is optimistic (for the salesperson) because it "&"has the lowest payments, but requires the customer to get a bridge loan or provide their own cash until some of the near-term incentives are received (tax credits, tax deductions, PBIs, depreciation)." -> Option 2: Fully amortized 'Optimistic Loan' of the above interest rate and term; the initial principal is the net system cost after all near-term incentives (rebates, grants, tax credits, tax deductions, PBI's, and depreciation) except SRECs if any (SRECs are excluded because their value is usually uncertain) are received. This loan is optimistic (for the salesperson) because it has the lowest payments, but requires the customer to get a bridge loan or provide their own cash until some of the near-term incentives are received (tax credits, tax deductions, PBIs, depreciation).
C402: ="The payment amount for this loan is $"&FIXED(LoanPaymentUnrealistic,0)&"/mo on $"&FIXED(CostNetAfterTaxEffectsAndPBI,0,0)&" borrowed." -> The payment amount for this loan is $584/mo on $11,705 borrowed.
C405: ="Option 3: Fully amortized 'Smart Financing' of the above interest rate and term, usually using a line of credit; the initial principal is the net system cost after up-front incentives (such as rebates "&"and grants) are received. This financing method is both Efficient and Realistic in terms of true consumer cost because it borrows exactly the amount needed so that the consumer never needs a bridge "&"loan, but also pays no unnecessary interest because it applies any near-term incentives received towards the principal owed." -> Option 3: Fully amortized 'Smart Financing' of the above interest rate and term, usually using a line of credit; the initial principal is the net system cost after up-front incentives (such as rebates and grants) are received. This financing method is both Efficient and Realistic in terms of true consumer cost because it borrows exactly the amount needed so that the consumer never needs a bridge loan, but also pays no unnecessary interest because it applies any near-term incentives received towards the principal owed.
C406: ="The calculation is complex, but the Smart Financing with a Line Of Credit cost falls between the Optimistic and Inefficient loan costs. It requires the customer to be disciplined to apply any depreciation, tax credits, "&"PBIs and other near-term incentives to pay down the principal owed as taxes are filed and benefits are received. Note: in the first year, the principal and therefore the interest is large, so the "&"interest tax deduction is large; sometimes the interest exceeds the payment, allowing for a large tax benefit but also temporarily increasing the principal amount. This situation is temporary "&"as long as any tax credits and depreciation are applied to reducing principal as they are received." -> The calculation is complex, but the Smart Financing with a Line Of Credit cost falls between the Optimistic and Inefficient loan costs. It requires the customer to be disciplined to apply any depreciation, tax credits, PBIs and other near-term incentives to pay down the principal owed as taxes are filed and benefits are received. Note: in the first year, the principal and therefore the interest is large, so the interest tax deduction is large; sometimes the interest exceeds the payment, allowing for a large tax benefit but also temporarily increasing the principal amount. This situation is temporary as long as any tax credits and depreciation are applied to reducing principal as they are received.
C407: ="The monthly payment is $"&FIXED(LoanPaymentSmart,0)&"/mo on $"&FIXED(LoanPrincipal,0,0)&" borrowed. The net annual payments or solar cost with Smart Financing (after tax deduction of interest paid) in the 1st, 2nd, 5th, and 10th years is:" -> The monthly payment is $239/mo on $98,256 borrowed. The net annual payments or solar cost with Smart Financing (after tax deduction of interest paid) in the 1st, 2nd, 5th, and 10th years is:
F409: Year 1 | H409: Year 2 | J409: Year 5 | K409: Year 10
E410: Solar Cost w/ Smart Financing | F410: ='OnGrid Timelines'!$E$185 -> -2710 | H410: ='OnGrid Timelines'!$F$185 -> 2892 | J410: ='OnGrid Timelines'!$I$185 -> 5159 | K410: ='OnGrid Timelines'!$N$185 -> 7457
E411: Old Electric Bill with inflation | F411: ='OnGrid Timelines'!$E$181 -> 4293 | H411: ='OnGrid Timelines'!$F$181 -> 4507 | J411: ='OnGrid Timelines'!$I$181 -> 5218 | K411: ='OnGrid Timelines'!$N$181 -> 6659
E412: Cash Flow (Annual) | F412: ='OnGrid Timelines'!$E$187 -> 7003 | H412: ='OnGrid Timelines'!$F$187 -> 1615 | J412: ='OnGrid Timelines'!$I$187 -> 59 | K412: ='OnGrid Timelines'!$N$187 -> -798
C414: Please see the 25 Year Financing Timeline table for details on the principal, interest, tax benefit, and payment amount, etc for each year in details.
B418: L1.13 Cash Flow Graphics | C418: ="Proposal for: "&CustsFullName&IF(CustCompany<>"",", "&CustCompany,"") -> Proposal for: Jackie Sun and Jilla Sky, Ichiban Hibachi
C420: ="As in the Appraisal/Resale calculation above, electric escalation will increase the electric bill savings over time. The Smart Loan's cost is affected by the factors previously mentioned. "&"The top graphic below illustrate the loan cost vs. net bill savings over 25 years. "&"The middle graphic represents their difference and hence the the net cash flow." -> As in the Appraisal/Resale calculation above, electric escalation will increase the electric bill savings over time. The Smart Loan's cost is affected by the factors previously mentioned. The top graphic below illustrate the loan cost vs. net bill savings over 25 years. The middle graphic represents their difference and hence the the net cash flow.
C450: ="The bottom graphic shows the accumulated savings. Note that this is pure savings, with no out-of-pocket costs. All system costs came from financed sources. This is the accumulation of "&"excess savings above what was needed to pay off the principal and interest for the loan." -> The bottom graphic shows the accumulated savings. Note that this is pure savings, with no out-of-pocket costs. All system costs came from financed sources. This is the accumulation of excess savings above what was needed to pay off the principal and interest for the loan.
B452: L1.14 IRR | C452: ="Proposal for: "&CustsFullName&IF(CustCompany<>"",", "&CustCompany,"") -> Proposal for: Jackie Sun and Jilla Sky, Ichiban Hibachi
C454: Compound Annual Rate of Return
